Workbook

Sheet Data
A1: Service Charge (12%) | D1: June | G1: 2019
B2: 37065.72
B3: 55114.68
B4: 165461.04
B5: 79536.12
B6: 89773.78
A7: Total Service Charge (12%) | B7: =SUM(B2:B6) -> 426951.34
A9: Total Service Charge | B9: Amount | C9: Percentage
A10: 1- For Fracture, loss and Damage (20% For The Company) | B10: =B7*C10 -> 85390.268 | C10: 0.2
A11: 2- Employees Directly connected to customers | B11: =B7*C11 -> 256170.804 | C11: 0.6
A12: 3- Employees Not Directly connected to customers | B12: =B7*C12 -> 64042.701 | C12: 0.15
A13: 4- Incentive for all staff | B13: =B7*C13 -> 21347.567 | C13: 0.05
A14: Total Service Charge (12%) | B14: =SUM(B10:B13) -> 426951.34 | C14: =SUM(C10:C13) -> 1
B16: 12% Distribution
A17: Service Charge (12%) Calculation (Details) : | B17: 1- 20% For Fracture, loss and Damage | C17: 2- 60% Direct Employees (For Staff) | D17: 2- 15% Not Direct Employees (Restaurant Managers & Operation & Other categories of employees) | E17: 4- Incentive for all staff (5%) | F17: Total 12 %
B18: =B2*20% -> 7413.144 | C18: =B2*60% -> 22239.432 | D18: =B2*15% -> 5559.858 | E18: =B2*5% -> 1853.286 | F18: =SUM(B18:E18) -> 37065.72
B19: =B3*20% -> 11022.936 | C19: =B3*60% -> 33068.808 | D19: =B3*15% -> 8267.202 | E19: =B3*5% -> 2755.734 | F19: =SUM(B19:E19) -> 55114.68
B20: 33092.208 | C20: 99276.624 | D20: 24819.156 | E20: 8273.052 | F20: =SUM(B20:E20) -> 165461.04
B21: 15907.224 | C21: 47721.672 | D21: 11930.418 | E21: 3976.806 | F21: =SUM(B21:E21) -> 79536.12
B22: 17954.756 | C22: 53864.268 | D22: 13466.067 | E22: 4488.689 | F22: =SUM(B22:E22) -> 89773.78
A23: Total Service Charge (12%) | B23: =SUM(B18:B22) -> 85390.268 | C23: =SUM(C18:C22) -> 256170.804 | D23: =SUM(D18:D22) -> 64042.701 | E23: =SUM(E18:E22) -> 21347.567 | F23: =SUM(F18:F22) -> 426951.34
A27: Current 12% (3% From Sales) | B27: Sales | C27: Net 2.5% Of Sales | D27: ='Direct 60%'!U5 -> Net Salary | E27: Distribution %
B28: =B2/0.111 -> 333925.4054 | C28: =(B28*2.5%)-((B28*2.5%)*10%) -> 7513.321622 | D28: ='Direct 60%'!U7 -> 18044.13694 | E28: =C28/D28 -> 0.4163857571
B29: =B3/0.111 -> 496528.6486 | C29: =(B29*2.5%)-((B29*2.5%)*10%) -> 11171.89459 | D29: ='Direct 60%'!U8 -> 19164.14749 | E29: =C29/D29 -> 0.5829580785
B30: =B4/0.111 -> 1490640 | C30: 33539.4 | D30: ='Direct 60%'!U9 -> 39583.13126 | E30: 0.8473154835
B31: =B5/0.111 -> 716541.6216 | C31: 16122.18649 | D31: ='Direct 60%'!U10 -> 27004.69262 | E31: 0.5970142564
B32: =B6/0.111 -> 808772.7928 | C32: 18197.38784 | D32: ='Direct 60%'!U11 -> 24478.66115 | E32: 0.743398004
A33: Total Service Charge (12%) | B33: =SUM(B28:B32) -> 3846408.468 | C33: =SUM(C28:C32) -> 86544.19054 | D33: =SUM(D28:D32) -> 128274.7695

Sheet Direct 60%
A1: January | B1: =Data!A17 -> Service Charge (12%) Calculation (Details) : | C1: June | D1: 2019 | E1: Number Of Staff | Y1: Deserved Mohandseen
A2: February | B2: =Data!A11 -> 2- Employees Directly connected to customers | C2: =Data!C11 -> 0.6 | E2: Managers | F2: Staff | G2: Branch Name | J2: Employees ( Directly connected to customers) (60%) | M2: Service Charge (60% Of 12%) Calculation (Details) : | Y2: Undeserved Mohandseen | Z2: Redistribute Deducted Amounts (From Equal Share Amount) To All Other Staff | AN2: Distribute Other Hold (Add / Deducted) Amounts
A3: March | B3: =Data!A18 -> 0 | C3: =Data!C18 -> 22239.432 | E3: =COUNTIF($E$16:$F$105,H3) -> 3 | F3: =COUNTIF($E$16:$F$105,G3) -> 11 | G3: Mohandssen | H3: Mohandseen Managers | I3: Deserved | M3: Divided into | O3: 12% According To Net Salary | Q3: 12% According To Equal Share | S3: 12% Calculation | Y3: Deserved Maadi | Z3: Diff. Amount Of Equal Share ( Distribute For All Other Staff)
A4: April | B4: =Data!A19 -> 0 | C4: =Data!C19 -> 33068.808 | E4: =COUNTIF($E$16:$F$105,H4) -> 3 | F4: =COUNTIF($E$16:$F$105,G4) -> 14 | G4: Maadi | H4: Maadi Managers | I4: Undeserved | M4: 0.85 | N4: 0.15 | O4: 0.3 | Q4: 0.7 | S4: Equal Share | U4: % Salary | Y4: Undeserved Maadi
A5: May | B5: =Data!A20 -> 0 | C5: =Data!C20 -> 99276.624 | E5: =COUNTIF($E$16:$F$105,H5) -> 3 | F5: =COUNTIF($E$16:$F$105,G5) -> 22 | G5: City Stars | H5: City Stars Managers | M5: Staff | N5: Managers | O5: Staff | P5: Managers | Q5: Staff | R5: Managers | S5: Staff | T5: Managers | U5: Net Salary | W5: Distribution % | Y5: Deserved City Stars | Z5: Branches | AA5: Deducted Amounts | AB5: Number Of Deserved Staff | AE5: =O4 -> 0.3 | AF5: =Q4 -> 0.7 | AG5: Net Salary | AH5: Equal Share | AI5: Net Deducted Amount Summary | AK5: Net Salary Without Undeserved Employees | AN5: Branches | AO5: Add (Hold Amounts) | AP5: Deducted (Hold Amounts) | AQ5: Hold Amounts | AR5: =O4 -> 0.3 | AS5: =Q4 -> 0.7 | AT5: Net Salary | AU5: Equal Share
A6: June | B6: =Data!A21 -> 0 | C6: =Data!C21 -> 47721.672 | E6: =COUNTIF($E$16:$F$105,H6) -> 3 | F6: =COUNTIF($E$16:$F$105,G6) -> 14 | G6: MOA | H6: MOA Managers | J6: =Data!A1 -> Service Charge (12%) | K6: 12% Amount | L6: 60% Directly Employees | U6: Staff | V6: Managers | W6: Staff | X6: Managers | Y6: Undeserved City Stars | AB6: All Staff | AC6: Undeserved Staff | AD6: Net Staff | AE6: Distribute Deducted Amounts According To Net Salary | AF6: Distribute Deducted Amounts According To Equal Share | AG6: Distribution % | AH6: Amount | AI6: Amount | AJ6: Distribution % | AK6: Employee Undeserved | AL6: Deserved Net Salary | AR6: Distribute Deducted Amounts According To Net Salary | AS6: Distribute Deducted Amounts According To Equal Share | AT6: Distribution % | AU6: Amount
A7: July | B7: =Data!A22 -> 0 | C7: =Data!C22 -> 53864.268 | E7: =COUNTIF($E$16:$F$105,H7) -> 3 | F7: =COUNTIF($E$16:$F$105,G7) -> 14 | G7: Concord | H7: Concord Managers | J7: =Data!A2 -> 0 | K7: =Data!B2 -> 37065.72 | L7: =Data!C18 -> 22239.432 | M7: =L7*$M$4 -> 18903.5172 | N7: =L7*$N$4 -> 3335.9148 | O7: =M7*$O$4 -> 5671.05516 | P7: 1000.77444 | Q7: =M7*$Q$4 -> 13232.46204 | R7: 2335.14036 | S7: =Q7/F3 -> 1202.951095 | T7: =R7/E3 -> 778.38012 | U7: =SUMIF($E$16:$G$105,G3,$G$16:$G$105) -> 18044.13694 | V7: 19751.2644 | W7: =O7/U7 -> 0.3142879695 | X7: =P7/V7 -> 0.05066887971 | Y7: Deserved MOA | Z7: =B3 -> 0 | AA7: =SUMIF($D$16:$D$105,G3,$P$16:$P$105) -> 0 | AB7: =COUNTIF($D$16:$D$105,G3) -> 14 | AC7: =COUNTIF($R$16:$R$105,Y2) -> 0 | AD7: =AB7-AC7 -> 14 | AE7: =AA7*$AE$5 -> 0 | AF7: =AA7*$AF$5 -> 0 | AG7: =AE7/(U7+V7) -> 0 | AH7: =AF7/AD7 -> 0 | AI7: =SUMIF($D$16:$D$105,G3,$S$16:$S$105) -> 0 | AJ7: =AI7/AL7 -> 0 | AK7: =SUMIF($R$16:$R$105,Y2,$G$16:$G$105) -> 0 | AL7: =U7+V7-AK7 -> 37795.40134 | AN7: =B3 -> 0 | AQ7: =AO7-AP7 -> 0 | AR7: =AQ7*$AR$5 -> 0 | AS7: =AQ7*$AS$5 -> 0 | AT7: =AR7/(U7+V7) -> 0 | AU7: =AS7/(E3+F3) -> 0
A8: August | B8: =Data!A23 -> Total Service Charge (12%) | C8: =SUM(C3:C7) -> 256170.804 | E8: =SUM(E3:E7) -> 15 | F8: =SUM(F3:F7) -> 75 | J8: =Data!A3 -> 0 | K8: =Data!B3 -> 55114.68 | L8: =Data!C19 -> 33068.808 | M8: =L8*$M$4 -> 28108.4868 | N8: =L8*$N$4 -> 4960.3212 | O8: 8432.54604 | P8: 1488.09636 | Q8: 19675.94076 | R8: 3472.22484 | S8: =Q8/F4 -> 1405.42434 | T8: =R8/E4 -> 1157.40828 | U8: 19164.14749 | V8: 17922.23 | W8: =O8/U8 -> 0.4400167576 | X8: =P8/V8 -> 0.08303075901 | Y8: Undeserved MOA | Z8: =B4 -> 0 | AA8: =SUMIF($D$16:$D$105,G4,$P$16:$P$105) -> 1198.06665 | AB8: =COUNTIF($D$16:$D$105,G4) -> 17 | AC8: =COUNTIF($R$16:$R$105,Y4) -> 2 | AD8: =AB8-AC8 -> 15 | AE8: =AA8*$AE$5 -> 359.4199951 | AF8: =AA8*$AF$5 -> 838.6466553 | AG8: =AE8/(U8+V8) -> 0.009691429023 | AH8: =AF8/AD8 -> 55.90977702 | AI8: =SUMIF($D$16:$D$105,G4,$S$16:$S$105) -> 359.4199951 | AJ8: =AI8/AL8 -> 0.009981383242 | AK8: =SUMIF($R$16:$R$105,Y4,$G$16:$G$105) -> 1077.34082 | AL8: =U8+V8-AK8 -> 36009.03667 | AN8: =B4 -> 0 | AQ8: =AO8-AP8 -> 0 | AR8: =AQ8*$AR$5 -> 0 | AS8: =AQ8*$AS$5 -> 0 | AT8: =AR8/(U8+V8) -> 0 | AU8: =AS8/(E4+F4) -> 0
A9: September | J9: =Data!A4 -> 0 | K9: =Data!B4 -> 165461.04 | L9: =Data!C20 -> 99276.624 | M9: =L9*$M$4 -> 84385.1304 | N9: =L9*$N$4 -> 14891.4936 | O9: 25315.53912 | P9: 4467.44808 | Q9: 59069.59128 | R9: 10424.04552 | S9: =Q9/F5 -> 2684.981422 | T9: =R9/E5 -> 3474.68184 | U9: 39583.13126 | V9: 17430.92667 | W9: 0.639553727 | X9: 0.2562943534 | Y9: Deserved Concord | Z9: 0 | AA9: =SUMIF($D$16:$D$105,G5,$P$16:$P$105) -> 4665.705422 | AB9: =COUNTIF($D$16:$D$105,G5) -> 25 | AC9: =COUNTIF($R$16:$R$105,Y6) -> 4 | AD9: 21 | AE9: =AA9*$AE$5 -> 1399.711626 | AF9: =AA9*$AF$5 -> 3265.993795 | AG9: 0.02455028948 | AH9: 155.5235141 | AI9: =SUMIF($D$16:$D$105,G5,$S$16:$S$105) -> 1399.711626 | AJ9: =AI9/AL9 -> 0.02602410764 | AK9: =SUMIF($R$16:$R$105,Y6,$G$16:$G$105) -> 3228.865902 | AL9: =U9+V9-AK9 -> 53785.19202 | AN9: 0 | AQ9: 0 | AR9: 0 | AS9: 0 | AT9: 0 | AU9: 0
A10: October | J10: =Data!A5 -> 0 | K10: =Data!B5 -> 79536.12 | L10: =Data!C21 -> 47721.672 | M10: =L10*$M$4 -> 40563.4212 | N10: =L10*$N$4 -> 7158.2508 | O10: 12169.02636 | P10: 2147.47524 | Q10: 28394.39484 | R10: 5010.77556 | S10: =Q10/F6 -> 2028.17106 | T10: =R10/E6 -> 1670.25852 | U10: 27004.69262 | V10: 20131.56667 | W10: 0.4506263608 | X10: 0.1066720378 | Y10: Undeserved Concord | Z10: 0 | AA10: =SUMIF($D$16:$D$105,G6,$P$16:$P$105) -> 1396.445648 | AB10: =COUNTIF($D$16:$D$105,G6) -> 17 | AC10: =COUNTIF($R$16:$R$105,Y8) -> 1 | AD10: 16 | AE10: =AA10*$AE$5 -> 418.9336944 | AF10: =AA10*$AF$5 -> 977.5119535 | AG10: 0.00888771618 | AH10: 61.09449709 | AI10: =SUMIF($D$16:$D$105,G6,$S$16:$S$105) -> 418.9336944 | AJ10: =AI10/AL10 -> 0.008942338207 | AK10: =SUMIF($R$16:$R$105,Y8,$G$16:$G$105) -> 287.92 | AL10: =U10+V10-AK10 -> 46848.33929 | AN10: 0 | AQ10: 0 | AR10: 0 | AS10: 0 | AT10: 0 | AU10: 0
A11: November | J11: =Data!A6 -> 0 | K11: =Data!B6 -> 89773.78 | L11: =Data!C22 -> 53864.268 | M11: =L11*$M$4 -> 45784.6278 | N11: =L11*$N$4 -> 8079.6402 | O11: 13735.38834 | P11: 2423.89206 | Q11: 32049.23946 | R11: 5655.74814 | S11: =Q11/F7 -> 2289.23139 | T11: =R11/E7 -> 1885.24938 | U11: 24478.66115 | V11: 22147.18333 | W11: 0.5611168134 | X11: 0.1094447101 | Z11: 0 | AA11: =SUMIF($D$16:$D$105,G7,$P$16:$P$105) -> 3978.008645 | AB11: =COUNTIF($D$16:$D$105,G7) -> 17 | AC11: =COUNTIF($R$16:$R$105,Y10) -> 3 | AD11: 14 | AE11: =AA11*$AE$5 -> 1193.402593 | AF11: =AA11*$AF$5 -> 2784.606051 | AG11: 0.02559530249 | AH11: 198.9004322 | AI11: =SUMIF($D$16:$D$105,G7,$S$16:$S$105) -> 1193.402593 | AJ11: =AI11/AL11 -> 0.02641377837 | AK11: =SUMIF($R$16:$R$105,Y10,$G$16:$G$105) -> 1444.781148 | AL11: =U11+V11-AK11 -> 45181.06333 | AN11: 0 | AQ11: 0 | AR11: 0 | AS11: 0 | AT11: 0 | AU11: 0
A12: December | J12: =Data!A7 -> Total Service Charge (12%) | K12: =SUM(K7:K11) -> 426951.34 | L12: =SUM(L7:L11) -> 256170.804 | M12: =SUM(M7:M11) -> 217745.1834 | N12: =SUM(N7:N11) -> 38425.6206 | O12: =SUM(O7:O11) -> 65323.55502 | P12: 11527.68618 | Q12: 152421.6284 | R12: 26897.93442 | S12: =(S7*F3)+(S8*F4)+(S9*F5)+(S10*F6)+(S11*F7) -> 152421.6284 | T12: =(T7*E3)+(T8*E4)+(T9*E5)+(T10*E6)+(T11*E7) -> 26897.93442 | U12: =SUM(U7:U11) -> 128274.7695 | V12: 97383.17107 | Z12: Total | AA12: =SUM(AA7:AA11) -> 11238.22636 | AB12: 90 | AC12: 10 | AD12: 80 | AE12: 3371.467909 | AF12: 7866.758455 | AH12: =(AD7*AH7)+(AD8*AH8)+(AD9*AH9)+(AD10*AH10)+(AD11*AH11) -> 7866.758455 | AI12: =SUM(AI7:AI11) -> 3371.467909 | AN12: Total | AO12: =SUM(AO7:AO11) -> 0 | AP12: =SUM(AP7:AP11) -> 0 | AQ12: =SUM(AQ7:AQ11) -> 0 | AR12: =SUM(AR7:AR11) -> 0 | AS12: 0 | AU12: =((AU7*(E3+F3))+(AU8*(E4+F4))+(AU9*(E5+F5))+(AU10*(E6+F6))+(AU11*(E7+F7))) -> 0
A14: Employees Data | L14: Service Charge (60% Of 12%) Calculation | N14: Redistribute Deducted Amounts (From Equal Share Amount) To All Other Staff | Y14: Distribute Other Hold (Add / Deducted) Amounts | AN14: El- Ahly ( ACH ) Payroll Data
A15: # | B15: Employee Name | C15: Employee ID | D15: Branch | E15: Division / Department | F15: Job Description / Occupation | G15: Net Salary | H15: Grade | I15: Incentive % | J15: Number Of Work Years | K15: Date Of Joining | L15: 12% According To Net Salary Total | M15: 12% Equal Share Total | N15: Number Of Days (Sick Leave & Absent (With/Without) Permission) | O15: 12% Equal Share Net | P15: Diff. Amount Of Equal Share ( Distribute For All Other Staff) | Q15: General Distribution Condition | R15: Distribution Condition | S15: Distribute Deducted Amounts According To Net Salary | T15: Redistribute Deducted Amounts According To Net Salary | U15: Distribute Deducted Amounts According To Equal Share | V15: Total Distribute Deducted Amounts | W15: Total 12% | X15: Tax 10% | Y15: Distribute Deducted Amounts According To Net Salary | Z15: Distribute Deducted Amounts According To Equal Share | AA15: Total Distribute Deducted Amounts | AB15: Net 12% | AC15: % | AD15: Total Package (Net) | AE15: Current 12% (Net) | AF15: 12 % Diff. To Current | AN15: Bank Branch Code | AO15: Acc. Num. for Transfer | AP15: Employee Name | AQ15: NBOE Amount | AR15: Bank NBOE EMP. NUM. | AS15: Bank Code
A16: 1 | B16: aaaa1 | C16: 20426 | D16: Mohandssen | E16: Mohandseen Managers | F16: Assistant Manager | G16: 4616.986667 | H16: 8 | I16: =IF(AND(H16>0,H16<=3),4%,IF(AND(H16>3,H16<=6),8%,IF(AND(H16>6,H16<=9),10%,IF(AND(H16>9,H16<=11),12%,IF(AND(H16>11,H16<=13),16%))))) -> 0.1 | J16: =DAYS360(K16,TODAY(),1) -> 1914-01-20 | K16: 2005-04-01 | L16: =IF(E16="Mohandseen Managers",$X$7*G16,IF(E16="Mohandssen",$W$7*G16,IF(E16="Maadi Managers",$X$8*G16,IF(E16="Maadi",$W$8*G16,IF(E16="City Stars Managers",$X$9*G16,IF(E16="City Stars",$W$9*G16,IF(E16="MOA Managers",$X$10*G16,IF(E16="MOA",$W$10*G16,IF(E16="Concord Managers",$X$11*G16,IF(E16="Concord",$W$11*G16)))))))))) -> 233.937542 | M16: =IF(E16="Mohandseen Managers",$T$7,IF(E16="Mohandssen",$S$7,IF(E16="Maadi Managers",$T$8,IF(E16="Maadi",$S$8,IF(E16="City Stars Managers",$T$9,IF(E16="City Stars",$S$9,IF(E16="MOA Managers",$T$10,IF(E16="MOA",$S$10,IF(E16="Concord Managers",$T$11,IF(E16="Concord",$S$11)))))))))) -> 778.38012 | O16: =(M16-(M16/30.5)*N16) -> 778.38012 | P16: =M16-O16 -> 0 | Q16: Deserved | R16: Deserved Mohandseen | S16: =IF(D16="Mohandssen",$AG$7*G16,IF(D16="Maadi",$AG$8*G16,IF(D16="City Stars",$AG$9*G16,IF(D16="MOA",$AG$10*G16,IF(D16="Concord",$AG$11*G16))))) -> 0 | T16: =IF(R16="Undeserved Mohandseen",0,IF(R16="Deserved Mohandseen",G16*$AJ$7,IF(R16="Undeserved Maadi",0,IF(R16="Deserved Maadi",G16*$AJ$8,IF(R16="Undeserved City Stars",0,IF(R16="Deserved City Stars",G16*$AJ$9,IF(R16="Undeserved MOA",0,IF(R16="Deserved MOA",G16*$AJ$10,IF(R16="Undeserved Concord",0,IF(R16="Deserved Concord",G16*$AJ$11)))))))))) -> 0 | U16: =IF(R16="Undeserved Mohandseen",0,IF(R16="Deserved Mohandseen",$AH$7,IF(R16="Undeserved Maadi",0,IF(R16="Deserved Maadi",$AH$8,IF(R16="Undeserved City Stars",0,IF(R16="Deserved City Stars",$AH$9,IF(R16="Undeserved MOA",0,IF(R16="Deserved MOA",$AH$10,IF(R16="Undeserved Concord",0,IF(R16="Deserved Concord",$AH$11)))))))))) -> 0 | V16: =T16+U16 -> 0 | W16: =L16+M16-P16+V16 -> 1012.317662 | X16: =W16*10% -> 101.2317662 | Y16: =IF(D16="Mohandssen",$AT$7*G16,IF(D16="Maadi",$AT$8*G16,IF(D16="City Stars",$AT$9*G16,IF(D16="MOA",$AT$10*G16,IF(D16="Concord",$AT$11*G16))))) -> 0 | Z16: =IF(D16="Mohandssen",$AU$7,IF(D16="Maadi",$AU$8,IF(D16="City Stars",$AU$9,IF(D16="MOA",$AU$10,IF(D16="Concord",$AU$11))))) -> 0 | AA16: =SUM(Y16:Z16) -> 0 | AB16: =W16-X16+AA16 -> 911.0858958 | AC16: =IFERROR(AB16/G16,0) -> 0.1973334475 | AD16: =G16+AB16 -> 5528.072563 | AE16: =IF(E16="Mohandseen Managers",0,IF(E16="Mohandssen",G16*Data!$E$28,IF(E16="Maadi Managers",0,IF(E16="Maadi",G16*Data!$E$29,IF(E16="City Stars Managers",0,IF(E16="City Stars",G16*Data!$E$30,IF(E16="MOA Managers",0,IF(E16="MOA",G16*Data!$E$31,IF(E16="Concord Managers",0,IF(E16="Concord",G16*Data!$E$32)))))))))) -> 0 | AF16: =AB16-AE16 -> 911.0858958 | AN16: 18000 | AP16: حسنين محمد محمود حسن | AQ16: =ROUND(AB16,2) -> 911.09 | AR16: 20426 | AS16: NBEGEGCXXXX
A17: 2 | B17: aaaa2 | C17: 22855 | D17: Mohandssen | E17: Mohandseen Managers | F17: Resturant Manager | G17: 8867.241667 | H17: 11 | I17: =IF(AND(H17>0,H17<=3),4%,IF(AND(H17>3,H17<=6),8%,IF(AND(H17>6,H17<=9),10%,IF(AND(H17>9,H17<=11),12%,IF(AND(H17>11,H17<=13),16%))))) -> 0.12 | J17: =DAYS360(K17,TODAY(),1) -> 1901-06-24 | K17: 2018-01-04 | L17: 449.2932014 | M17: 778.38012 | O17: 778.38012 | P17: =M17-O17 -> 0 | Q17: Deserved | R17: Deserved Mohandseen | S17: =IF(D17="Mohandssen",$AG$7*G17,IF(D17="Maadi",$AG$8*G17,IF(D17="City Stars",$AG$9*G17,IF(D17="MOA",$AG$10*G17,IF(D17="Concord",$AG$11*G17))))) -> 0 | T17: =IF(R17="Undeserved Mohandseen",0,IF(R17="Deserved Mohandseen",G17*$AJ$7,IF(R17="Undeserved Maadi",0,IF(R17="Deserved Maadi",G17*$AJ$8,IF(R17="Undeserved City Stars",0,IF(R17="Deserved City Stars",G17*$AJ$9,IF(R17="Undeserved MOA",0,IF(R17="Deserved MOA",G17*$AJ$10,IF(R17="Undeserved Concord",0,IF(R17="Deserved Concord",G17*$AJ$11)))))))))) -> 0 | U17: =IF(R17="Undeserved Mohandseen",0,IF(R17="Deserved Mohandseen",$AH$7,IF(R17="Undeserved Maadi",0,IF(R17="Deserved Maadi",$AH$8,IF(R17="Undeserved City Stars",0,IF(R17="Deserved City Stars",$AH$9,IF(R17="Undeserved MOA",0,IF(R17="Deserved MOA",$AH$10,IF(R17="Undeserved Concord",0,IF(R17="Deserved Concord",$AH$11)))))))))) -> 0 | V17: =T17+U17 -> 0 | W17: =L17+M17-P17+V17 -> 1227.673321 | X17: =W17*10% -> 122.7673321 | Y17: =IF(D17="Mohandssen",$AT$7*G17,IF(D17="Maadi",$AT$8*G17,IF(D17="City Stars",$AT$9*G17,IF(D17="MOA",$AT$10*G17,IF(D17="Concord",$AT$11*G17))))) -> 0 | Z17: =IF(D17="Mohandssen",$AU$7,IF(D17="Maadi",$AU$8,IF(D17="City Stars",$AU$9,IF(D17="MOA",$AU$10,IF(D17="Concord",$AU$11))))) -> 0 | AA17: =SUM(Y17:Z17) -> 0 | AB17: =W17-X17+AA17 -> 1104.905989 | AC17: 0.1246053768 | AD17: 9972.147656 | AE17: =IF(E17="Mohandseen Managers",0,IF(E17="Mohandssen",G17*Data!$E$28,IF(E17="Maadi Managers",0,IF(E17="Maadi",G17*Data!$E$29,IF(E17="City Stars Managers",0,IF(E17="City Stars",G17*Data!$E$30,IF(E17="MOA Managers",0,IF(E17="MOA",G17*Data!$E$31,IF(E17="Concord Managers",0,IF(E17="Concord",G17*Data!$E$32)))))))))) -> 0 | AF17: =AB17-AE17 -> 1104.905989 | AN17: 18000 | AO17: 1273000923564601016 | AP17: ايهاب محمد شحاته محمد | AQ17: =ROUND(AB17,2) -> 1104.91 | AR17: 22855 | AS17: NBEGEGCXXXX
A18: 3 | B18: aaaa3 | C18: 22898 | D18: Mohandssen | E18: Mohandseen Managers | F18: Assistant Manager | G18: 6267.036066 | H18: 9 | I18: 0.1 | J18: 1900-10-28 | K18: 2018-09-03 | L18: 317.5436966 | M18: 778.38012 | O18: 778.38012 | P18: =M18-O18 -> 0 | Q18: Deserved | R18: Deserved Mohandseen | S18: 0 | T18: 0 | U18: 0 | V18: 0 | W18: 1095.923817 | X18: 109.5923817 | Y18: 0 | Z18: 0 | AA18: 0 | AB18: 986.3314349 | AC18: 0.1573840368 | AD18: 7253.3675 | AE18: =IF(E18="Mohandseen Managers",0,IF(E18="Mohandssen",G18*Data!$E$28,IF(E18="Maadi Managers",0,IF(E18="Maadi",G18*Data!$E$29,IF(E18="City Stars Managers",0,IF(E18="City Stars",G18*Data!$E$30,IF(E18="MOA Managers",0,IF(E18="MOA",G18*Data!$E$31,IF(E18="Concord Managers",0,IF(E18="Concord",G18*Data!$E$32)))))))))) -> 0 | AF18: 986.3314349 | AN18: 18000 | AP18: محمد سيد عبد الرحمن بخيت | AQ18: 986.33 | AR18: 22898 | AS18: NBEGEGCXXXX
A19: 1 | B19: aaaa4 | D19: Mohandssen | E19: Mohandssen | F19: Security | G19: 1238 | H19: 2 | I19: 0.04 | J19: 1910-07-11 | K19: 2008-10-30 | L19: 389.0885062 | M19: 1202.951095 | O19: 1202.951095 | P19: 0 | Q19: Deserved | R19: Deserved Mohandseen | S19: 0 | T19: 0 | U19: 0 | V19: 0 | W19: 1592.039601 | X19: 159.2039601 | Y19: 0 | Z19: 0 | AA19: 0 | AB19: 1432.835641 | AC19: 1.157379354 | AD19: 2670.835641 | AE19: =IF(E19="Mohandseen Managers",0,IF(E19="Mohandssen",G19*Data!$E$28,IF(E19="Maadi Managers",0,IF(E19="Maadi",G19*Data!$E$29,IF(E19="City Stars Managers",0,IF(E19="City Stars",G19*Data!$E$30,IF(E19="MOA Managers",0,IF(E19="MOA",G19*Data!$E$31,IF(E19="Concord Managers",0,IF(E19="Concord",G19*Data!$E$32)))))))))) -> 515.4855673 | AF19: 917.3500734 | AP19: طارق حسن قبيس سليمان | AQ19: 1432.84
A20: 2 | B20: aaaa5 | C20: 20270 | D20: Mohandssen | E20: Mohandssen | F20: C.T - Prep | G20: 3022.070273 | H20: 4 | I20: 0.08 | J20: 1914-05-20 | K20: 2004-12-01 | L20: 949.8003298 | M20: 1202.951095 | O20: 1202.951095 | P20: 0 | Q20: Deserved | R20: Deserved Mohandseen | S20: 0 | T20: 0 | U20: 0 | V20: 0 | W20: 2152.751424 | X20: 215.2751424 | Y20: 0 | Z20: 0 | AA20: 0 | AB20: 1937.476282 | AC20: 0.6411089441 | AD20: 4959.546555 | AE20: =IF(E20="Mohandseen Managers",0,IF(E20="Mohandssen",G20*Data!$E$28,IF(E20="Maadi Managers",0,IF(E20="Maadi",G20*Data!$E$29,IF(E20="City Stars Managers",0,IF(E20="City Stars",G20*Data!$E$30,IF(E20="MOA Managers",0,IF(E20="MOA",G20*Data!$E$31,IF(E20="Concord Managers",0,IF(E20="Concord",G20*Data!$E$32)))))))))) -> 1258.347019 | AF20: 679.1292631 | AN20: 18000 | AP20: طه فرجانى على قرنى | AQ20: 1937.48 | AR20: 20270 | AS20: NBEGEGCXXXX
A21: 3 | B21: aaaa6 | C21: 22140 | D21: Mohandssen | E21: Mohandssen | F21: Food Server | G21: 1611.29 | H21: 3 | I21: 0.04 | J21: 1904-12-14 | K21: 2014-06-25 | L21: 506.4090624 | M21: 1202.951095 | O21: 1202.951095 | P21: 0 | Q21: Deserved | R21: Deserved Mohandseen | S21: 0 | T21: 0 | U21: 0 | V21: 0 | W21: 1709.360157 | X21: 170.9360157 | Y21: 0 | Z21: 0 | AA21: 0 | AB21: 1538.424141 | AC21: 0.9547779364 | AD21: 3149.714141 | AE21: =IF(E21="Mohandseen Managers",0,IF(E21="Mohandssen",G21*Data!$E$28,IF(E21="Maadi Managers",0,IF(E21="Maadi",G21*Data!$E$29,IF(E21="City Stars Managers",0,IF(E21="City Stars",G21*Data!$E$30,IF(E21="MOA Managers",0,IF(E21="MOA",G21*Data!$E$31,IF(E21="Concord Managers",0,IF(E21="Concord",G21*Data!$E$32)))))))))) -> 670.9182066 | AF21: 867.5059346 | AN21: 18000 | AP21: شيماء سيد صابر فرغلى | AQ21: 1538.42 | AR21: 22140 | AS21: NBEGEGCXXXX
A22: 4 | B22: aaaa7 | C22: 22612 | D22: Mohandssen | E22: Mohandssen | F22: Baker | G22: 1300.39 | H22: 3 | I22: 0.04 | J22: 1903-05-02 | K22: 2016-02-17 | L22: 408.6969326 | M22: 1202.951095 | O22: 1202.951095 | P22: 0 | Q22: Deserved | R22: Deserved Mohandseen | S22: 0 | T22: 0 | U22: 0 | V22: 0 | W22: 1611.648027 | X22: 161.1648027 | Y22: 0 | Z22: 0 | AA22: 0 | AB22: 1450.483224 | AC22: 1.1154217 | AD22: 2750.873224 | AE22: =IF(E22="Mohandseen Managers",0,IF(E22="Mohandssen",G22*Data!$E$28,IF(E22="Maadi Managers",0,IF(E22="Maadi",G22*Data!$E$29,IF(E22="City Stars Managers",0,IF(E22="City Stars",G22*Data!$E$30,IF(E22="MOA Managers",0,IF(E22="MOA",G22*Data!$E$31,IF(E22="Concord Managers",0,IF(E22="Concord",G22*Data!$E$32)))))))))) -> 541.4638747 | AF22: 909.0193497 | AN22: 18000 | AP22: نورهان حامد على عبد الله | AQ22: 1450.48 | AR22: 22612 | AS22: NBEGEGCXXXX
A23: 5 | B23: aaaa8 | C23: 22773 | D23: Mohandssen | E23: Mohandssen | F23: Cook | G23: 1301.2 | H23: 3 | I23: 0.04 | J23: 1902-04-02 | K23: 2017-03-22 | L23: 408.9515059 | M23: 1202.951095 | O23: 1202.951095 | P23: 0 | Q23: Deserved | R23: Deserved Mohandseen | S23: 0 | T23: 0 | U23: 0 | V23: 0 | W23: 1611.9026 | X23: 161.19026 | Y23: 0 | Z23: 0 | AA23: 0 | AB23: 1450.71234 | AC23: 1.114903428 | AD23: 2751.91234 | AE23: =IF(E23="Mohandseen Managers",0,IF(E23="Mohandssen",G23*Data!$E$28,IF(E23="Maadi Managers",0,IF(E23="Maadi",G23*Data!$E$29,IF(E23="City Stars Managers",0,IF(E23="City Stars",G23*Data!$E$30,IF(E23="MOA Managers",0,IF(E23="MOA",G23*Data!$E$31,IF(E23="Concord Managers",0,IF(E23="Concord",G23*Data!$E$32)))))))))) -> 541.8011472 | AF23: 908.9111932 | AN23: 18000 | AP23: حسن ابراهيم حسن ابراهيم | AQ23: 1450.71 | AR23: 22773 | AS23: NBEGEGCXXXX
A24: 6 | C24: 22814 | D24: Mohandssen | E24: Mohandssen | F24: Dishwaser | G24: 1025.92 | H24: 1 | I24: 0.04 | J24: 1901-11-26 | K24: 2017-07-29 | L24: 322.4343137 | M24: 1202.951095 | O24: 1202.951095 | P24: 0 | Q24: Deserved | R24: Deserved Mohandseen | S24: 0 | T24: 0 | U24: 0 | V24: 0 | W24: 1525.385408 | X24: 152.5385408 | Y24: 0 | Z24: 0 | AA24: 0 | AB24: 1372.846867 | AC24: 1.338161716 | AD24: 2398.766867 | AE24: =IF(E24="Mohandseen Managers",0,IF(E24="Mohandssen",G24*Data!$E$28,IF(E24="Maadi Managers",0,IF(E24="Maadi",G24*Data!$E$29,IF(E24="City Stars Managers",0,IF(E24="City Stars",G24*Data!$E$30,IF(E24="MOA Managers",0,IF(E24="MOA",G24*Data!$E$31,IF(E24="Concord Managers",0,IF(E24="Concord",G24*Data!$E$32)))))))))) -> 427.178476 | AF24: 945.6683914 | AN24: 18000 | AP24: على محمد سيد احمد قاعود | AQ24: 1372.85 | AR24: 22814 | AS24: NBEGEGCXXXX
A25: 7 | C25: 20488 | D25: Mohandssen | E25: Mohandssen | F25: Prep | G25: 2664.426667 | H25: 3 | I25: 0.04 | J25: 1913-08-23 | K25: 2005-09-01 | L25: 837.3972469 | M25: 1202.951095 | O25: 1202.951095 | P25: 0 | Q25: Deserved | R25: Deserved Mohandseen | S25: 0 | T25: 0 | U25: 0 | V25: 0 | W25: 2040.348341 | X25: 204.0348341 | Y25: 0 | Z25: 0 | AA25: 0 | AB25: 1836.313507 | AC25: 0.6891964903 | AD25: 4500.740174 | AE25: =IF(E25="Mohandseen Managers",0,IF(E25="Mohandssen",G25*Data!$E$28,IF(E25="Maadi Managers",0,IF(E25="Maadi",G25*Data!$E$29,IF(E25="City Stars Managers",0,IF(E25="City Stars",G25*Data!$E$30,IF(E25="MOA Managers",0,IF(E25="MOA",G25*Data!$E$31,IF(E25="Concord Managers",0,IF(E25="Concord",G25*Data!$E$32)))))))))) -> 1109.429315 | AF25: 726.8841924 | AN25: 18000 | AP25: فتحى فهمى عبد الكريم أدم | AQ25: 1836.31 | AR25: 20488 | AS25: NBEGEGCXXXX
A26: 8 | C26: 21248 | D26: Mohandssen | E26: Mohandssen | F26: Food Server | G26: 2067.83 | H26: 3 | I26: 0.04 | J26: 1910-06-10 | K26: 2008-12-01 | L26: 649.8940919 | M26: 1202.951095 | O26: 1202.951095 | P26: 0 | Q26: Deserved | R26: Deserved Mohandseen | S26: 0 | T26: 0 | U26: 0 | V26: 0 | W26: 1852.845186 | X26: 185.2845186 | Y26: 0 | Z26: 0 | AA26: 0 | AB26: 1667.560668 | AC26: 0.8064302519 | AD26: 3735.390668 | AE26: =IF(E26="Mohandseen Managers",0,IF(E26="Mohandssen",G26*Data!$E$28,IF(E26="Maadi Managers",0,IF(E26="Maadi",G26*Data!$E$29,IF(E26="City Stars Managers",0,IF(E26="City Stars",G26*Data!$E$30,IF(E26="MOA Managers",0,IF(E26="MOA",G26*Data!$E$31,IF(E26="Concord Managers",0,IF(E26="Concord",G26*Data!$E$32)))))))))) -> 861.0149602 | AF26: 806.5457077 | AN26: 18000 | AP26: محمد صلاح محمد حيا الله | AQ26: 1667.56 | AR26: 21248 | AS26: NBEGEGCXXXX
A27: 9 | C27: 22172 | D27: Mohandssen | E27: Mohandssen | F27: Food Server | G27: 1611.26 | H27: 3 | I27: 0.04 | J27: 1904-10-30 | K27: 2014-08-10 | L27: 506.3996337 | M27: 1202.951095 | O27: 1202.951095 | P27: 0 | Q27: Deserved | R27: Deserved Mohandseen | S27: 0 | T27: 0 | U27: 0 | V27: 0 | W27: 1709.350728 | X27: 170.9350728 | Y27: 0 | Z27: 0 | AA27: 0 | AB27: 1538.415655 | AC27: 0.9547904469 | AD27: 3149.675655 | AE27: =IF(E27="Mohandseen Managers",0,IF(E27="Mohandssen",G27*Data!$E$28,IF(E27="Maadi Managers",0,IF(E27="Maadi",G27*Data!$E$29,IF(E27="City Stars Managers",0,IF(E27="City Stars",G27*Data!$E$30,IF(E27="MOA Managers",0,IF(E27="MOA",G27*Data!$E$31,IF(E27="Concord Managers",0,IF(E27="Concord",G27*Data!$E$32)))))))))) -> 670.905715 | AF27: 867.5099404 | AN27: 18000 | AP27: محمد على محمد على | AQ27: 1538.42 | AR27: 22172 | AS27: NBEGEGCXXXX
A28: 10 | C28: 22912 | D28: Mohandssen | E28: Mohandssen | F28: Food Server | G28: 1056.45 | H28: 3 | I28: 0.04 | J28: 1900-08-17 | K28: 2018-11-15 | L28: 332.0295254 | M28: 1202.951095 | O28: 1202.951095 | P28: 0 | Q28: Deserved | R28: Deserved Mohandseen | S28: 0 | T28: 0 | U28: 0 | V28: 0 | W28: 1534.98062 | X28: 153.498062 | Y28: 0 | Z28: 0 | AA28: 0 | AB28: 1381.482558 | AC28: 1.307664876 | AD28: 2437.932558 | AE28: =IF(E28="Mohandseen Managers",0,IF(E28="Mohandssen",G28*Data!$E$28,IF(E28="Maadi Managers",0,IF(E28="Maadi",G28*Data!$E$29,IF(E28="City Stars Managers",0,IF(E28="City Stars",G28*Data!$E$30,IF(E28="MOA Managers",0,IF(E28="MOA",G28*Data!$E$31,IF(E28="Concord Managers",0,IF(E28="Concord",G28*Data!$E$32)))))))))) -> 439.8907331 | AF28: 941.5918248 | AP28: هدير محمد عبد الفتاح على محمد | AQ28: 1381.48
A29: 11 | C29: 22922 | D29: Mohandssen | E29: Mohandssen | F29: Cook | G29: 1145.3 | H29: 3 | I29: 0.04 | J29: 1900-03-28 | K29: 2019-04-07 | L29: 359.9540115 | M29: 1202.951095 | O29: 1202.951095 | P29: 0 | Q29: Deserved | R29: Deserved Mohandseen | S29: 0 | T29: 0 | U29: 0 | V29: 0 | W29: 1562.905106 | X29: 156.2905106 | Y29: 0 | Z29: 0 | AA29: 0 | AB29: 1406.614595 | AC29: 1.228162573 | AD29: 2551.914595 | AE29: =IF(E29="Mohandseen Managers",0,IF(E29="Mohandssen",G29*Data!$E$28,IF(E29="Maadi Managers",0,IF(E29="Maadi",G29*Data!$E$29,IF(E29="City Stars Managers",0,IF(E29="City Stars",G29*Data!$E$30,IF(E29="MOA Managers",0,IF(E29="MOA",G29*Data!$E$31,IF(E29="Concord Managers",0,IF(E29="Concord",G29*Data!$E$32)))))))))) -> 476.8866077 | AF29: 929.7279877 | AP29: اندرو سعد حليم جرجس | AQ29: 1406.61
A30: 1 | C30: 20103 | D30: Maadi | E30: Maadi Managers | F30: S R .Assistant Manager | G30: 6577.2 | H30: 9 | I30: 0.1 | J30: 1917-09-01 | K30: 2001-08-01 | L30: 546.1099081 | M30: 1157.40828 | N30: 0 | O30: 1157.40828 | P30: 0 | Q30: Deserved | R30: Deserved Maadi | S30: 63.74246697 | T30: 65.64955386 | U30: 55.90977702 | V30: 121.5593309 | W30: 1825.077519 | X30: 182.5077519 | Y30: 0 | Z30: 0 | AA30: 0 | AB30: 1642.569767 | AC30: 0.2497369347 | AD30: 8219.769767 | AE30: =IF(E30="Mohandseen Managers",0,IF(E30="Mohandssen",G30*Data!$E$28,IF(E30="Maadi Managers",0,IF(E30="Maadi",G30*Data!$E$29,IF(E30="City Stars Managers",0,IF(E30="City Stars",G30*Data!$E$30,IF(E30="MOA Managers",0,IF(E30="MOA",G30*Data!$E$31,IF(E30="Concord Managers",0,IF(E30="Concord",G30*Data!$E$32)))))))))) -> 0 | AF30: 1642.569767 | AN30: 18000 | AP30: أحمد فهمى موسى موسى | AQ30: 1642.57 | AR30: 20103 | AS30: NBEGEGCXXXX
A31: 2 | C31: 30021 | D31: Maadi | E31: Maadi Managers | F31: S R .Assistant Manager | G31: 7026.866667 | H31: 9 | I31: 0.1 | J31: 1911-04-06 | K31: 2008-02-01 | L31: 583.4460728 | M31: 1157.40828 | N31: 0 | O31: 1157.40828 | P31: 0 | Q31: Deserved | R31: Deserved Maadi | S31: 68.10037956 | T31: 70.13784919 | U31: 55.90977702 | V31: 126.0476262 | W31: 1866.901979 | X31: 186.6901979 | Y31: 0 | Z31: 0 | AA31: 0 | AB31: 1680.211781 | AC31: 0.2391125178 | AD31: 8707.078448 | AE31: =IF(E31="Mohandseen Managers",0,IF(E31="Mohandssen",G31*Data!$E$28,IF(E31="Maadi Managers",0,IF(E31="Maadi",G31*Data!$E$29,IF(E31="City Stars Managers",0,IF(E31="City Stars",G31*Data!$E$30,IF(E31="MOA Managers",0,IF(E31="MOA",G31*Data!$E$31,IF(E31="Concord Managers",0,IF(E31="Concord",G31*Data!$E$32)))))))))) -> 0 | AF31: 1680.211781 | AN31: 0377 | AO31: 3775000875832201018 | AP31: عبد الغنى محمد عزت منصور خاطر | AQ31: 1680.21 | AR31: 30021 | AS31: NBEGEGCXXXX
A32: 3 | C32: 20161 | D32: Maadi | E32: Maadi Managers | F32: Assistant Manager | G32: 4318.163333 | H32: 8 | I32: 0.1 | J32: 1916-04-09 | K32: 2003-01-01 | L32: 358.5403791 | M32: 1157.40828 | N32: 0 | O32: 1157.40828 | P32: 0 | Q32: Deserved | R32: Deserved Maadi | S32: 41.84917346 | T32: 43.10124313 | U32: 55.90977702 | V32: 99.01102015 | W32: 1614.959679 | X32: 161.4959679 | Y32: 0 | Z32: 0 | AA32: 0 | AB32: 1453.463711 | AC32: 0.3365930372 | AD32: 5771.627045 | AE32: =IF(E32="Mohandseen Managers",0,IF(E32="Mohandssen",G32*Data!$E$28,IF(E32="Maadi Managers",0,IF(E32="Maadi",G32*Data!$E$29,IF(E32="City Stars Managers",0,IF(E32="City Stars",G32*Data!$E$30,IF(E32="MOA Managers",0,IF(E32="MOA",G32*Data!$E$31,IF(E32="Concord Managers",0,IF(E32="Concord",G32*Data!$E$32)))))))))) -> 0 | AF32: 1453.463711 | AN32: 18000 | AP32: عبد الهادى محمد عبد الهادى عطيه | AQ32: 1453.46 | AR32: 20161 | AS32: NBEGEGCXXXX
A33: 1 | C33: 20156 | D33: Maadi | E33: Maadi | F33: Security | G33: 1461.08 | H33: 2 | I33: 0.04 | J33: 1916-04-09 | K33: 2003-01-01 | L33: 642.8996843 | M33: 1405.42434 | N33: 0 | O33: 1405.42434 | P33: 0 | Q33: Deserved | R33: Deserved Maadi | S33: 14.15995312 | T33: 14.58359943 | U33: 55.90977702 | V33: 70.49337645 | W33: 2118.817401 | X33: 211.8817401 | Y33: 0 | Z33: 0 | AA33: 0 | AB33: 1906.935661 | AC33: 1.305154858 | AD33: 3368.015661 | AE33: =IF(E33="Mohandseen Managers",0,IF(E33="Mohandssen",G33*Data!$E$28,IF(E33="Maadi Managers",0,IF(E33="Maadi",G33*Data!$E$29,IF(E33="City Stars Managers",0,IF(E33="City Stars",G33*Data!$E$30,IF(E33="MOA Managers",0,IF(E33="MOA",G33*Data!$E$31,IF(E33="Concord Managers",0,IF(E33="Concord",G33*Data!$E$32)))))))))) -> 851.7483893 | AF33: 1055.187271 | AN33: 18000 | AP33: محمد عوض حسين سعيد محمد | AQ33: 1906.94 | AR33: 20156 | AS33: NBEGEGCXXXX
A34: 2 | C34: 21286 | D34: Maadi | E34: Maadi | F34: C.T - Food Server | G34: 2001.11 | H34: 4 | I34: 0.08 | J34: 1910-01-01 | K34: 2009-05-11 | L34: 880.5219339 | M34: 1405.42434 | N34: 0 | O34: 1405.42434 | P34: 0 | Q34: Deserved | R34: Deserved Maadi | S34: 19.39361553 | T34: 19.97384582 | U34: 55.90977702 | V34: 75.88362284 | W34: 2361.829897 | X34: 236.1829897 | Y34: 0 | Z34: 0 | AA34: 0 | AB34: 2125.646907 | AC34: 1.062233914 | AD34: 4126.756907 | AE34: =IF(E34="Mohandseen Managers",0,IF(E34="Mohandssen",G34*Data!$E$28,IF(E34="Maadi Managers",0,IF(E34="Maadi",G34*Data!$E$29,IF(E34="City Stars Managers",0,IF(E34="City Stars",G34*Data!$E$30,IF(E34="MOA Managers",0,IF(E34="MOA",G34*Data!$E$31,IF(E34="Concord Managers",0,IF(E34="Concord",G34*Data!$E$32)))))))))) -> 1166.56324 | AF34: 959.0836666 | AN34: 18000 | AP34: هشام محمود عليوه عبده الحجار | AQ34: 2125.65 | AR34: 21286 | AS34: NBEGEGCXXXX
A35: 3 | C35: 21667 | D35: Maadi | E35: Maadi | F35: Food Server | G35: 1610 | H35: 3 | I35: 0.04 | J35: 1907-05-12 | K35: 2012-01-16 | L35: 708.4269798 | M35: 1405.42434 | N35: 0 | O35: 1405.42434 | P35: 0 | Q35: Deserved | R35: Deserved Maadi | S35: 15.60320073 | T35: 16.07002702 | U35: 55.90977702 | V35: 71.97980404 | W35: 2185.831124 | X35: 218.5831124 | Y35: 0 | Z35: 0 | AA35: 0 | AB35: 1967.248011 | AC35: 1.221893175 | AD35: 3577.248011 | AE35: =IF(E35="Mohandseen Managers",0,IF(E35="Mohandssen",G35*Data!$E$28,IF(E35="Maadi Managers",0,IF(E35="Maadi",G35*Data!$E$29,IF(E35="City Stars Managers",0,IF(E35="City Stars",G35*Data!$E$30,IF(E35="MOA Managers",0,IF(E35="MOA",G35*Data!$E$31,IF(E35="Concord Managers",0,IF(E35="Concord",G35*Data!$E$32)))))))))) -> 938.5625064 | AF35: 1028.685505 | AN35: 18000 | AP35: محمد صابر السيد مصطفى | AQ35: 1967.25 | AR35: 21667 | AS35: NBEGEGCXXXX
A36: 4 | C36: 22382 | D36: Maadi | E36: Maadi | F36: Prep | G36: 1560.655738 | H36: 3 | I36: 0.04 | J36: 1904-04-09 | K36: 2015-03-04 | L36: 686.7146775 | M36: 1405.42434 | N36: 0 | O36: 1405.42434 | P36: 0 | Q36: Deserved | R36: Deserved Maadi | S36: 15.12498431 | T36: 15.57750303 | U36: 55.90977702 | V36: 71.48728005 | W36: 2163.626298 | X36: 216.3626298 | Y36: 0 | Z36: 0 | AA36: 0 | AB36: 1947.263668 | AC36: 1.247721468 | AD36: 3507.919406 | AE36: =IF(E36="Mohandseen Managers",0,IF(E36="Mohandssen",G36*Data!$E$28,IF(E36="Maadi Managers",0,IF(E36="Maadi",G36*Data!$E$29,IF(E36="City Stars Managers",0,IF(E36="City Stars",G36*Data!$E$30,IF(E36="MOA Managers",0,IF(E36="MOA",G36*Data!$E$31,IF(E36="Concord Managers",0,IF(E36="Concord",G36*Data!$E$32)))))))))) -> 909.79687 | AF36: 1037.466798 | AN36: 18000 | AP36: محمد صلاح عبد الله محمد سليمان | AQ36: 1947.26 | AR36: 22382 | AS36: NBEGEGCXXXX
A37: 5 | C37: 22389 | D37: Maadi | E37: Maadi | F37: Baker | G37: 1544.24 | H37: 3 | I37: 0.04 | J37: 1904-04-06 | K37: 2015-03-07 | L37: 679.4914778 | M37: 1405.42434 | N37: 0 | O37: 1405.42434 | P37: 0 | Q37: Deserved | R37: Deserved Maadi | S37: 14.96589236 | T37: 15.41365126 | U37: 55.90977702 | V37: 71.32342828 | W37: 2156.239246 | X37: 215.6239246 | Y37: 0 | Z37: 0 | AA37: 0 | AB37: 1940.615321 | AC37: 1.256679869 | AD37: 3484.855321 | AE37: =IF(E37="Mohandseen Managers",0,IF(E37="Mohandssen",G37*Data!$E$28,IF(E37="Maadi Managers",0,IF(E37="Maadi",G37*Data!$E$29,IF(E37="City Stars Managers",0,IF(E37="City Stars",G37*Data!$E$30,IF(E37="MOA Managers",0,IF(E37="MOA",G37*Data!$E$31,IF(E37="Concord Managers",0,IF(E37="Concord",G37*Data!$E$32)))))))))) -> 900.2271831 | AF37: 1040.388138 | AN37: 18000 | AP37: ياسمين احمد عبد الرحمن على العابد | AQ37: 1940.62 | AR37: 22389 | AS37: NBEGEGCXXXX
A38: 6 | C38: 22753 | D38: Maadi | E38: Maadi | F38: Cook | G38: 1236.22 | H38: 3 | I38: 0.04 | J38: 1902-08-04 | K38: 2016-11-18 | L38: 543.9575161 | M38: 1405.42434 | N38: 0 | O38: 1405.42434 | P38: 0 | Q38: Deserved | R38: Deserved Maadi | S38: 11.98073839 | T38: 12.33918559 | U38: 55.90977702 | V38: 68.24896261 | W38: 2017.630819 | X38: 201.7630819 | Y38: 0 | Z38: 0 | AA38: 0 | AB38: 1815.867737 | AC38: 1.468887202 | AD38: 3052.087737 | AE38: =IF(E38="Mohandseen Managers",0,IF(E38="Mohandssen",G38*Data!$E$28,IF(E38="Maadi Managers",0,IF(E38="Maadi",G38*Data!$E$29,IF(E38="City Stars Managers",0,IF(E38="City Stars",G38*Data!$E$30,IF(E38="MOA Managers",0,IF(E38="MOA",G38*Data!$E$31,IF(E38="Concord Managers",0,IF(E38="Concord",G38*Data!$E$32)))))))))) -> 720.6644358 | AF38: 1095.203301 | AN38: 18000 | AP38: محمود احمد محفوظ عبد الغنى | AQ38: 1815.87 | AR38: 22753 | AS38: NBEGEGCXXXX
A39: 7 | C39: 22837 | D39: Maadi | E39: Maadi | F39: Prep | G39: 1301.2 | H39: 3 | I39: 0.04 | J39: 1901-09-09 | K39: 2017-10-17 | L39: 572.549805 | M39: 1405.42434 | N39: 0 | O39: 1405.42434 | P39: 0 | Q39: Deserved | R39: Deserved Maadi | S39: 12.61048745 | T39: 12.98777587 | U39: 55.90977702 | V39: 68.8975529 | W39: 2046.871698 | X39: 204.6871698 | Y39: 0 | Z39: 0 | AA39: 0 | AB39: 1842.184528 | AC39: 1.415758168 | AD39: 3143.384528 | AE39: =IF(E39="Mohandseen Managers",0,IF(E39="Mohandssen",G39*Data!$E$28,IF(E39="Maadi Managers",0,IF(E39="Maadi",G39*Data!$E$29,IF(E39="City Stars Managers",0,IF(E39="City Stars",G39*Data!$E$30,IF(E39="MOA Managers",0,IF(E39="MOA",G39*Data!$E$31,IF(E39="Concord Managers",0,IF(E39="Concord",G39*Data!$E$32)))))))))) -> 758.5450517 | AF39: 1083.639476 | AN39: 18000 | AP39: هبه محمد حسين عبد العزيز | AQ39: 1842.18 | AR39: 22837 | AS39: NBEGEGCXXXX
A40: 8 | C40: 22838 | D40: Maadi | E40: Maadi | F40: Prep | G40: 1289.109836 | H40: 3 | I40: 0.04 | J40: 1901-09-06 | K40: 2017-10-20 | L40: 567.2299303 | M40: 1405.42434 | N40: 0 | O40: 1405.42434 | P40: 0 | Q40: Deserved | R40: Deserved Maadi | S40: 12.49331648 | T40: 12.86709931 | U40: 55.90977702 | V40: 68.77687634 | W40: 2041.431147 | X40: 204.1431147 | Y40: 0 | Z40: 0 | AA40: 0 | AB40: 1837.288032 | AC40: 1.425237773 | AD40: 3126.397868 | AE40: =IF(E40="Mohandseen Managers",0,IF(E40="Mohandssen",G40*Data!$E$28,IF(E40="Maadi Managers",0,IF(E40="Maadi",G40*Data!$E$29,IF(E40="City Stars Managers",0,IF(E40="City Stars",G40*Data!$E$30,IF(E40="MOA Managers",0,IF(E40="MOA",G40*Data!$E$31,IF(E40="Concord Managers",0,IF(E40="Concord",G40*Data!$E$32)))))))))) -> 751.496993 | AF40: 1085.791039 | AN40: 18000 | AP40: دينا محمد مصطفى يوسف | AQ40: 1837.29 | AR40: 22838 | AS40: NBEGEGCXXXX
A41: 9 | C41: 22839 | D41: Maadi | E41: Maadi | F41: Hostess | G41: 1179.844426 | H41: 3 | I41: 0.04 | J41: 1901-08-28 | K41: 2017-10-29 | L41: 519.151319 | M41: 1405.42434 | N41: 0 | O41: 1405.42434 | P41: 0 | Q41: Deserved | R41: Deserved Maadi | S41: 11.43437852 | T41: 11.77647938 | U41: 55.90977702 | V41: 67.68625641 | W41: 1992.261915 | X41: 199.2261915 | Y41: 0 | Z41: 0 | AA41: 0 | AB41: 1793.035724 | AC41: 1.519722163 | AD41: 2972.88015 | AE41: =IF(E41="Mohandseen Managers",0,IF(E41="Mohandssen",G41*Data!$E$28,IF(E41="Maadi Managers",0,IF(E41="Maadi",G41*Data!$E$29,IF(E41="City Stars Managers",0,IF(E41="City Stars",G41*Data!$E$30,IF(E41="MOA Managers",0,IF(E41="MOA",G41*Data!$E$31,IF(E41="Concord Managers",0,IF(E41="Concord",G41*Data!$E$32)))))))))) -> 687.7998396 | AF41: 1105.235884 | AN41: 18000 | AP41: مى عصام يوسف امين محمد | AQ41: 1793.04 | AR41: 22839 | AS41: NBEGEGCXXXX
A42: 10 | C42: 22857 | D42: Maadi | E42: Maadi | F42: Food Server | G42: 1030.819672 | H42: 3 | I42: 0.04 | J42: 1901-06-02 | K42: 2018-01-26 | L42: 453.5779298 | M42: 1405.42434 | N42: 1 | O42: 1359.344853 | P42: 46.07948656 | Q42: Undeserved | R42: Undeserved Maadi | S42: 9.990115688 | T42: 0 | U42: 0 | V42: 0 | W42: 1812.922783 | X42: 181.2922783 | Y42: 0 | Z42: 0 | AA42: 0 | AB42: 1631.630505 | AC42: 1.582847659 | AD42: 2662.450177 | AE42: =IF(E42="Mohandseen Managers",0,IF(E42="Mohandssen",G42*Data!$E$28,IF(E42="Maadi Managers",0,IF(E42="Maadi",G42*Data!$E$29,IF(E42="City Stars Managers",0,IF(E42="City Stars",G42*Data!$E$30,IF(E42="MOA Managers",0,IF(E42="MOA",G42*Data!$E$31,IF(E42="Concord Managers",0,IF(E42="Concord",G42*Data!$E$32)))))))))) -> 600.9246553 | AF42: 1030.70585 | AN42: 18000 | AP42: محمد حسن عباس حسن | AQ42: 1631.63 | AR42: 22857 | AS42: NBEGEGCXXXX
A43: 11 | C43: 22889 | D43: Maadi | E43: Maadi | F43: Hostess | G43: 1056.45 | H43: 3 | I43: 0.04 | J43: 1900-11-28 | K43: 2018-08-02 | L43: 464.8557036 | M43: 1405.42434 | N43: 0 | O43: 1405.42434 | P43: 0 | Q43: Deserved | R43: Deserved Maadi | S43: 10.23851019 | T43: 10.54483233 | U43: 55.90977702 | V43: 66.45460935 | W43: 1936.734653 | X43: 193.6734653 | Y43: 0 | Z43: 0 | AA43: 0 | AB43: 1743.061188 | AC43: 1.649923032 | AD43: 2799.511188 | AE43: =IF(E43="Mohandseen Managers",0,IF(E43="Mohandssen",G43*Data!$E$28,IF(E43="Maadi Managers",0,IF(E43="Maadi",G43*Data!$E$29,IF(E43="City Stars Managers",0,IF(E43="City Stars",G43*Data!$E$30,IF(E43="MOA Managers",0,IF(E43="MOA",G43*Data!$E$31,IF(E43="Concord Managers",0,IF(E43="Concord",G43*Data!$E$32)))))))))) -> 615.866062 | AF43: 1127.195126 | AN43: 18000 | AP43: مريم حسين حنفى حسن عاشور | AQ43: 1743.06 | AR43: 22889 | AS43: NBEGEGCXXXX
A44: 12 | C44: 22906 | D44: Maadi | E44: Maadi | F44: Dishwaser | G44: 924.39 | H44: 1 | I44: 0.04 | J44: 1900-10-13 | K44: 2018-09-18 | L44: 406.7470906 | M44: 1405.42434 | N44: 0 | O44: 1405.42434 | P44: 0 | Q44: Deserved | R44: Deserved Maadi | S44: 8.958660075 | T44: 9.226690855 | U44: 55.90977702 | V44: 65.13646788 | W44: 1877.307898 | X44: 187.7307898 | Y44: 0 | Z44: 0 | AA44: 0 | AB44: 1689.577109 | AC44: 1.827775191 | AD44: 2613.967109 | AE44: =IF(E44="Mohandseen Managers",0,IF(E44="Mohandssen",G44*Data!$E$28,IF(E44="Maadi Managers",0,IF(E44="Maadi",G44*Data!$E$29,IF(E44="City Stars Managers",0,IF(E44="City Stars",G44*Data!$E$30,IF(E44="MOA Managers",0,IF(E44="MOA",G44*Data!$E$31,IF(E44="Concord Managers",0,IF(E44="Concord",G44*Data!$E$32)))))))))) -> 538.8806182 | AF44: 1150.69649 | AP44: محمد ايمن محمد بسطاوى | AQ44: 1689.58
A45: 13 | C45: 20490 | D45: Maadi | E45: Maadi | F45: C.T - Cook | G45: 2922.506667 | H45: 4 | I45: 0.08 | J45: 1913-08-23 | K45: 2005-09-01 | L45: 1285.951908 | M45: 1405.42434 | N45: 0 | O45: 1405.42434 | P45: 0 | Q45: Deserved | R45: Deserved Maadi | S45: 28.32326593 | T45: 29.17065907 | U45: 55.90977702 | V45: 85.08043609 | W45: 2776.456684 | X45: 277.6456684 | Y45: 0 | Z45: 0 | AA45: 0 | AB45: 2498.811015 | AC45: 0.8550232045 | AD45: 5421.317682 | AE45: =IF(E45="Mohandseen Managers",0,IF(E45="Mohandssen",G45*Data!$E$28,IF(E45="Maadi Managers",0,IF(E45="Maadi",G45*Data!$E$29,IF(E45="City Stars Managers",0,IF(E45="City Stars",G45*Data!$E$30,IF(E45="MOA Managers",0,IF(E45="MOA",G45*Data!$E$31,IF(E45="Concord Managers",0,IF(E45="Concord",G45*Data!$E$32)))))))))) -> 1703.698871 | AF45: 795.1121446 | AN45: 18000 | AP45: ابراهيم بدوى محمد محمود | AQ45: 2498.81 | AR45: 20490 | AS45: NBEGEGCXXXX
A46: 14 | C46: 22914 | D46: Maadi | E46: Maadi | F46: Dishwaser | G46: 46.52114754 | H46: 1 | I46: 0.04 | J46: 1900-08-03 | K46: 2018-11-29 | L46: 20.4700845 | M46: 1405.42434 | N46: =30-5 -> 25 | O46: 253.4371761 | P46: 1151.987164 | Q46: Undeserved | R46: Undeserved Maadi | S46: 0.4508563995 | T46: 0 | U46: 0 | V46: 0 | W46: 273.9072606 | X46: 27.39072606 | Y46: 0 | Z46: 0 | AA46: 0 | AB46: 246.5165345 | AC46: 5.29902093 | AD46: 293.0376821 | AE46: =IF(E46="Mohandseen Managers",0,IF(E46="Mohandssen",G46*Data!$E$28,IF(E46="Maadi Managers",0,IF(E46="Maadi",G46*Data!$E$29,IF(E46="City Stars Managers",0,IF(E46="City Stars",G46*Data!$E$30,IF(E46="MOA Managers",0,IF(E46="MOA",G46*Data!$E$31,IF(E46="Concord Managers",0,IF(E46="Concord",G46*Data!$E$32)))))))))) -> 27.11987878 | AF46: 219.3966557 | AP46: اسلام تامر حسين عبد العظيم | AQ46: 246.52
A47: 1 | C47: 20075 | D47: City Stars | E47: City Stars Managers | F47: S R .Assistant Manager | G47: 6577.2 | H47: 9 | I47: 0.1 | J47: 1917-07-03 | K47: 2001-10-01 | L47: 1685.699221 | M47: 3474.68184 | N47: 0 | O47: 3474.68184 | P47: 0 | Q47: Deserved | R47: Deserved City Stars | S47: 161.472164 | T47: 171.1657608 | U47: 155.5235141 | V47: 326.6892748 | W47: 5487.070336 | X47: 548.7070336 | Y47: 0 | Z47: 0 | AA47: 0 | AB47: 4938.363303 | AC47: 0.7508306426 | AD47: 11515.5633 | AE47: =IF(E47="Mohandseen Managers",0,IF(E47="Mohandssen",G47*Data!$E$28,IF(E47="Maadi Managers",0,IF(E47="Maadi",G47*Data!$E$29,IF(E47="City Stars Managers",0,IF(E47="City Stars",G47*Data!$E$30,IF(E47="MOA Managers",0,IF(E47="MOA",G47*Data!$E$31,IF(E47="Concord Managers",0,IF(E47="Concord",G47*Data!$E$32)))))))))) -> 0 | AF47: 4938.363303 | AN47: 18000 | AP47: عمر أحمد اسماعيل حسن | AQ47: 4938.36 | AR47: 20075 | AS47: NBEGEGCXXXX
A48: 2 | C48: 20060 | D48: City Stars | E48: City Stars Managers | F48: S R .Assistant Manager | G48: 6577.2 | H48: 9 | I48: 0.1 | J48: 1917-10-18 | K48: 2001-06-14 | L48: =IF(E48="Mohandseen Managers",$X$7*G48,IF(E48="Mohandssen",$W$7*G48,IF(E48="Maadi Managers",$X$8*G48,IF(E48="Maadi",$W$8*G48,IF(E48="City Stars Managers",$X$9*G48,IF(E48="City Stars",$W$9*G48,IF(E48="MOA Managers",$X$10*G48,IF(E48="MOA",$W$10*G48,IF(E48="Concord Managers",$X$11*G48,IF(E48="Concord",$W$11*G48)))))))))) -> 1685.699221 | M48: =IF(E48="Mohandseen Managers",$T$7,IF(E48="Mohandssen",$S$7,IF(E48="Maadi Managers",$T$8,IF(E48="Maadi",$S$8,IF(E48="City Stars Managers",$T$9,IF(E48="City Stars",$S$9,IF(E48="MOA Managers",$T$10,IF(E48="MOA",$S$10,IF(E48="Concord Managers",$T$11,IF(E48="Concord",$S$11)))))))))) -> 3474.68184 | N48: 0 | O48: =(M48-(M48/30.5)*N48) -> 3474.68184 | P48: 0 | Q48: Deserved | R48: Deserved City Stars | S48: 161.472164 | T48: 171.1657608 | U48: 155.5235141 | V48: 326.6892748 | W48: 5487.070336 | X48: 548.7070336 | Y48: 0 | Z48: 0 | AA48: 0 | AB48: 4938.363303 | AC48: =IFERROR(AB48/G48,0) -> 0.7508306426 | AD48: =G48+AB48 -> 11515.5633 | AE48: =IF(E48="Mohandseen Managers",0,IF(E48="Mohandssen",G48*Data!$E$28,IF(E48="Maadi Managers",0,IF(E48="Maadi",G48*Data!$E$29,IF(E48="City Stars Managers",0,IF(E48="City Stars",G48*Data!$E$30,IF(E48="MOA Managers",0,IF(E48="MOA",G48*Data!$E$31,IF(E48="Concord Managers",0,IF(E48="Concord",G48*Data!$E$32)))))))))) -> 0 | AF48: 4938.363303 | AN48: 18000 | AP48: فارس زينهم السيد خليل | AQ48: 4938.36 | AR48: 20060 | AS48: NBEGEGCXXXX
A49: 3 | C49: 21716 | D49: City Stars | E49: City Stars Managers | F49: S R .Assistant Manager | G49: 4276.526667 | H49: 9 | I49: 0.1 | J49: 1907-02-03 | K49: 2012-04-24 | L49: 1096.049637 | M49: 3474.68184 | N49: 0 | O49: 3474.68184 | P49: 0 | Q49: Deserved | R49: Deserved City Stars | S49: 104.9899676 | T49: 111.2927903 | U49: 155.5235141 | V49: 266.8163043 | W49: 4837.547781 | X49: 483.7547781 | Y49: 0 | Z49: 0 | AA49: 0 | AB49: 4353.793003 | AC49: 1.018067545 | AD49: 8630.31967 | AE49: =IF(E49="Mohandseen Managers",0,IF(E49="Mohandssen",G49*Data!$E$28,IF(E49="Maadi Managers",0,IF(E49="Maadi",G49*Data!$E$29,IF(E49="City Stars Managers",0,IF(E49="City Stars",G49*Data!$E$30,IF(E49="MOA Managers",0,IF(E49="MOA",G49*Data!$E$31,IF(E49="Concord Managers",0,IF(E49="Concord",G49*Data!$E$32)))))))))) -> 0 | AF49: 4353.793003 | AN49: 18000 | AP49: وائل محمد السيد ابراهيم دسوقى | AQ49: 4353.79 | AR49: 21716 | AS49: NBEGEGCXXXX
A50: 1 | C50: 21162 | D50: City Stars | E50: City Stars | F50: Store Keeper | G50: 2069.44 | H50: 3 | I50: 0.04 | J50: 1910-10-08 | K50: 2008-08-01 | L50: 1323.518065 | M50: 2684.981422 | N50: 0 | O50: 2684.981422 | P50: 0 | Q50: Deserved | R50: Deserved City Stars | S50: 50.80535106 | T50: 53.85532931 | U50: 155.5235141 | V50: 209.3788434 | W50: 4217.87833 | X50: 421.787833 | Y50: 0 | Z50: 0 | AA50: 0 | AB50: 3796.090497 | AC50: 1.834356394 | AD50: 5865.530497 | AE50: =IF(E50="Mohandseen Managers",0,IF(E50="Mohandssen",G50*Data!$E$28,IF(E50="Maadi Managers",0,IF(E50="Maadi",G50*Data!$E$29,IF(E50="City Stars Managers",0,IF(E50="City Stars",G50*Data!$E$30,IF(E50="MOA Managers",0,IF(E50="MOA",G50*Data!$E$31,IF(E50="Concord Managers",0,IF(E50="Concord",G50*Data!$E$32)))))))))) -> 1753.468554 | AF50: 2042.621943 | AN50: 18000 | AP50: صابر سيد عجمى مصطفى | AQ50: 3796.09 | AR50: 21162 | AS50: NBEGEGCXXXX
A51: 2 | C51: 21554 | D51: City Stars | E51: City Stars | F51: C.T - Cook | G51: 2712.846667 | H51: 4 | I51: 0.08 | J51: 1908-01-24 | K51: 2011-04-29 | L51: 1735.011196 | M51: 2684.981422 | N51: 0 | O51: 2684.981422 | P51: 0 | Q51: Deserved | R51: Deserved City Stars | S51: 66.60117098 | T51: 70.59941366 | U51: 155.5235141 | V51: 226.1229277 | W51: 4646.115546 | X51: 464.6115546 | Y51: 0 | Z51: 0 | AA51: 0 | AB51: 4181.503991 | AC51: 1.541371299 | AD51: 6894.350658 | AE51: =IF(E51="Mohandseen Managers",0,IF(E51="Mohandssen",G51*Data!$E$28,IF(E51="Maadi Managers",0,IF(E51="Maadi",G51*Data!$E$29,IF(E51="City Stars Managers",0,IF(E51="City Stars",G51*Data!$E$30,IF(E51="MOA Managers",0,IF(E51="MOA",G51*Data!$E$31,IF(E51="Concord Managers",0,IF(E51="Concord",G51*Data!$E$32)))))))))) -> 2298.636985 | AF51: 1882.867006 | AN51: 18000 | AP51: سيد محمد علام محمد | AQ51: 4181.5 | AR51: 21554 | AS51: NBEGEGCXXXX
A52: 3 | C52: 30168 | D52: City Stars | E52: City Stars | F52: C.T - Food Server | G52: 2387.4 | H52: 4 | I52: 0.08 | J52: 1910-04-22 | K52: 2009-01-20 | L52: 1526.870568 | M52: 2684.981422 | N52: 0 | O52: 2684.981422 | P52: 0 | Q52: Deserved | R52: Deserved City Stars | S52: 58.6113611 | T52: 62.12995457 | U52: 155.5235141 | V52: 217.6534686 | W52: 4429.505458 | X52: 442.9505458 | Y52: 0 | Z52: 0 | AA52: 0 | AB52: 3986.554912 | AC52: 1.66983116 | AD52: 6373.954912 | AE52: =IF(E52="Mohandseen Managers",0,IF(E52="Mohandssen",G52*Data!$E$28,IF(E52="Maadi Managers",0,IF(E52="Maadi",G52*Data!$E$29,IF(E52="City Stars Managers",0,IF(E52="City Stars",G52*Data!$E$30,IF(E52="MOA Managers",0,IF(E52="MOA",G52*Data!$E$31,IF(E52="Concord Managers",0,IF(E52="Concord",G52*Data!$E$32)))))))))) -> 2022.880985 | AF52: 1963.673927 | AN52: 18000 | AP52: عبد العظيم السيد عبد العظيم جربيده | AQ52: 3986.55 | AR52: 30168 | AS52: NBEGEGCXXXX
A53: 4 | C53: 30277 | D53: City Stars | E53: City Stars | F53: C.T - Cook | G53: 2309.62 | H53: 4 | I53: 0.08 | J53: 1908-01-14 | K53: 2011-05-09 | L53: 1477.126079 | M53: 2684.981422 | N53: 0 | O53: 2684.981422 | P53: 0 | Q53: Deserved | R53: Deserved City Stars | S53: 56.70183959 | T53: 60.10579948 | U53: 155.5235141 | V53: 215.6293135 | W53: 4377.736814 | X53: 437.7736814 | Y53: 0 | Z53: 0 | AA53: 0 | AB53: 3939.963133 | AC53: 1.705892369 | AD53: 6249.583133 | AE53: =IF(E53="Mohandseen Managers",0,IF(E53="Mohandssen",G53*Data!$E$28,IF(E53="Maadi Managers",0,IF(E53="Maadi",G53*Data!$E$29,IF(E53="City Stars Managers",0,IF(E53="City Stars",G53*Data!$E$30,IF(E53="MOA Managers",0,IF(E53="MOA",G53*Data!$E$31,IF(E53="Concord Managers",0,IF(E53="Concord",G53*Data!$E$32)))))))))) -> 1956.976787 | AF53: 1982.986346 | AN53: 18000 | AP53: ابراهيم قرنى بكرى محمد | AQ53: 3939.96 | AR53: 30277 | AS53: NBEGEGCXXXX
A54: 5 | C54: 22022 | D54: City Stars | E54: City Stars | F54: Food Server | G54: 1634.99 | H54: 3 | I54: 0.04 | J54: 1905-07-23 | K54: 2013-11-14 | L54: 1045.663948 | M54: 2684.981422 | N54: 0 | O54: 2684.981422 | P54: 0 | Q54: Deserved | R54: Deserved City Stars | S54: 40.1394778 | T54: 42.54915575 | U54: 155.5235141 | V54: 198.0726698 | W54: 3928.71804 | X54: 392.871804 | Y54: 0 | Z54: 0 | AA54: 0 | AB54: 3535.846236 | AC54: 2.162610313 | AD54: 5170.836236 | AE54: =IF(E54="Mohandseen Managers",0,IF(E54="Mohandssen",G54*Data!$E$28,IF(E54="Maadi Managers",0,IF(E54="Maadi",G54*Data!$E$29,IF(E54="City Stars Managers",0,IF(E54="City Stars",G54*Data!$E$30,IF(E54="MOA Managers",0,IF(E54="MOA",G54*Data!$E$31,IF(E54="Concord Managers",0,IF(E54="Concord",G54*Data!$E$32)))))))))) -> 1385.352342 | AF54: 2150.493893 | AN54: 18000 | AP54: محمود ابراهيم محمد سليمان نويره | AQ54: 3535.85 | AR54: 22022 | AS54: NBEGEGCXXXX
A55: 6 | C55: 22066 | D55: City Stars | E55: City Stars | F55: Hostess | G55: 1611.29 | H55: 3 | I55: 0.04 | J55: 1905-05-07 | K55: 2014-02-01 | L55: 1030.506525 | M55: 2684.981422 | N55: 0 | O55: 2684.981422 | P55: 0 | Q55: Deserved | R55: Deserved City Stars | S55: 39.55763594 | T55: 41.93238439 | U55: 155.5235141 | V55: 197.4558984 | W55: 3912.943845 | X55: 391.2943845 | Y55: 0 | Z55: 0 | AA55: 0 | AB55: 3521.64946 | AC55: 2.185608711 | AD55: 5132.93946 | AE55: =IF(E55="Mohandseen Managers",0,IF(E55="Mohandssen",G55*Data!$E$28,IF(E55="Maadi Managers",0,IF(E55="Maadi",G55*Data!$E$29,IF(E55="City Stars Managers",0,IF(E55="City Stars",G55*Data!$E$30,IF(E55="MOA Managers",0,IF(E55="MOA",G55*Data!$E$31,IF(E55="Concord Managers",0,IF(E55="Concord",G55*Data!$E$32)))))))))) -> 1365.270965 | AF55: 2156.378495 | AN55: 18000 | AP55: ايمان عبد المحسن حسن حسن | AQ55: 3521.65 | AR55: 22066 | AS55: NBEGEGCXXXX
A56: 7 | C56: 22201 | D56: City Stars | E56: City Stars | F56: C.T - Baker | G56: 1698.551803 | H56: 4 | I56: 0.08 | J56: 1904-06-11 | K56: 2015-01-01 | L56: 1086.315136 | M56: 2684.981422 | N56: 1 | O56: 2596.949244 | P56: 88.03217776 | Q56: Undeserved | R56: Undeserved City Stars | S56: 41.69993847 | T56: 0 | U56: 0 | V56: 0 | W56: 3683.26438 | X56: 368.326438 | Y56: 0 | Z56: 0 | AA56: 0 | AB56: 3314.937942 | AC56: 1.951626047 | AD56: 5013.489746 | AE56: =IF(E56="Mohandseen Managers",0,IF(E56="Mohandssen",G56*Data!$E$28,IF(E56="Maadi Managers",0,IF(E56="Maadi",G56*Data!$E$29,IF(E56="City Stars Managers",0,IF(E56="City Stars",G56*Data!$E$30,IF(E56="MOA Managers",0,IF(E56="MOA",G56*Data!$E$31,IF(E56="Concord Managers",0,IF(E56="Concord",G56*Data!$E$32)))))))))) -> 1439.209242 | AF56: 1875.7287 | AN56: 18000 | AP56: علا عاشور محمد عبد الهادى اسماعيل | AQ56: 3314.94 | AR56: 22201 | AS56: NBEGEGCXXXX
A57: 8 | C57: 22448 | D57: City Stars | E57: City Stars | F57: Cook | G57: 1544.24 | H57: 3 | I57: 0.04 | J57: 1903-12-31 | K57: 2015-06-14 | L57: 987.6244473 | M57: 2684.981422 | N57: 0 | O57: 2684.981422 | P57: 0 | Q57: Deserved | R57: Deserved City Stars | S57: 37.91153903 | T57: 40.18746798 | U57: 155.5235141 | V57: 195.710982 | W57: 3868.316851 | X57: 386.8316851 | Y57: 0 | Z57: 0 | AA57: 0 | AB57: 3481.485166 | AC57: 2.254497465 | AD57: 5025.725166 | AE57: =IF(E57="Mohandseen Managers",0,IF(E57="Mohandssen",G57*Data!$E$28,IF(E57="Maadi Managers",0,IF(E57="Maadi",G57*Data!$E$29,IF(E57="City Stars Managers",0,IF(E57="City Stars",G57*Data!$E$30,IF(E57="MOA Managers",0,IF(E57="MOA",G57*Data!$E$31,IF(E57="Concord Managers",0,IF(E57="Concord",G57*Data!$E$32)))))))))) -> 1308.458462 | AF57: 2173.026704 | AN57: 18000 | AP57: حسن سعيد ابو ضيف على | AQ57: 3481.49 | AR57: 22448 | AS57: NBEGEGCXXXX
A58: 9 | C58: 40004 | D58: City Stars | E58: City Stars | F58: C.T - Cook | G58: 2918.056667 | H58: 4 | I58: 0.08 | J58: 1912-03-22 | K58: 2007-02-10 | L58: 1866.254017 | M58: 2684.981422 | N58: 0 | O58: 2684.981422 | P58: 0 | Q58: Deserved | R58: Deserved City Stars | S58: 71.63913589 | T58: 75.93982078 | U58: 155.5235141 | V58: 231.4633348 | W58: 4782.698773 | X58: 478.2698773 | Y58: 0 | Z58: 0 | AA58: 0 | AB58: 4304.428896 | AC58: 1.475101202 | AD58: 7222.485563 | AE58: =IF(E58="Mohandseen Managers",0,IF(E58="Mohandssen",G58*Data!$E$28,IF(E58="Maadi Managers",0,IF(E58="Maadi",G58*Data!$E$29,IF(E58="City Stars Managers",0,IF(E58="City Stars",G58*Data!$E$30,IF(E58="MOA Managers",0,IF(E58="MOA",G58*Data!$E$31,IF(E58="Concord Managers",0,IF(E58="Concord",G58*Data!$E$32)))))))))) -> 2472.514595 | AF58: 1831.914301 | AN58: 18000 | AP58: مصطفى محمود محمود احمد شريف | AQ58: 4304.43 | AR58: 40004 | AS58: NBEGEGCXXXX
A59: 10 | C59: 20127 | D59: City Stars | E59: City Stars | F59: C.T - Prep | G59: 3292.656667 | H59: 4 | I59: 0.08 | J59: 1917-05-04 | K59: 2001-12-01 | L59: 2105.830843 | M59: 2684.981422 | N59: 0 | O59: 2684.981422 | P59: 0 | Q59: Deserved | R59: Deserved City Stars | S59: 80.83567433 | T59: 85.68845151 | U59: 155.5235141 | V59: 241.2119656 | W59: 5032.02423 | X59: 503.202423 | Y59: 0 | Z59: 0 | AA59: 0 | AB59: 4528.821807 | AC59: 1.375430926 | AD59: 7821.478474 | AE59: =IF(E59="Mohandseen Managers",0,IF(E59="Mohandssen",G59*Data!$E$28,IF(E59="Maadi Managers",0,IF(E59="Maadi",G59*Data!$E$29,IF(E59="City Stars Managers",0,IF(E59="City Stars",G59*Data!$E$30,IF(E59="MOA Managers",0,IF(E59="MOA",G59*Data!$E$31,IF(E59="Concord Managers",0,IF(E59="Concord",G59*Data!$E$32)))))))))) -> 2789.918976 | AF59: 1738.902832 | AN59: 18000 | AP59: مختار صابر أحمد هشهش | AQ59: 4528.82 | AR59: 20127 | AS59: NBEGEGCXXXX
A60: 11 | C60: 20646 | D60: City Stars | E60: City Stars | F60: C.T - Prep | G60: 2986.226667 | H60: 4 | I60: 0.08 | J60: 1913-01-11 | K60: 2006-04-15 | L60: 1909.852394 | M60: 2684.981422 | N60: 0 | O60: 2684.981422 | P60: 0 | Q60: Deserved | R60: Deserved City Stars | S60: 73.31272912 | T60: 77.7138842 | U60: 155.5235141 | V60: 233.2373983 | W60: 4828.071214 | X60: 482.8071214 | Y60: 0 | Z60: 0 | AA60: 0 | AB60: 4345.264093 | AC60: 1.455101899 | AD60: 7331.49076 | AE60: =IF(E60="Mohandseen Managers",0,IF(E60="Mohandssen",G60*Data!$E$28,IF(E60="Maadi Managers",0,IF(E60="Maadi",G60*Data!$E$29,IF(E60="City Stars Managers",0,IF(E60="City Stars",G60*Data!$E$30,IF(E60="MOA Managers",0,IF(E60="MOA",G60*Data!$E$31,IF(E60="Concord Managers",0,IF(E60="Concord",G60*Data!$E$32)))))))))) -> 2530.276092 | AF60: 1814.988001 | AN60: 18000 | AP60: ابراهيم فاروق ابراهيم أحمد | AQ60: 4345.26 | AR60: 20646 | AS60: NBEGEGCXXXX
A61: 12 | C61: 22770 | D61: City Stars | E61: City Stars | F61: Food Server | G61: 1190.91 | H61: 3 | I61: 0.04 | J61: 1902-04-15 | K61: 2017-03-09 | L61: 761.650929 | M61: 2684.981422 | N61: 0 | O61: 2684.981422 | P61: 0 | Q61: Deserved | R61: Deserved City Stars | S61: 29.23718524 | T61: 30.99237003 | U61: 155.5235141 | V61: 186.5158841 | W61: 3633.148235 | X61: 363.3148235 | Y61: 0 | Z61: 0 | AA61: 0 | AB61: 3269.833411 | AC61: 2.745659547 | AD61: 4460.743411 | AE61: =IF(E61="Mohandseen Managers",0,IF(E61="Mohandssen",G61*Data!$E$28,IF(E61="Maadi Managers",0,IF(E61="Maadi",G61*Data!$E$29,IF(E61="City Stars Managers",0,IF(E61="City Stars",G61*Data!$E$30,IF(E61="MOA Managers",0,IF(E61="MOA",G61*Data!$E$31,IF(E61="Concord Managers",0,IF(E61="Concord",G61*Data!$E$32)))))))))) -> 1009.076482 | AF61: 2260.756929 | AN61: 18000 | AP61: احمد محمد مرسى محمد | AQ61: 3269.83 | AR61: 22770 | AS61: NBEGEGCXXXX
A62: 13 | C62: 21260 | D62: City Stars | E62: City Stars | F62: C.T - Food Server | G62: 2466.663333 | H62: 4 | I62: 0.08 | J62: 1910-04-22 | K62: 2009-01-20 | L62: 1577.563728 | M62: 2684.981422 | N62: 0 | O62: 2684.981422 | P62: 0 | Q62: Deserved | R62: Deserved City Stars | S62: 60.55729888 | T62: 64.19271209 | U62: 155.5235141 | V62: 219.7162261 | W62: 4482.261376 | X62: 448.2261376 | Y62: 0 | Z62: 0 | AA62: 0 | AB62: 4034.035238 | AC62: 1.635421901 | AD62: 6500.698572 | AE62: =IF(E62="Mohandseen Managers",0,IF(E62="Mohandssen",G62*Data!$E$28,IF(E62="Maadi Managers",0,IF(E62="Maadi",G62*Data!$E$29,IF(E62="City Stars Managers",0,IF(E62="City Stars",G62*Data!$E$30,IF(E62="MOA Managers",0,IF(E62="MOA",G62*Data!$E$31,IF(E62="Concord Managers",0,IF(E62="Concord",G62*Data!$E$32)))))))))) -> 2090.042035 | AF62: 1943.993203 | AN62: 18000 | AP62: محمد فتحى عطية أحمد | AQ62: 4034.04 | AR62: 21260 | AS62: NBEGEGCXXXX
A63: 14 | C63: 22831 | D63: City Stars | E63: City Stars | F63: Hostess | G63: 1146.647705 | H63: 3 | I63: 0.04 | J63: 1901-09-14 | K63: 2017-10-12 | L63: 733.3428132 | M63: 2684.981422 | N63: 0 | O63: 2684.981422 | P63: 0 | Q63: Deserved | R63: Deserved City Stars | S63: 28.15053309 | T63: 29.84048329 | U63: 155.5235141 | V63: 185.3639973 | W63: 3603.688232 | X63: 360.3688232 | Y63: 0 | Z63: 0 | AA63: 0 | AB63: 3243.319409 | AC63: 2.828523002 | AD63: 4389.967114 | AE63: =IF(E63="Mohandseen Managers",0,IF(E63="Mohandssen",G63*Data!$E$28,IF(E63="Maadi Managers",0,IF(E63="Maadi",G63*Data!$E$29,IF(E63="City Stars Managers",0,IF(E63="City Stars",G63*Data!$E$30,IF(E63="MOA Managers",0,IF(E63="MOA",G63*Data!$E$31,IF(E63="Concord Managers",0,IF(E63="Concord",G63*Data!$E$32)))))))))) -> 971.5723545 | AF63: 2271.747055 | AN63: 18000 | AP63: ايمان صلاح الدين ابو العلا ابراهيم | AQ63: 3243.32 | AR63: 22831 | AS63: NBEGEGCXXXX
A64: 15 | C64: 22844 | D64: City Stars | E64: City Stars | F64: Food Server | G64: 1190.91 | H64: 3 | I64: 0.04 | J64: 1901-08-12 | K64: 2017-11-15 | L64: 761.650929 | M64: 2684.981422 | N64: 0 | O64: 2684.981422 | P64: 0 | Q64: Deserved | R64: Deserved City Stars | S64: 29.23718524 | T64: 30.99237003 | U64: 155.5235141 | V64: 186.5158841 | W64: 3633.148235 | X64: 363.3148235 | Y64: 0 | Z64: 0 | AA64: 0 | AB64: 3269.833411 | AC64: 2.745659547 | AD64: 4460.743411 | AE64: =IF(E64="Mohandseen Managers",0,IF(E64="Mohandssen",G64*Data!$E$28,IF(E64="Maadi Managers",0,IF(E64="Maadi",G64*Data!$E$29,IF(E64="City Stars Managers",0,IF(E64="City Stars",G64*Data!$E$30,IF(E64="MOA Managers",0,IF(E64="MOA",G64*Data!$E$31,IF(E64="Concord Managers",0,IF(E64="Concord",G64*Data!$E$32)))))))))) -> 1009.076482 | AF64: 2260.756929 | AN64: 18000 | AP64: خلود سعد محمد السيد منصور | AQ64: 3269.83 | AR64: 22844 | AS64: NBEGEGCXXXX
A65: 16 | C65: 20095 | D65: City Stars | E65: City Stars | F65: Cook | G65: 2909.186667 | H65: 3 | I65: 0.04 | J65: 1917-07-03 | K65: 2001-10-01 | L65: 1860.581175 | M65: 2684.981422 | N65: 0 | O65: 2684.981422 | P65: 0 | Q65: Deserved | R65: Deserved City Stars | S65: 71.42137482 | T65: 75.70898695 | U65: 155.5235141 | V65: 231.232501 | W65: 4776.795098 | X65: 477.6795098 | Y65: 0 | Z65: 0 | AA65: 0 | AB65: 4299.115588 | AC65: 1.47777234 | AD65: 7208.302255 | AE65: =IF(E65="Mohandseen Managers",0,IF(E65="Mohandssen",G65*Data!$E$28,IF(E65="Maadi Managers",0,IF(E65="Maadi",G65*Data!$E$29,IF(E65="City Stars Managers",0,IF(E65="City Stars",G65*Data!$E$30,IF(E65="MOA Managers",0,IF(E65="MOA",G65*Data!$E$31,IF(E65="Concord Managers",0,IF(E65="Concord",G65*Data!$E$32)))))))))) -> 2464.998907 | AF65: 1834.116681 | AN65: 18000 | AP65: محمد طه حبيب طه | AQ65: 4299.12 | AR65: 20095 | AS65: NBEGEGCXXXX
A66: 17 | C66: 22767 | D66: City Stars | E66: City Stars | F66: Host | G66: 58.61 | H66: 3 | I66: 0.04 | J66: 1902-05-17 | K66: 2017-02-07 | L66: 37.48424394 | M66: 2684.981422 | N66: =30-2 -> 28 | O66: 220.0804444 | P66: 2464.900977 | Q66: Undeserved | R66: Undeserved City Stars | S66: 1.438892466 | T66: 0 | U66: 0 | V66: 0 | W66: 257.5646883 | X66: 25.75646883 | Y66: 0 | Z66: 0 | AA66: 0 | AB66: 231.8082195 | AC66: 3.955096733 | AD66: 290.4182195 | AE66: =IF(E66="Mohandseen Managers",0,IF(E66="Mohandssen",G66*Data!$E$28,IF(E66="Maadi Managers",0,IF(E66="Maadi",G66*Data!$E$29,IF(E66="City Stars Managers",0,IF(E66="City Stars",G66*Data!$E$30,IF(E66="MOA Managers",0,IF(E66="MOA",G66*Data!$E$31,IF(E66="Concord Managers",0,IF(E66="Concord",G66*Data!$E$32)))))))))) -> 49.66116049 | AF66: 182.147059 | AN66: 18000 | AP66: ابراهيم مجدى ابراهيم موسى | AQ66: 231.81 | AR66: 22767 | AS66: NBEGEGCXXXX
A67: 18 | C67: 22163 | D67: City Stars | E67: City Stars | F67: Food Server | G67: 412.46 | H67: 3 | I67: 0.04 | J67: 1900-10-23 | K67: 2018-09-08 | L67: 263.7903302 | M67: 2684.981422 | N67: =30-8 -> 22 | O67: 748.273511 | P67: 1936.707911 | Q67: Undeserved | R67: Undeserved City Stars | S67: 10.1260124 | T67: 0 | U67: 0 | V67: 0 | W67: 1012.063841 | X67: 101.2063841 | Y67: 0 | Z67: 0 | AA67: 0 | AB67: 910.8574571 | AC67: 2.208353433 | AD67: 1323.317457 | AE67: =IF(E67="Mohandseen Managers",0,IF(E67="Mohandssen",G67*Data!$E$28,IF(E67="Maadi Managers",0,IF(E67="Maadi",G67*Data!$E$29,IF(E67="City Stars Managers",0,IF(E67="City Stars",G67*Data!$E$30,IF(E67="MOA Managers",0,IF(E67="MOA",G67*Data!$E$31,IF(E67="Concord Managers",0,IF(E67="Concord",G67*Data!$E$32)))))))))) -> 349.4837443 | AF67: 561.3737128 | AP67: اسلام عماد الدين محمد شاهين | AQ67: 910.86
A68: 19 | C68: 22443 | D68: City Stars | E68: City Stars | F68: Food Server | G68: 1359.360984 | H68: 3 | I68: 0.04 | J68: 1903-06-17 | K68: 2016-01-01 | L68: 869.3843833 | M68: 2684.981422 | N68: 0 | O68: 2684.981422 | P68: 0 | Q68: Deserved | R68: Deserved City Stars | S68: 33.37270566 | T68: 35.37615655 | U68: 155.5235141 | V68: 190.8996706 | W68: 3745.265476 | X68: 374.5265476 | Y68: 0 | Z68: 0 | AA68: 0 | AB68: 3370.738928 | AC68: 2.479649607 | AD68: 4730.099912 | AE68: =IF(E68="Mohandseen Managers",0,IF(E68="Mohandssen",G68*Data!$E$28,IF(E68="Maadi Managers",0,IF(E68="Maadi",G68*Data!$E$29,IF(E68="City Stars Managers",0,IF(E68="City Stars",G68*Data!$E$30,IF(E68="MOA Managers",0,IF(E68="MOA",G68*Data!$E$31,IF(E68="Concord Managers",0,IF(E68="Concord",G68*Data!$E$32)))))))))) -> 1151.807609 | AF68: 2218.931319 | AN68: 18000 | AP68: محمد حسام الدين عبد الرسول المتولى | AQ68: 3370.74 | AR68: 22443 | AS68: NBEGEGCXXXX
A69: 20 | C69: 22909 | D69: City Stars | E69: City Stars | F69: Cook | G69: 1059.244098 | H69: 3 | I69: 0.04 | J69: 1900-09-12 | K69: 2018-10-19 | L69: 677.4435109 | M69: 2684.981422 | N69: 2 | O69: 2508.917066 | P69: 176.0643555 | Q69: Undeserved | R69: Undeserved City Stars | S69: 26.00474924 | T69: 0 | U69: 0 | V69: 0 | W69: 3186.360577 | X69: 318.6360577 | Y69: 0 | Z69: 0 | AA69: 0 | AB69: 2867.724519 | AC69: 2.707331128 | AD69: 3926.968618 | AE69: =IF(E69="Mohandseen Managers",0,IF(E69="Mohandssen",G69*Data!$E$28,IF(E69="Maadi Managers",0,IF(E69="Maadi",G69*Data!$E$29,IF(E69="City Stars Managers",0,IF(E69="City Stars",G69*Data!$E$30,IF(E69="MOA Managers",0,IF(E69="MOA",G69*Data!$E$31,IF(E69="Concord Managers",0,IF(E69="Concord",G69*Data!$E$32)))))))))) -> 897.5139254 | AF69: 1970.210594 | AP69: محمود محمد احمد عبد الله ابو سريع | AQ69: 2867.72
A70: 21 | C70: 22155 | D70: City Stars | E70: City Stars | F70: Cook | G70: 1543.82 | H70: 3 | I70: 0.04 | J70: 1901-08-26 | K70: 2017-11-01 | L70: 987.3558348 | M70: 2684.981422 | N70: 0 | O70: 2684.981422 | P70: 0 | Q70: Deserved | R70: Deserved City Stars | S70: 37.90122791 | T70: 40.17653785 | U70: 155.5235141 | V70: 195.7000519 | W70: 3868.037308 | X70: 386.8037308 | Y70: 0 | Z70: 0 | AA70: 0 | AB70: 3481.233578 | AC70: 2.254947842 | AD70: 5025.053578 | AE70: =IF(E70="Mohandseen Managers",0,IF(E70="Mohandssen",G70*Data!$E$28,IF(E70="Maadi Managers",0,IF(E70="Maadi",G70*Data!$E$29,IF(E70="City Stars Managers",0,IF(E70="City Stars",G70*Data!$E$30,IF(E70="MOA Managers",0,IF(E70="MOA",G70*Data!$E$31,IF(E70="Concord Managers",0,IF(E70="Concord",G70*Data!$E$32)))))))))) -> 1308.10259 | AF70: 2173.130988 | AN70: 18000 | AP70: محمد كمال حسنى امين اسماعيل | AQ70: 3481.23 | AR70: 22155 | AS70: NBEGEGCXXXX
A71: 22 | C71: 22862 | D71: City Stars | E71: City Stars | F71: Food Server | G71: 1080 | H71: 3 | I71: 0.04 | J71: 1901-04-19 | K71: 2018-03-10 | L71: 690.7180251 | M71: 2684.981422 | N71: 0 | O71: 2684.981422 | P71: 0 | Q71: Deserved | R71: Deserved City Stars | S71: 26.51431264 | T71: 28.10603625 | U71: 155.5235141 | V71: 183.6295503 | W71: 3559.328997 | X71: 355.9328997 | Y71: 0 | Z71: 0 | AA71: 0 | AB71: 3203.396098 | AC71: 2.966107498 | AD71: 4283.396098 | AE71: =IF(E71="Mohandseen Managers",0,IF(E71="Mohandssen",G71*Data!$E$28,IF(E71="Maadi Managers",0,IF(E71="Maadi",G71*Data!$E$29,IF(E71="City Stars Managers",0,IF(E71="City Stars",G71*Data!$E$30,IF(E71="MOA Managers",0,IF(E71="MOA",G71*Data!$E$31,IF(E71="Concord Managers",0,IF(E71="Concord",G71*Data!$E$32)))))))))) -> 915.1007222 | AF71: 2288.295375 | AN71: 18000 | AP71: زينب احمد سيد عباس | AQ71: 3203.4 | AR71: 22862 | AS71: NBEGEGCXXXX
A72: 1 | C72: 40001 | D72: MOA | E72: MOA Managers | F72: S R .Assistant Manager | G72: 6577.2 | H72: 9 | I72: 0.1 | J72: 1912-03-27 | K72: 2007-02-05 | L72: 701.6033269 | M72: 1670.25852 | O72: 1670.25852 | P72: 0 | Q72: Deserved | R72: Deserved MOA | S72: 58.45628686 | T72: 58.81554685 | U72: 61.09449709 | V72: 119.9100439 | W72: 2491.771891 | X72: 249.1771891 | Y72: 0 | Z72: 0 | AA72: 0 | AB72: 2242.594702 | AC72: 0.340964955 | AD72: 8819.794702 | AE72: =IF(E72="Mohandseen Managers",0,IF(E72="Mohandssen",G72*Data!$E$28,IF(E72="Maadi Managers",0,IF(E72="Maadi",G72*Data!$E$29,IF(E72="City Stars Managers",0,IF(E72="City Stars",G72*Data!$E$30,IF(E72="MOA Managers",0,IF(E72="MOA",G72*Data!$E$31,IF(E72="Concord Managers",0,IF(E72="Concord",G72*Data!$E$32)))))))))) -> 0 | AF72: 2242.594702 | AN72: 18000 | AP72: على عبد العال على عبد العال | AQ72: 2242.59 | AR72: 40001 | AS72: NBEGEGCXXXX
A73: 2 | C73: 20010 | D73: MOA | E73: MOA Managers | F73: Resturant Manager | G73: 9426.283333 | H73: 10 | I73: 0.12 | J73: 1918-09-26 | K73: 2000-07-01 | L73: 1005.520852 | M73: 1670.25852 | O73: 1670.25852 | P73: 0 | Q73: Deserved | R73: Deserved MOA | S73: 83.7781309 | T73: 84.2930136 | U73: 61.09449709 | V73: 145.3875107 | W73: 2821.166883 | X73: 282.1166883 | Y73: 0 | Z73: 0 | AA73: 0 | AB73: 2539.050194 | AC73: 0.2693585695 | AD73: 11965.33353 | AE73: =IF(E73="Mohandseen Managers",0,IF(E73="Mohandssen",G73*Data!$E$28,IF(E73="Maadi Managers",0,IF(E73="Maadi",G73*Data!$E$29,IF(E73="City Stars Managers",0,IF(E73="City Stars",G73*Data!$E$30,IF(E73="MOA Managers",0,IF(E73="MOA",G73*Data!$E$31,IF(E73="Concord Managers",0,IF(E73="Concord",G73*Data!$E$32)))))))))) -> 0 | AF73: 2539.050194 | AN73: 18000 | AP73: محمد عبد الرازق غريب شعلان | AQ73: 2539.05 | AR73: 20010 | AS73: NBEGEGCXXXX
A74: 3 | C74: 22506 | D74: MOA | E74: MOA Managers | F74: S R .Assistant Manager | G74: 4128.083333 | H74: 9 | I74: 0.1 | J74: 1903-05-22 | K74: 2016-01-27 | L74: 440.3510613 | M74: 1670.25852 | O74: 1670.25852 | P74: 0 | Q74: Deserved | R74: Deserved MOA | S74: 36.68923303 | T74: 36.91471731 | U74: 61.09449709 | V74: 98.00921441 | W74: 2208.618796 | X74: 220.8618796 | Y74: 0 | Z74: 0 | AA74: 0 | AB74: 1987.756916 | AC74: 0.4815205401 | AD74: 6115.840249 | AE74: =IF(E74="Mohandseen Managers",0,IF(E74="Mohandssen",G74*Data!$E$28,IF(E74="Maadi Managers",0,IF(E74="Maadi",G74*Data!$E$29,IF(E74="City Stars Managers",0,IF(E74="City Stars",G74*Data!$E$30,IF(E74="MOA Managers",0,IF(E74="MOA",G74*Data!$E$31,IF(E74="Concord Managers",0,IF(E74="Concord",G74*Data!$E$32)))))))))) -> 0 | AF74: 1987.756916 | AN74: 18000 | AP74: محمد حنفى محمد محمد حسن | AQ74: 1987.76 | AR74: 22506 | AS74: NBEGEGCXXXX
A75: 4 | C75: 20012 | D75: MOA | E75: MOA | F75: C.T - Cook | G75: 3508.463169 | H75: 4 | I75: 0.08 | J75: 1918-09-26 | K75: 2000-07-01 | L75: 1581.00599 | M75: 2028.17106 | O75: 2028.17106 | P75: 0 | Q75: Deserved | R75: Deserved MOA | S75: 31.18222488 | T75: 31.37386425 | U75: 61.09449709 | V75: 92.46836134 | W75: 3701.645411 | X75: 370.1645411 | Y75: 0 | Z75: 0 | AA75: 0 | AB75: 3331.48087 | AC75: 0.9495556058 | AD75: 6839.944039 | AE75: =IF(E75="Mohandseen Managers",0,IF(E75="Mohandssen",G75*Data!$E$28,IF(E75="Maadi Managers",0,IF(E75="Maadi",G75*Data!$E$29,IF(E75="City Stars Managers",0,IF(E75="City Stars",G75*Data!$E$30,IF(E75="MOA Managers",0,IF(E75="MOA",G75*Data!$E$31,IF(E75="Concord Managers",0,IF(E75="Concord",G75*Data!$E$32)))))))))) -> 2094.60253 | AF75: 1236.87834 | AN75: 18000 | AP75: عادل عبد القادر ابو اليزيد عطية | AQ75: 3331.48 | AR75: 20012 | AS75: NBEGEGCXXXX
A76: 5 | C76: 20113 | D76: MOA | E76: MOA | F76: C.T - Prep | G76: 3491.473333 | H76: 4 | I76: 0.08 | J76: 1917-05-04 | K76: 2001-12-01 | L76: 1573.349922 | M76: 2028.17106 | O76: 2028.17106 | P76: 0 | Q76: Deserved | R76: Deserved MOA | S76: 31.03122404 | T76: 31.22193539 | U76: 61.09449709 | V76: 92.31643248 | W76: 3693.837414 | X76: 369.3837414 | Y76: 0 | Z76: 0 | AA76: 0 | AB76: 3324.453673 | AC76: 0.9521635583 | AD76: 6815.927006 | AE76: =IF(E76="Mohandseen Managers",0,IF(E76="Mohandssen",G76*Data!$E$28,IF(E76="Maadi Managers",0,IF(E76="Maadi",G76*Data!$E$29,IF(E76="City Stars Managers",0,IF(E76="City Stars",G76*Data!$E$30,IF(E76="MOA Managers",0,IF(E76="MOA",G76*Data!$E$31,IF(E76="Concord Managers",0,IF(E76="Concord",G76*Data!$E$32)))))))))) -> 2084.459356 | AF76: 1239.994317 | AN76: 18000 | AP76: هشام سيد عبد العليم صايم | AQ76: 3324.45 | AR76: 20113 | AS76: NBEGEGCXXXX
A77: 6 | C77: 21517 | D77: MOA | E77: MOA | F77: Food Server | G77: 2208.22 | H77: 3 | I77: 0.04 | J77: 1908-05-18 | K77: 2011-01-04 | L77: 995.0821423 | M77: 2028.17106 | O77: 2028.17106 | P77: 0 | Q77: Deserved | R77: Deserved MOA | S77: 19.62603262 | T77: 19.74665008 | U77: 61.09449709 | V77: 80.84114717 | W77: 3104.09435 | X77: 310.409435 | Y77: 0 | Z77: 0 | AA77: 0 | AB77: 2793.684915 | AC77: 1.265129794 | AD77: 5001.904915 | AE77: =IF(E77="Mohandseen Managers",0,IF(E77="Mohandssen",G77*Data!$E$28,IF(E77="Maadi Managers",0,IF(E77="Maadi",G77*Data!$E$29,IF(E77="City Stars Managers",0,IF(E77="City Stars",G77*Data!$E$30,IF(E77="MOA Managers",0,IF(E77="MOA",G77*Data!$E$31,IF(E77="Concord Managers",0,IF(E77="Concord",G77*Data!$E$32)))))))))) -> 1318.338821 | AF77: 1475.346093 | AN77: 18000 | AP77: نادية عبد العظيم محمد محمد | AQ77: 2793.68 | AR77: 21517 | AS77: NBEGEGCXXXX
A78: 7 | C78: 22581 | D78: MOA | E78: MOA | F78: Cook | G78: 1870.15 | H78: 3 | I78: 0.04 | J78: 1903-06-15 | K78: 2016-01-03 | L78: 842.7388886 | M78: 2028.17106 | O78: 2028.17106 | P78: 0 | Q78: Deserved | R78: Deserved MOA | S78: 16.62136241 | T78: 16.7235138 | U78: 61.09449709 | V78: 77.81801089 | W78: 2948.727959 | X78: 294.8727959 | Y78: 0 | Z78: 0 | AA78: 0 | AB78: 2653.855164 | AC78: 1.419060056 | AD78: 4524.005164 | AE78: =IF(E78="Mohandseen Managers",0,IF(E78="Mohandssen",G78*Data!$E$28,IF(E78="Maadi Managers",0,IF(E78="Maadi",G78*Data!$E$29,IF(E78="City Stars Managers",0,IF(E78="City Stars",G78*Data!$E$30,IF(E78="MOA Managers",0,IF(E78="MOA",G78*Data!$E$31,IF(E78="Concord Managers",0,IF(E78="Concord",G78*Data!$E$32)))))))))) -> 1116.506212 | AF78: 1537.348952 | AN78: 18000 | AP78: سلطان محمد عبد العال سلطان | AQ78: 2653.86 | AR78: 22581 | AS78: NBEGEGCXXXX
A79: 8 | C79: 22585 | D79: MOA | E79: MOA | F79: Food Server | G79: 1377.455082 | H79: 3 | I79: 0.04 | J79: 1903-06-06 | K79: 2016-01-12 | L79: 620.7175707 | M79: 2028.17106 | O79: 2028.17106 | P79: 0 | Q79: Deserved | R79: Deserved MOA | S79: 12.24242982 | T79: 12.31766921 | U79: 61.09449709 | V79: 73.4121663 | W79: 2722.300797 | X79: 272.2300797 | Y79: 0 | Z79: 0 | AA79: 0 | AB79: 2450.070717 | AC79: 1.77869373 | AD79: 3827.525799 | AE79: =IF(E79="Mohandseen Managers",0,IF(E79="Mohandssen",G79*Data!$E$28,IF(E79="Maadi Managers",0,IF(E79="Maadi",G79*Data!$E$29,IF(E79="City Stars Managers",0,IF(E79="City Stars",G79*Data!$E$30,IF(E79="MOA Managers",0,IF(E79="MOA",G79*Data!$E$31,IF(E79="Concord Managers",0,IF(E79="Concord",G79*Data!$E$32)))))))))) -> 822.3603215 | AF79: 1627.710396 | AN79: 18000 | AP79: محمود رمضان محمد عبد الله زيدان | AQ79: 2450.07 | AR79: 22585 | AS79: NBEGEGCXXXX
A80: 9 | C80: 20699 | D80: MOA | E80: MOA | F80: C.T - Food Server | G80: 2913.533333 | H80: 4 | I80: =IF(AND(H80>0,H80<=3),4%,IF(AND(H80>3,H80<=6),8%,IF(AND(H80>6,H80<=9),10%,IF(AND(H80>9,H80<=11),12%,IF(AND(H80>11,H80<=13),16%))))) -> 0.08 | J80: =DAYS360(K80,TODAY(),1) -> 1912-12-06 | K80: 2006-05-21 | L80: =IF(E80="Mohandseen Managers",$X$7*G80,IF(E80="Mohandssen",$W$7*G80,IF(E80="Maadi Managers",$X$8*G80,IF(E80="Maadi",$W$8*G80,IF(E80="City Stars Managers",$X$9*G80,IF(E80="City Stars",$W$9*G80,IF(E80="MOA Managers",$X$10*G80,IF(E80="MOA",$W$10*G80,IF(E80="Concord Managers",$X$11*G80,IF(E80="Concord",$W$11*G80)))))))))) -> 1312.914923 | M80: =IF(E80="Mohandseen Managers",$T$7,IF(E80="Mohandssen",$S$7,IF(E80="Maadi Managers",$T$8,IF(E80="Maadi",$S$8,IF(E80="City Stars Managers",$T$9,IF(E80="City Stars",$S$9,IF(E80="MOA Managers",$T$10,IF(E80="MOA",$S$10,IF(E80="Concord Managers",$T$11,IF(E80="Concord",$S$11)))))))))) -> 2028.17106 | O80: =(M80-(M80/30.5)*N80) -> 2028.17106 | P80: 0 | Q80: Deserved | R80: Deserved MOA | S80: =IF(D80="Mohandssen",$AG$7*G80,IF(D80="Maadi",$AG$8*G80,IF(D80="City Stars",$AG$9*G80,IF(D80="MOA",$AG$10*G80,IF(D80="Concord",$AG$11*G80))))) -> 25.89465735 | T80: =IF(R80="Undeserved Mohandseen",0,IF(R80="Deserved Mohandseen",G80*$AJ$7,IF(R80="Undeserved Maadi",0,IF(R80="Deserved Maadi",G80*$AJ$8,IF(R80="Undeserved City Stars",0,IF(R80="Deserved City Stars",G80*$AJ$9,IF(R80="Undeserved MOA",0,IF(R80="Deserved MOA",G80*$AJ$10,IF(R80="Undeserved Concord",0,IF(R80="Deserved Concord",G80*$AJ$11)))))))))) -> 26.05380044 | U80: =IF(R80="Undeserved Mohandseen",0,IF(R80="Deserved Mohandseen",$AH$7,IF(R80="Undeserved Maadi",0,IF(R80="Deserved Maadi",$AH$8,IF(R80="Undeserved City Stars",0,IF(R80="Deserved City Stars",$AH$9,IF(R80="Undeserved MOA",0,IF(R80="Deserved MOA",$AH$10,IF(R80="Undeserved Concord",0,IF(R80="Deserved Concord",$AH$11)))))))))) -> 61.09449709 | V80: =T80+U80 -> 87.14829754 | W80: =L80+M80-P80+V80 -> 3428.23428 | X80: =W80*10% -> 342.823428 | Y80: =IF(D80="Mohandssen",$AT$7*G80,IF(D80="Maadi",$AT$8*G80,IF(D80="City Stars",$AT$9*G80,IF(D80="MOA",$AT$10*G80,IF(D80="Concord",$AT$11*G80))))) -> 0 | Z80: =IF(D80="Mohandssen",$AU$7,IF(D80="Maadi",$AU$8,IF(D80="City Stars",$AU$9,IF(D80="MOA",$AU$10,IF(D80="Concord",$AU$11))))) -> 0 | AA80: =SUM(Y80:Z80) -> 0 | AB80: =W80-X80+AA80 -> 3085.410852 | AC80: =IFERROR(AB80/G80,0) -> 1.05899281 | AD80: =G80+AB80 -> 5998.944186 | AE80: =IF(E80="Mohandseen Managers",0,IF(E80="Mohandssen",G80*Data!$E$28,IF(E80="Maadi Managers",0,IF(E80="Maadi",G80*Data!$E$29,IF(E80="City Stars Managers",0,IF(E80="City Stars",G80*Data!$E$30,IF(E80="MOA Managers",0,IF(E80="MOA",G80*Data!$E$31,IF(E80="Concord Managers",0,IF(E80="Concord",G80*Data!$E$32)))))))))) -> 1739.420937 | AF80: =AB80-AE80 -> 1345.989916 | AN80: 18000 | AP80: أحمد فهمى محمد على شعبان | AQ80: =ROUND(AB80,2) -> 3085.41 | AR80: 20669 | AS80: NBEGEGCXXXX
A81: 10 | C81: 22872 | D81: MOA | E81: MOA | F81: Dishwaser | G81: 1124.39 | H81: 1 | I81: 0.04 | J81: 1901-01-20 | K81: 2018-06-09 | L81: 506.6797738 | M81: 2028.17106 | O81: 2028.17106 | P81: =M81-O81 -> 0 | Q81: Deserved | R81: Deserved MOA | S81: 9.993259196 | T81: 10.05467566 | U81: 61.09449709 | V81: 71.14917275 | W81: 2606.000007 | X81: 260.6000007 | Y81: 0 | Z81: 0 | AA81: 0 | AB81: 2345.400006 | AC81: 2.085931043 | AD81: 3469.790006 | AE81: =IF(E81="Mohandseen Managers",0,IF(E81="Mohandssen",G81*Data!$E$28,IF(E81="Maadi Managers",0,IF(E81="Maadi",G81*Data!$E$29,IF(E81="City Stars Managers",0,IF(E81="City Stars",G81*Data!$E$30,IF(E81="MOA Managers",0,IF(E81="MOA",G81*Data!$E$31,IF(E81="Concord Managers",0,IF(E81="Concord",G81*Data!$E$32)))))))))) -> 671.2768598 | AF81: 1674.123146 | AP81: منير محمد منير محمد | AQ81: 2345.4
A82: 11 | C82: 21236 | D82: MOA | E82: MOA | F82: C.T - Food Server | G82: 2377.62 | H82: 4 | I82: 0.08 | J82: 1910-06-26 | K82: 2008-11-15 | L82: 1071.418248 | M82: 2028.17106 | O82: 2028.17106 | P82: 0 | Q82: Deserved | R82: Deserved MOA | S82: 21.13161174 | T82: 21.26148217 | U82: 61.09449709 | V82: 82.35597926 | W82: 3181.945287 | X82: 318.1945287 | Y82: 0 | Z82: 0 | AA82: 0 | AB82: 2863.750758 | AC82: 1.204461082 | AD82: 5241.370758 | AE82: =IF(E82="Mohandseen Managers",0,IF(E82="Mohandssen",G82*Data!$E$28,IF(E82="Maadi Managers",0,IF(E82="Maadi",G82*Data!$E$29,IF(E82="City Stars Managers",0,IF(E82="City Stars",G82*Data!$E$30,IF(E82="MOA Managers",0,IF(E82="MOA",G82*Data!$E$31,IF(E82="Concord Managers",0,IF(E82="Concord",G82*Data!$E$32)))))))))) -> 1419.473036 | AF82: 1444.277722 | AN82: 18000 | AP82: عمرو شوقى عبد المقصود حسن الشويخ | AQ82: 2863.75 | AR82: 21236 | AS82: NBEGEGCXXXX
A83: 12 | C83: 22894 | D83: MOA | E83: MOA | F83: Cook | G83: 1344.49 | H83: 3 | I83: 0.04 | J83: 1900-11-19 | K83: 2018-08-11 | L83: 605.8626358 | M83: 2028.17106 | O83: 2028.17106 | P83: 0 | Q83: Deserved | R83: Deserved MOA | S83: 11.94944553 | T83: 12.0228843 | U83: 61.09449709 | V83: 73.11738139 | W83: 2707.151077 | X83: 270.7151077 | Y83: 0 | Z83: 0 | AA83: 0 | AB83: 2436.435969 | AC83: 1.812163697 | AD83: 3780.925969 | AE83: =IF(E83="Mohandseen Managers",0,IF(E83="Mohandssen",G83*Data!$E$28,IF(E83="Maadi Managers",0,IF(E83="Maadi",G83*Data!$E$29,IF(E83="City Stars Managers",0,IF(E83="City Stars",G83*Data!$E$30,IF(E83="MOA Managers",0,IF(E83="MOA",G83*Data!$E$31,IF(E83="Concord Managers",0,IF(E83="Concord",G83*Data!$E$32)))))))))) -> 802.6796976 | AF83: 1633.756272 | AP83: عبد الله كرم حسنى ضاحى | AQ83: 2436.44
A84: 13 | C84: 21559 | D84: MOA | E84: MOA | F84: C.T - Cook | G84: 2419.137705 | H84: 4 | I84: 0.08 | J84: 1917-10-31 | K84: 2001-06-01 | L84: 1090.12722 | M84: 2028.17106 | O84: 2028.17106 | P84: 0 | Q84: Deserved | R84: Deserved MOA | S84: 21.50060932 | T84: 21.63274753 | U84: 61.09449709 | V84: 82.72724462 | W84: 3201.025525 | X84: 320.1025525 | Y84: 0 | Z84: 0 | AA84: 0 | AB84: 2880.922972 | AC84: 1.190888376 | AD84: 5300.060677 | AE84: =IF(E84="Mohandseen Managers",0,IF(E84="Mohandssen",G84*Data!$E$28,IF(E84="Maadi Managers",0,IF(E84="Maadi",G84*Data!$E$29,IF(E84="City Stars Managers",0,IF(E84="City Stars",G84*Data!$E$30,IF(E84="MOA Managers",0,IF(E84="MOA",G84*Data!$E$31,IF(E84="Concord Managers",0,IF(E84="Concord",G84*Data!$E$32)))))))))) -> 1444.259698 | AF84: 1436.663274 | AN84: 18000 | AP84: محمود جمعة محمود احمد | AQ84: 2880.92 | AR84: 21559 | AS84: NBEGEGCXXXX
A85: 14 | C85: 22854 | D85: MOA | E85: MOA | F85: Food Server | G85: 1611.49 | H85: 3 | I85: 0.04 | J85: 1901-07-13 | K85: 2017-12-15 | L85: 726.1798741 | M85: 2028.17106 | O85: 2028.17106 | P85: 0 | Q85: Deserved | R85: Deserved MOA | S85: 14.32246575 | T85: 14.4104886 | U85: 61.09449709 | V85: 75.50498569 | W85: 2829.85592 | X85: 282.985592 | Y85: 0 | Z85: 0 | AA85: 0 | AB85: 2546.870328 | AC85: 1.580444389 | AD85: 4158.360328 | AE85: =IF(E85="Mohandseen Managers",0,IF(E85="Mohandssen",G85*Data!$E$28,IF(E85="Maadi Managers",0,IF(E85="Maadi",G85*Data!$E$29,IF(E85="City Stars Managers",0,IF(E85="City Stars",G85*Data!$E$30,IF(E85="MOA Managers",0,IF(E85="MOA",G85*Data!$E$31,IF(E85="Concord Managers",0,IF(E85="Concord",G85*Data!$E$32)))))))))) -> 962.0825041 | AF85: 1584.787824 | AP85: عبد العزيز محمد عبد العزيز عبد الجواد | AQ85: 2546.87
A86: 15 | C86: 22917 | D86: MOA | E86: MOA | F86: Cook | G86: 1345.3 | H86: 3 | I86: 0.04 | J86: 1900-05-28 | K86: 2019-02-06 | L86: 606.2276431 | M86: 2028.17106 | O86: 2028.17106 | P86: 0 | Q86: Deserved | R86: Deserved MOA | S86: 11.95664458 | T86: 12.03012759 | U86: 61.09449709 | V86: 73.12462468 | W86: 2707.523328 | X86: 270.7523328 | Y86: 0 | Z86: 0 | AA86: 0 | AB86: 2436.770995 | AC86: 1.811321635 | AD86: 3782.070995 | AE86: =IF(E86="Mohandseen Managers",0,IF(E86="Mohandssen",G86*Data!$E$28,IF(E86="Maadi Managers",0,IF(E86="Maadi",G86*Data!$E$29,IF(E86="City Stars Managers",0,IF(E86="City Stars",G86*Data!$E$30,IF(E86="MOA Managers",0,IF(E86="MOA",G86*Data!$E$31,IF(E86="Concord Managers",0,IF(E86="Concord",G86*Data!$E$32)))))))))) -> 803.1632792 | AF86: 1633.607716 | AP86: يوسف طارق عاشور عيد | AQ86: 2436.77
A87: 16 | C87: 22921 | D87: MOA | E87: MOA | F87: Dishwaser | G87: 1125.05 | H87: 1 | I87: 0.04 | J87: 1900-04-05 | K87: 2019-03-29 | L87: 506.9771872 | M87: 2028.17106 | O87: 2028.17106 | P87: 0 | Q87: Deserved | R87: Deserved MOA | S87: 9.999125088 | T87: 10.0605776 | U87: 61.09449709 | V87: 71.15507469 | W87: 2606.303322 | X87: 260.6303322 | Y87: 0 | Z87: 0 | AA87: 0 | AB87: 2345.67299 | AC87: 2.084949993 | AD87: 3470.72299 | AE87: =IF(E87="Mohandseen Managers",0,IF(E87="Mohandssen",G87*Data!$E$28,IF(E87="Maadi Managers",0,IF(E87="Maadi",G87*Data!$E$29,IF(E87="City Stars Managers",0,IF(E87="City Stars",G87*Data!$E$30,IF(E87="MOA Managers",0,IF(E87="MOA",G87*Data!$E$31,IF(E87="Concord Managers",0,IF(E87="Concord",G87*Data!$E$32)))))))))) -> 671.6708892 | AF87: 1674.0021 | AP87: يوسف رمضان محمد عبد اللطيف | AQ87: 2345.67
A88: 17 | C88: 22916 | D88: MOA | E88: MOA | F88: Cook | G88: 287.92 | H88: 3 | I88: =IF(AND(H88>0,H88<=3),4%,IF(AND(H88>3,H88<=6),8%,IF(AND(H88>6,H88<=9),10%,IF(AND(H88>9,H88<=11),12%,IF(AND(H88>11,H88<=13),16%))))) -> 0.04 | J88: =DAYS360(K88,TODAY(),1) -> 1900-07-11 | K88: 2018-12-22 | L88: =IF(E88="Mohandseen Managers",$X$7*G88,IF(E88="Mohandssen",$W$7*G88,IF(E88="Maadi Managers",$X$8*G88,IF(E88="Maadi",$W$8*G88,IF(E88="City Stars Managers",$X$9*G88,IF(E88="City Stars",$W$9*G88,IF(E88="MOA Managers",$X$10*G88,IF(E88="MOA",$W$10*G88,IF(E88="Concord Managers",$X$11*G88,IF(E88="Concord",$W$11*G88)))))))))) -> 129.7443418 | M88: =IF(E88="Mohandseen Managers",$T$7,IF(E88="Mohandssen",$S$7,IF(E88="Maadi Managers",$T$8,IF(E88="Maadi",$S$8,IF(E88="City Stars Managers",$T$9,IF(E88="City Stars",$S$9,IF(E88="MOA Managers",$T$10,IF(E88="MOA",$S$10,IF(E88="Concord Managers",$T$11,IF(E88="Concord",$S$11)))))))))) -> 2028.17106 | N88: =30-9 -> 21 | O88: =(M88-(M88/30.5)*N88) -> 631.7254121 | P88: =M88-O88 -> 1396.445648 | Q88: Undeserved | R88: Undeserved MOA | S88: =IF(D88="Mohandssen",$AG$7*G88,IF(D88="Maadi",$AG$8*G88,IF(D88="City Stars",$AG$9*G88,IF(D88="MOA",$AG$10*G88,IF(D88="Concord",$AG$11*G88))))) -> 2.558951243 | T88: =IF(R88="Undeserved Mohandseen",0,IF(R88="Deserved Mohandseen",G88*$AJ$7,IF(R88="Undeserved Maadi",0,IF(R88="Deserved Maadi",G88*$AJ$8,IF(R88="Undeserved City Stars",0,IF(R88="Deserved City Stars",G88*$AJ$9,IF(R88="Undeserved MOA",0,IF(R88="Deserved MOA",G88*$AJ$10,IF(R88="Undeserved Concord",0,IF(R88="Deserved Concord",G88*$AJ$11)))))))))) -> 0 | U88: =IF(R88="Undeserved Mohandseen",0,IF(R88="Deserved Mohandseen",$AH$7,IF(R88="Undeserved Maadi",0,IF(R88="Deserved Maadi",$AH$8,IF(R88="Undeserved City Stars",0,IF(R88="Deserved City Stars",$AH$9,IF(R88="Undeserved MOA",0,IF(R88="Deserved MOA",$AH$10,IF(R88="Undeserved Concord",0,IF(R88="Deserved Concord",$AH$11)))))))))) -> 0 | V88: =T88+U88 -> 0 | W88: =L88+M88-P88+V88 -> 761.4697539 | X88: =W88*10% -> 76.14697539 | Y88: =IF(D88="Mohandssen",$AT$7*G88,IF(D88="Maadi",$AT$8*G88,IF(D88="City Stars",$AT$9*G88,IF(D88="MOA",$AT$10*G88,IF(D88="Concord",$AT$11*G88))))) -> 0 | Z88: =IF(D88="Mohandssen",$AU$7,IF(D88="Maadi",$AU$8,IF(D88="City Stars",$AU$9,IF(D88="MOA",$AU$10,IF(D88="Concord",$AU$11))))) -> 0 | AA88: =SUM(Y88:Z88) -> 0 | AB88: =W88-X88+AA88 -> 685.3227785 | AC88: =IFERROR(AB88/G88,0) -> 2.380254163 | AD88: =G88+AB88 -> 973.2427785 | AE88: =IF(E88="Mohandseen Managers",0,IF(E88="Mohandssen",G88*Data!$E$28,IF(E88="Maadi Managers",0,IF(E88="Maadi",G88*Data!$E$29,IF(E88="City Stars Managers",0,IF(E88="City Stars",G88*Data!$E$30,IF(E88="MOA Managers",0,IF(E88="MOA",G88*Data!$E$31,IF(E88="Concord Managers",0,IF(E88="Concord",G88*Data!$E$32)))))))))) -> 171.8923447 | AF88: =AB88-AE88 -> 513.4304338 | AP88: ابراهيم غريب فاروق السيد محمد | AQ88: =ROUND(AB88,2) -> 685.32
A89: 1 | C89: 20112 | D89: Concord | E89: Concord Managers | F89: S R .Assistant Manager | G89: 6577.2 | H89: 9 | I89: 0.1 | J89: 1917-05-04 | K89: 2001-12-01 | L89: 719.8397474 | M89: 1885.24938 | N89: 0 | O89: 1885.24938 | P89: 0 | Q89: Deserved | R89: Deserved Concord | S89: 168.3454236 | T89: 173.7287031 | U89: 198.9004322 | V89: 372.6291354 | W89: 2977.718263 | X89: 297.7718263 | Y89: 0 | Z89: 0 | AA89: 0 | AB89: 2679.946437 | AC89: 0.4074600797 | AD89: 9257.146437 | AE89: =IF(E89="Mohandseen Managers",0,IF(E89="Mohandssen",G89*Data!$E$28,IF(E89="Maadi Managers",0,IF(E89="Maadi",G89*Data!$E$29,IF(E89="City Stars Managers",0,IF(E89="City Stars",G89*Data!$E$30,IF(E89="MOA Managers",0,IF(E89="MOA",G89*Data!$E$31,IF(E89="Concord Managers",0,IF(E89="Concord",G89*Data!$E$32)))))))))) -> 0 | AF89: 2679.946437 | AN89: 18000 | AO89: 1495000499566100013 | AP89: رفاعى رفعت عبد الغنى عثمان | AQ89: 2679.95 | AR89: 20112 | AS89: NBEGEGCXXXX
A90: 2 | C90: 30043 | D90: Concord | E90: Concord Managers | F90: Resturant Manager | G90: 10210.11667 | H90: 10 | I90: 0.12 | J90: 1911-04-06 | K90: 2008-02-01 | L90: 1117.443259 | M90: 1885.24938 | N90: 0 | O90: 1885.24938 | P90: 0 | Q90: Deserved | R90: Deserved Concord | S90: 261.3310246 | T90: 269.6877588 | U90: 198.9004322 | V90: 468.588191 | W90: 3471.28083 | X90: 347.128083 | Y90: 0 | Z90: 0 | AA90: 0 | AB90: 3124.152747 | AC90: 0.3059859989 | AD90: 13334.26941 | AE90: =IF(E90="Mohandseen Managers",0,IF(E90="Mohandssen",G90*Data!$E$28,IF(E90="Maadi Managers",0,IF(E90="Maadi",G90*Data!$E$29,IF(E90="City Stars Managers",0,IF(E90="City Stars",G90*Data!$E$30,IF(E90="MOA Managers",0,IF(E90="MOA",G90*Data!$E$31,IF(E90="Concord Managers",0,IF(E90="Concord",G90*Data!$E$32)))))))))) -> 0 | AF90: 3124.152747 | AN90: 18000 | AP90: عاطف نفاد عبد الله محمد | AQ90: 3124.15 | AR90: 30043 | AS90: NBEGEGCXXXX
A91: 3 | C91: 22911 | D91: Concord | E91: Concord Managers | F91: Assistant Manager | G91: 5359.866667 | H91: 9 | I91: 0.1 | J91: 1900-08-27 | K91: 2018-11-05 | L91: 586.6090536 | M91: 1885.24938 | N91: 0 | O91: 1885.24938 | P91: 0 | Q91: Deserved | R91: Deserved Concord | S91: 137.1874087 | T91: 141.5743302 | U91: 198.9004322 | V91: 340.4747625 | W91: 2812.333196 | X91: 281.2333196 | Y91: 0 | Z91: 0 | AA91: 0 | AB91: 2531.099877 | AC91: 0.4722318733 | AD91: 7890.966543 | AE91: =IF(E91="Mohandseen Managers",0,IF(E91="Mohandssen",G91*Data!$E$28,IF(E91="Maadi Managers",0,IF(E91="Maadi",G91*Data!$E$29,IF(E91="City Stars Managers",0,IF(E91="City Stars",G91*Data!$E$30,IF(E91="MOA Managers",0,IF(E91="MOA",G91*Data!$E$31,IF(E91="Concord Managers",0,IF(E91="Concord",G91*Data!$E$32)))))))))) -> 0 | AF91: 2531.099877 | AN91: 18000 | AP91: حسن احمد حسن موسى | AQ91: 2531.1 | AR91: 22911 | AS91: NBEGEGCXXXX
A92: 1 | C92: 20914 | D92: Concord | E92: Concord | F92: C.T - Cook | G92: 2943.923333 | H92: 4 | I92: 0.08 | J92: 1911-07-31 | K92: 2007-10-05 | L92: 1651.88488 | M92: 2289.23139 | N92: 0 | O92: 2289.23139 | P92: 0 | Q92: Deserved | R92: Deserved Concord | S92: 75.35060823 | T92: 77.76013847 | U92: 198.9004322 | V92: 276.6605707 | W92: 4217.77684 | X92: 421.777684 | Y92: 0 | Z92: 0 | AA92: 0 | AB92: 3795.999156 | AC92: 1.289435466 | AD92: 6739.92249 | AE92: =IF(E92="Mohandseen Managers",0,IF(E92="Mohandssen",G92*Data!$E$28,IF(E92="Maadi Managers",0,IF(E92="Maadi",G92*Data!$E$29,IF(E92="City Stars Managers",0,IF(E92="City Stars",G92*Data!$E$30,IF(E92="MOA Managers",0,IF(E92="MOA",G92*Data!$E$31,IF(E92="Concord Managers",0,IF(E92="Concord",G92*Data!$E$32)))))))))) -> 2188.50673 | AF92: 1607.492426 | AN92: 18000 | AP92: أشرف أبو الحسن محمد أحمد | AQ92: 3796 | AR92: 20914 | AS92: NBEGEGCXXXX
A93: 2 | C93: 30254 | D93: Concord | E93: Concord | F93: Cook | G93: 2705.103333 | H93: 3 | I93: 0.04 | J93: 1908-08-16 | K93: 2010-10-04 | L93: 1517.878962 | M93: 2289.23139 | N93: 0 | O93: 2289.23139 | P93: 0 | Q93: Deserved | R93: Deserved Concord | S93: 69.23793809 | T93: 71.45199992 | U93: 198.9004322 | V93: 270.3524322 | W93: 4077.462785 | X93: 407.7462785 | Y93: 0 | Z93: 0 | AA93: 0 | AB93: 3669.716506 | AC93: 1.356590139 | AD93: 6374.819839 | AE93: =IF(E93="Mohandseen Managers",0,IF(E93="Mohandssen",G93*Data!$E$28,IF(E93="Maadi Managers",0,IF(E93="Maadi",G93*Data!$E$29,IF(E93="City Stars Managers",0,IF(E93="City Stars",G93*Data!$E$30,IF(E93="MOA Managers",0,IF(E93="MOA",G93*Data!$E$31,IF(E93="Concord Managers",0,IF(E93="Concord",G93*Data!$E$32)))))))))) -> 2010.968419 | AF93: 1658.748087 | AN93: 18000 | AP93: حسام محمد بيومى محمد | AQ93: 3669.72 | AR93: 30254 | AS93: NBEGEGCXXXX
A94: 3 | C94: 22657 | D94: Concord | E94: Concord | F94: Cook | G94: 1600.39 | H94: 3 | I94: 0.04 | J94: 1903-01-18 | K94: 2016-06-01 | L94: 898.005737 | M94: 2289.23139 | N94: 0 | O94: 2289.23139 | P94: 0 | Q94: Deserved | R94: Deserved Concord | S94: 40.96246616 | T94: 42.27234677 | U94: 198.9004322 | V94: 241.172779 | W94: 3428.409906 | X94: 342.8409906 | Y94: 0 | Z94: 0 | AA94: 0 | AB94: 3085.568915 | AC94: 1.92801062 | AD94: 4685.958915 | AE94: =IF(E94="Mohandseen Managers",0,IF(E94="Mohandssen",G94*Data!$E$28,IF(E94="Maadi Managers",0,IF(E94="Maadi",G94*Data!$E$29,IF(E94="City Stars Managers",0,IF(E94="City Stars",G94*Data!$E$30,IF(E94="MOA Managers",0,IF(E94="MOA",G94*Data!$E$31,IF(E94="Concord Managers",0,IF(E94="Concord",G94*Data!$E$32)))))))))) -> 1189.726732 | AF94: 1895.842184 | AN94: 18000 | AP94: فارس عبد العظيم عبد الحميد على سماحه | AQ94: 3085.57 | AR94: 22657 | AS94: NBEGEGCXXXX
A95: 4 | C95: 22787 | D95: Concord | E95: Concord | F95: Cook | G95: 1601.2 | H95: 3 | I95: 0.04 | J95: 1902-01-11 | K95: 2017-06-13 | L95: 898.4602417 | M95: 2289.23139 | N95: 0 | O95: 2289.23139 | P95: 0 | Q95: Deserved | R95: Deserved Concord | S95: 40.98319835 | T95: 42.29374193 | U95: 198.9004322 | V95: 241.1941742 | W95: 3428.885806 | X95: 342.8885806 | Y95: 0 | Z95: 0 | AA95: 0 | AB95: 3085.997225 | AC95: 1.927302789 | AD95: 4687.197225 | AE95: =IF(E95="Mohandseen Managers",0,IF(E95="Mohandssen",G95*Data!$E$28,IF(E95="Maadi Managers",0,IF(E95="Maadi",G95*Data!$E$29,IF(E95="City Stars Managers",0,IF(E95="City Stars",G95*Data!$E$30,IF(E95="MOA Managers",0,IF(E95="MOA",G95*Data!$E$31,IF(E95="Concord Managers",0,IF(E95="Concord",G95*Data!$E$32)))))))))) -> 1190.328884 | AF95: 1895.668341 | AN95: 18000 | AP95: محمود سعيد عواض محمد | AQ95: 3086 | AR95: 22787 | AS95: NBEGEGCXXXX
A96: 5 | C96: 22821 | D96: Concord | E96: Concord | F96: Cook | G96: 59 | H96: 3 | I96: 0.04 | J96: 1901-11-10 | K96: 2017-08-15 | L96: 33.10589199 | M96: 2289.23139 | N96: =30-4 -> 26 | O96: 337.755451 | P96: 1951.475939 | Q96: Undeserved | R96: Undeserved Concord | S96: 1.510122847 | T96: 0 | U96: 0 | V96: 0 | W96: 370.861343 | X96: 37.0861343 | Y96: 0 | Z96: 0 | AA96: 0 | AB96: 333.7752087 | AC96: 5.657206927 | AD96: 392.7752087 | AE96: =IF(E96="Mohandseen Managers",0,IF(E96="Mohandssen",G96*Data!$E$28,IF(E96="Maadi Managers",0,IF(E96="Maadi",G96*Data!$E$29,IF(E96="City Stars Managers",0,IF(E96="City Stars",G96*Data!$E$30,IF(E96="MOA Managers",0,IF(E96="MOA",G96*Data!$E$31,IF(E96="Concord Managers",0,IF(E96="Concord",G96*Data!$E$32)))))))))) -> 43.86048224 | AF96: 289.9147264 | AP96: مصطفى حسين مصطفى حسين محمد | AQ96: 333.78
A97: 6 | C97: 21234 | D97: Concord | E97: Concord | F97: Cook | G97: 2440.47 | H97: 3 | I97: 0.04 | J97: 1910-03-12 | K97: 2009-03-01 | L97: 1369.38875 | M97: 2289.23139 | N97: 0 | O97: 2289.23139 | P97: 0 | Q97: Deserved | R97: Deserved Concord | S97: 62.46456787 | T97: 64.4620337 | U97: 198.9004322 | V97: 263.3624659 | W97: 3921.982606 | X97: 392.1982606 | Y97: 0 | Z97: 0 | AA97: 0 | AB97: 3529.784345 | AC97: 1.446354327 | AD97: 5970.254345 | AE97: =IF(E97="Mohandseen Managers",0,IF(E97="Mohandssen",G97*Data!$E$28,IF(E97="Maadi Managers",0,IF(E97="Maadi",G97*Data!$E$29,IF(E97="City Stars Managers",0,IF(E97="City Stars",G97*Data!$E$30,IF(E97="MOA Managers",0,IF(E97="MOA",G97*Data!$E$31,IF(E97="Concord Managers",0,IF(E97="Concord",G97*Data!$E$32)))))))))) -> 1814.240527 | AF97: 1715.543818 | AN97: 18000 | AP97: عمر مصطفى جاد محمد | AQ97: 3529.78 | AR97: 21234 | AS97: NBEGEGCXXXX
A98: 7 | C98: 22849 | D98: Concord | E98: Concord | F98: Baker | G98: 1601.2 | H98: 3 | I98: 0.04 | J98: 1901-07-27 | K98: 2017-12-01 | L98: 898.4602417 | M98: 2289.23139 | N98: 0 | O98: 2289.23139 | P98: 0 | Q98: Deserved | R98: Deserved Concord | S98: 40.98319835 | T98: 42.29374193 | U98: 198.9004322 | V98: 241.1941742 | W98: 3428.885806 | X98: 342.8885806 | Y98: 0 | Z98: 0 | AA98: 0 | AB98: 3085.997225 | AC98: 1.927302789 | AD98: 4687.197225 | AE98: =IF(E98="Mohandseen Managers",0,IF(E98="Mohandssen",G98*Data!$E$28,IF(E98="Maadi Managers",0,IF(E98="Maadi",G98*Data!$E$29,IF(E98="City Stars Managers",0,IF(E98="City Stars",G98*Data!$E$30,IF(E98="MOA Managers",0,IF(E98="MOA",G98*Data!$E$31,IF(E98="Concord Managers",0,IF(E98="Concord",G98*Data!$E$32)))))))))) -> 1190.328884 | AF98: 1895.668341 | AN98: 18000 | AP98: بسنت عادل عبد ربه عامر | AQ98: 3086 | AR98: 22849 | AS98: NBEGEGCXXXX
A99: 8 | C99: 22893 | D99: Concord | E99: Concord | F99: Dishwaser | G99: 1224.39 | H99: 1 | I99: 0.04 | J99: 1900-11-23 | K99: 2018-08-07 | L99: 687.0258152 | M99: 2289.23139 | N99: 0 | O99: 2289.23139 | P99: 0 | Q99: Deserved | R99: Deserved Concord | S99: 31.33863242 | T99: 32.3407661 | U99: 198.9004322 | V99: 231.2411983 | W99: 3207.498404 | X99: 320.7498404 | Y99: 0 | Z99: 0 | AA99: 0 | AB99: 2886.748563 | AC99: 2.357703479 | AD99: 4111.138563 | AE99: =IF(E99="Mohandseen Managers",0,IF(E99="Mohandssen",G99*Data!$E$28,IF(E99="Maadi Managers",0,IF(E99="Maadi",G99*Data!$E$29,IF(E99="City Stars Managers",0,IF(E99="City Stars",G99*Data!$E$30,IF(E99="MOA Managers",0,IF(E99="MOA",G99*Data!$E$31,IF(E99="Concord Managers",0,IF(E99="Concord",G99*Data!$E$32)))))))))) -> 910.2090821 | AF99: 1976.539481 | AN99: 18000 | AP99: احمد محمد احمد مرسى خليل | AQ99: 2886.75 | AR99: 22893 | AS99: NBEGEGCXXXX
A100: 9 | C100: 22904 | D100: Concord | E100: Concord | F100: Food Server | G100: 864.6467213 | H100: 3 | I100: 0.04 | J100: 1900-10-20 | K100: 2018-09-11 | L100: 485.167813 | M100: 2289.23139 | N100: 10 | O100: 1538.663721 | P100: 750.5676689 | Q100: Undeserved | R100: Undeserved Concord | S100: 22.13089438 | T100: 0 | U100: 0 | V100: 0 | W100: 2023.831534 | X100: 202.3831534 | Y100: 0 | Z100: 0 | AA100: 0 | AB100: 1821.448381 | AC100: 2.10658103 | AD100: 2686.095102 | AE100: =IF(E100="Mohandseen Managers",0,IF(E100="Mohandssen",G100*Data!$E$28,IF(E100="Maadi Managers",0,IF(E100="Maadi",G100*Data!$E$29,IF(E100="City Stars Managers",0,IF(E100="City Stars",G100*Data!$E$30,IF(E100="MOA Managers",0,IF(E100="MOA",G100*Data!$E$31,IF(E100="Concord Managers",0,IF(E100="Concord",G100*Data!$E$32)))))))))) -> 642.7766468 | AF100: 1178.671734 | AP100: عبد الرحمن احمد السيد حسنى | AQ100: 1821.45
A101: 10 | C101: 21553 | D101: Concord | E101: Concord | F101: C.T - Cook | G101: 2414.093333 | H101: 4 | I101: 0.08 | J101: 1908-01-29 | K101: 2011-04-24 | L101: 1354.588359 | M101: 2289.23139 | N101: 0 | O101: 2289.23139 | P101: 0 | Q101: Deserved | R101: Deserved Concord | S101: 61.78944911 | T101: 63.76532627 | U101: 198.9004322 | V101: 262.6657585 | W101: 3906.485507 | X101: 390.6485507 | Y101: 0 | Z101: 0 | AA101: 0 | AB101: 3515.836956 | AC101: 1.456379879 | AD101: 5929.93029 | AE101: =IF(E101="Mohandseen Managers",0,IF(E101="Mohandssen",G101*Data!$E$28,IF(E101="Maadi Managers",0,IF(E101="Maadi",G101*Data!$E$29,IF(E101="City Stars Managers",0,IF(E101="City Stars",G101*Data!$E$30,IF(E101="MOA Managers",0,IF(E101="MOA",G101*Data!$E$31,IF(E101="Concord Managers",0,IF(E101="Concord",G101*Data!$E$32)))))))))) -> 1794.632165 | AF101: 1721.204791 | AN101: 18000 | AP101: اشرف محمد احمد سيد | AQ101: 3515.84 | AR101: 21553 | AS101: NBEGEGCXXXX
A102: 11 | C102: 22360 | D102: Concord | E102: Concord | F102: Food Server | G102: 1711.82 | H102: 3 | I102: 0.04 | J102: 1904-04-23 | K102: 2015-02-20 | L102: 960.5309836 | M102: 2289.23139 | N102: 0 | O102: 2289.23139 | P102: 0 | Q102: Deserved | R102: Deserved Concord | S102: 43.81455071 | T102: 45.21563409 | U102: 198.9004322 | V102: 244.1160663 | W102: 3493.87844 | X102: 349.387844 | Y102: 0 | Z102: 0 | AA102: 0 | AB102: 3144.490596 | AC102: 1.836928296 | AD102: 4856.310596 | AE102: =IF(E102="Mohandseen Managers",0,IF(E102="Mohandssen",G102*Data!$E$28,IF(E102="Maadi Managers",0,IF(E102="Maadi",G102*Data!$E$29,IF(E102="City Stars Managers",0,IF(E102="City Stars",G102*Data!$E$30,IF(E102="MOA Managers",0,IF(E102="MOA",G102*Data!$E$31,IF(E102="Concord Managers",0,IF(E102="Concord",G102*Data!$E$32)))))))))) -> 1272.563571 | AF102: 1871.927025 | AN102: 18000 | AP102: محمد صلاح خلف الله محمود | AQ102: 3144.49 | AR102: 22360 | AS102: NBEGEGCXXXX
A103: 12 | C103: 20679 | D103: Concord | E103: Concord | F103: C.T - Food Server | G103: 2929.56 | H103: 4 | I103: 0.08 | J103: 1912-12-31 | K103: 2006-04-26 | L103: 1643.825372 | M103: 2289.23139 | N103: 0 | O103: 2289.23139 | P103: 0 | Q103: Deserved | R103: Deserved Concord | S103: 74.98297437 | T103: 77.38074857 | U103: 198.9004322 | V103: 276.2811808 | W103: 4209.337943 | X103: 420.9337943 | Y103: 0 | Z103: 0 | AA103: 0 | AB103: 3788.404148 | AC103: 1.293164895 | AD103: 6717.964148 | AE103: =IF(E103="Mohandseen Managers",0,IF(E103="Mohandssen",G103*Data!$E$28,IF(E103="Maadi Managers",0,IF(E103="Maadi",G103*Data!$E$29,IF(E103="City Stars Managers",0,IF(E103="City Stars",G103*Data!$E$30,IF(E103="MOA Managers",0,IF(E103="MOA",G103*Data!$E$31,IF(E103="Concord Managers",0,IF(E103="Concord",G103*Data!$E$32)))))))))) -> 2177.829057 | AF103: 1610.575092 | AN103: 18000 | AP103: محمود محمد عزت احمد | AQ103: 3788.4 | AR103: 20679 | AS103: NBEGEGCXXXX
A104: 13 | C104: 22923 | D104: Concord | E104: Concord | F104: Cook | G104: 1861.73 | H104: 3 | I104: 0.04 | J104: 1900-03-12 | K104: 2019-04-23 | L104: 1044.648005 | M104: 2289.23139 | N104: 0 | O104: 2289.23139 | P104: 0 | Q104: Deserved | R104: Deserved Concord | S104: 47.65154251 | T104: 49.17532361 | U104: 198.9004322 | V104: 248.0757559 | W104: 3581.955151 | X104: 358.1955151 | Y104: 0 | Z104: 0 | AA104: 0 | AB104: 3223.759636 | AC104: 1.731593537 | AD104: 5085.489636 | AE104: =IF(E104="Mohandseen Managers",0,IF(E104="Mohandssen",G104*Data!$E$28,IF(E104="Maadi Managers",0,IF(E104="Maadi",G104*Data!$E$29,IF(E104="City Stars Managers",0,IF(E104="City Stars",G104*Data!$E$30,IF(E104="MOA Managers",0,IF(E104="MOA",G104*Data!$E$31,IF(E104="Concord Managers",0,IF(E104="Concord",G104*Data!$E$32)))))))))) -> 1384.006366 | AF104: 1839.75327 | AP104: عمر سعداوى احمد سعد | AQ104: 3223.76
A105: 14 | C105: 22924 | D105: Concord | E105: Concord | F105: Host | G105: 521.1344262 | H105: 3 | I105: 0.04 | J105: 1900-02-16 | K105: 2019-05-18 | L105: 292.4172886 | M105: 2289.23139 | N105: 17 | O105: 1013.266353 | P105: 1275.965037 | Q105: Undeserved | R105: Undeserved Concord | S105: 13.33859328 | T105: 0 | U105: 0 | V105: 0 | W105: 1305.683642 | X105: 130.5683642 | Y105: 0 | Z105: 0 | AA105: 0 | AB105: 1175.115277 | AC105: 2.254917768 | AD105: 1696.249704 | AE105: =IF(E105="Mohandseen Managers",0,IF(E105="Mohandssen",G105*Data!$E$28,IF(E105="Maadi Managers",0,IF(E105="Maadi",G105*Data!$E$29,IF(E105="City Stars Managers",0,IF(E105="City Stars",G105*Data!$E$30,IF(E105="MOA Managers",0,IF(E105="MOA",G105*Data!$E$31,IF(E105="Concord Managers",0,IF(E105="Concord",G105*Data!$E$32)))))))))) -> 387.4102923 | AF105: 787.7049851 | AP105: عبد الرحمن احمد محمد | AQ105: 1175.12
A106: Total | G106: =SUBTOTAL(9,G16:G105) -> 225657.9405 | L106: =SUBTOTAL(9,L16:L105) -> 76851.2412 | M106: =SUBTOTAL(9,M16:M105) -> 179319.5628 | N106: =SUBTOTAL(9,N16:N105) -> 153 | O106: =SUBTOTAL(9,O16:O105) -> 168081.3364 | P106: =SUBTOTAL(9,P16:P105) -> 11238.22636 | S106: =SUBTOTAL(9,S16:S105) -> 3371.467909 | T106: 3371.467909 | U106: 7866.758455 | V106: 11238.22636 | W106: 256170.804 | X106: 25617.0804 | Y106: 0 | Z106: 0 | AA106: 0 | AB106: 230553.7236 | AD106: =SUBTOTAL(9,AD16:AD105) -> 456211.6641 | AE106: =SUBTOTAL(9,AE16:AE105) -> 86544.19054 | AF106: =SUBTOTAL(9,AF16:AF105) -> 144009.5331 | AQ106: =SUBTOTAL(9,AQ16:AQ105) -> 230553.73

Sheet Indirect 15%
A1: January | B1: =Data!A17 -> Service Charge (12%) Calculation (Details) : | C1: =Data!D1 -> June | D1: 2019 | J1: Deserved Mohandseen
A2: February | B2: =Data!A12 -> 3- Employees Not Directly connected to customers | C2: =Data!C12 -> 0.15 | E2: Service Charge (15% Of 12%) Calculation (Details) : | J2: Undeserved Mohandseen | L2: Redistribute Deducted Amounts (From Equal Share Amount) To All Other Staff | Y2: Distribute Other Hold (Add / Deducted) Amounts
A3: March | B3: =Data!A18 -> 0 | C3: =Data!D18 -> 5559.858 | D3: Deserved | E3: 0.3 | F3: 0.7 | G3: Equal Share | H3: Distribution % | J3: Deserved Maadi | L3: Diff. Amount Of Equal Share ( Distribute For All Other Staff)
A4: April | B4: =Data!A19 -> 0 | C4: =Data!D19 -> 8267.202 | D4: Undeserved | E4: 12% According To Net Salary | F4: 12% According To Equal Share | J4: Undeserved Maadi
A5: May | B5: =Data!A20 -> 0 | C5: =Data!D20 -> 24819.156 | E5: =C8*E3 -> 19212.8103 | F5: =C8*F3 -> 44829.8907 | G5: =F5/E7 -> 3202.13505 | H5: =E5/G30 ->  | J5: Deserved City Stars | L5: Deducted Amounts | M5: Number Of Deserved Staff | P5: =E3 -> 0.3 | Q5: =F3 -> 0.7 | R5: Net Salary | S5: Equal Share | T5: Net Deducted Amount Summary | V5: Net Salary Without Undeserved Employees | Y5: Add (Hold Amounts) | Z5: Deducted (Hold Amounts) | AA5: Hold Amounts | AB5: =E3 -> 0.3 | AC5: =F3 -> 0.7 | AD5: Net Salary | AE5: Equal Share
A6: June | B6: =Data!A21 -> 0 | C6: =Data!D21 -> 11930.418 | E6: Number Of Staff | F6: Indirect | J6: Undeserved City Stars | M6: All Staff | N6: Undeserved Staff | O6: Net Staff | P6: Distribute Deducted Amounts According To Net Salary | Q6: Distribute Deducted Amounts According To Equal Share | R6: Distribution % | S6: Amount | T6: Amount | U6: Distribution % | V6: Employee Undeserved | W6: Deserved Net Salary | AB6: Distribute Deducted Amounts According To Net Salary | AC6: Distribute Deducted Amounts According To Equal Share | AD6: Distribution % | AE6: Amount
A7: July | B7: =Data!A22 -> 0 | C7: =Data!D22 -> 13466.067 | E7: =COUNTIF($B$16:$E$29,F6) -> 14 | J7: Deserved MOA | L7: =P30 -> 0 | M7: =E7 -> 14 | N7: =COUNTIF($Q$16:$Q$116,D4) -> 2 | O7: =M7-N7 -> 12 | P7: =L7*P5 -> 0 | Q7: =L7*Q5 -> 0 | R7: =P7/G30 ->  | S7: =Q7/O7 -> 0 | T7: =P7 -> 0 | U7: =T7/W7 ->  | V7: =SUMIF($Q$16:$Q$116,D4,$G$16:$G$116) -> 0 | W7: =G30-V7 -> 0 | AA7: =Y7-Z7 -> 0 | AB7: =AA7*AB5 -> 0 | AC7: =AA7*AC5 -> 0 | AD7: =AB7/G30 ->  | AE7: =AC7/M7 -> 0
A8: August | B8: =Data!A23 -> Total Service Charge (12%) | C8: =SUM(C3:C7) -> 64042.701 | J8: Undeserved MOA
A9: September | J9: Deserved Concord
A10: October | J10: Undeserved Concord
A11: November
A12: December
A14: Employees Data | L14: Service Charge (60% Of 12%) Calculation | N14: Redistribute Deducted Amounts (From Equal Share Amount) To All Other Staff | X14: Distribute Other Hold (Add / Deducted) Amounts | AH14: El- Ahly ( ACH ) Payroll Data
A15: # | B15: Employee Name | C15: Employee ID | D15: Branch | E15: Division / Department | F15: Job Description / Occupation | G15: Net Salary | H15: Grade | I15: Incentive % | J15: Number Of Work Years | K15: Date Of Joining | L15: 12% According To Net Salary Total | M15: 12% Equal Share Total | N15: Number Of Days (Sick Leave & Absent (With/Without) Permission) | O15: 12% Equal Share Net | P15: Diff. Amount Of Equal Share ( Distribute For All Other Staff) | Q15: Distribution Condition | R15: Distribute Deducted Amounts According To Net Salary | S15: Redistribute Deducted Amounts According To Net Salary | T15: Distribute Deducted Amounts According To Equal Share | U15: Total Distribute Deducted Amounts | V15: Total 12% | W15: Tax 10% | X15: Distribute Deducted Amounts According To Net Salary | Y15: Distribute Deducted Amounts According To Equal Share | Z15: Total Distribute Deducted Amounts | AA15: Net 12% | AB15: % | AC15: Total Package (Net) | AD15: Current 12% (Net) | AE15: 12 % Diff. To Current | AH15: Bank Branch Code | AI15: Acc. Num. for Transfer | AJ15: Employee Name | AK15: NBOE Amount | AL15: Bank NBOE EMP. NUM. | AM15: Bank Code
A16: 1 | B16: Hemdan Abdel Samie Mahmoud Abd Allah | C16: 20016 | D16: Indirect | E16: Head Office | F16: HR Officer | H16: 7 | I16: =IF(AND(H16>0,H16<=3),4%,IF(AND(H16>3,H16<=6),8%,IF(AND(H16>6,H16<=9),10%,IF(AND(H16>9,H16<=11),12%,IF(AND(H16>11,H16<=13),16%))))) -> 0.1 | J16: =DAYS360(K16,TODAY(),1) -> 1918-09-26 | K16: 2000-07-01 | L16: =IFERROR(G16*$H$5,0) -> 0 | M16: =IF(G16>=1,$G$5,0) -> 0 | N16: 0 | O16: =(M16-(M16/30.5)*N16) -> 0 | P16: =M16-O16 -> 0 | Q16: Deserved | R16: =IF(D16="Indirect",G16*$R$7,0) ->  | S16: =IF(Q16="Undeserved",0,G16*$U$7) ->  | T16: =IF(Q16="Deserved",$S$7,0) -> 0 | U16: =S16+T16 ->  | V16: =L16+M16-P16+U16 ->  | W16: =V16*10% ->  | X16: =IF(D16="Indirect",G16*$AD$7,0) ->  | Y16: =IF(D16="Indirect",$AE$7,0) -> 0 | Z16: =SUM(X16:Y16) ->  | AA16: =V16-W16+Z16 ->  | AB16: =IFERROR(AA16/G16,0) -> 0 | AC16: =G16+AA16 ->  | AD16: 0 | AE16: =AA16-AD16 ->  | AH16: 18000 | AJ16: حمدان عبد السميع محمود عبد الله | AK16: =ROUND(AA16,2) ->  | AL16: 20016 | AM16: NBEGEGCXXXX
A17: 2 | B17: Hossam Abdo Saif Eldein Mohamed Elmekawy | C17: 20135 | D17: Indirect | E17: Head Office | F17: Accountant Manager | H17: 10 | I17: =IF(AND(H17>0,H17<=3),4%,IF(AND(H17>3,H17<=6),8%,IF(AND(H17>6,H17<=9),10%,IF(AND(H17>9,H17<=11),12%,IF(AND(H17>11,H17<=13),16%))))) -> 0.12 | J17: =DAYS360(K17,TODAY(),1) -> 1917-05-04 | K17: 2001-12-01 | L17: =IFERROR(G17*$H$5,0) -> 0 | M17: =IF(G17>=1,$G$5,0) -> 0 | N17: 0 | O17: 0 | P17: =M17-O17 -> 0 | Q17: Deserved | T17: 0 | U17: =S17+T17 ->  | W17: =V17*10% ->  | Y17: 0 | Z17: =SUM(X17:Y17) ->  | AA17: =V17-W17+Z17 ->  | AB17: 0 | AD17: 0 | AE17: =AA17-AD17 ->  | AH17: 0163 | AI17: 1635000183865400012 | AJ17: حسام عبده سيف الدين محمد المكاوى | AK17: =ROUND(AA17,2) ->  | AL17: 20135 | AM17: NBEGEGCXXXX
A18: 3 | B18: Tamer Gamal Fayed Habib | C18: 20257 | D18: Indirect | E18: Head Office | F18: Chief Accountant | H18: 10 | I18: 0.12 | J18: 1915-02-13 | K18: 2004-03-02 | L18: 0 | M18: 0 | N18: 0 | O18: 0 | P18: 0 | Q18: Deserved | T18: 0 | Y18: 0 | AB18: 0 | AD18: 0 | AH18: 0180 | AI18: 1805010141198000012 | AJ18: تامر جمال فايد حبيب | AL18: 20257 | AM18: NBEGEGCXXXX
A19: 4 | B19: Wael Mohamed Sabry Ibrahim Mohamed Hassan | C19: 20770 | D19: Indirect | E19: Head Office | F19: OFFICE BOY | H19: 4 | I19: 0.08 | J19: 1912-06-29 | K19: 2006-11-01 | L19: 0 | M19: 0 | N19: 0 | O19: 0 | P19: 0 | Q19: Deserved | T19: 0 | Y19: 0 | AB19: 0 | AD19: 0 | AH19: 18000 | AJ19: وائل محمد صبرى ابراهيم محمد حسن | AL19: 20770 | AM19: NBEGEGCXXXX
A20: 5 | B20: Islam Magdy Abdullah Abd Elsamiea | C20: 20975 | D20: Indirect | E20: Head Office | F20: Assistant Purchasing Manager | H20: 10 | I20: 0.12 | J20: 1911-05-14 | K20: 2007-12-23 | L20: 0 | M20: 0 | N20: 0 | O20: 0 | P20: 0 | Q20: Undeserved | S20: 0 | T20: 0 | U20: 0 | V20: 0 | W20: 0 | Y20: 0 | AB20: 0 | AD20: 0 | AH20: 18000 | AJ20: اسلام مجدى عبد الله عبد السميع | AL20: 20975 | AM20: NBEGEGCXXXX
A21: 6 | B21: Salim Abdul Karim Sayed Elaslampolly | C21: 20497 | D21: Indirect | E21: Head Office | F21: Purchasing Supervisor | H21: 9 | I21: 0.1 | J21: 1913-07-31 | K21: 2005-09-24 | L21: 0 | M21: 0 | N21: 0 | O21: 0 | P21: 0 | Q21: Deserved | T21: 0 | Y21: 0 | AB21: 0 | AD21: 0 | AH21: 0180 | AI21: 1805000912326301013 | AJ21: سليم عبد الكريم سيد الاسلامبولى | AL21: 20497 | AM21: NBEGEGCXXXX
A22: 7 | B22: Ahmed Wagih Ibahim Abbass | C22: 22017 | D22: Indirect | E22: Head Office | F22: Senior Accountant Supervisor | H22: 9 | I22: 0.1 | J22: 1905-10-04 | K22: 2013-09-01 | L22: 0 | M22: 0 | N22: 0 | O22: 0 | P22: 0 | Q22: Deserved | T22: 0 | Y22: 0 | AB22: 0 | AD22: 0 | AH22: 0176 | AI22: 1765000749334400018 | AJ22: احمد وجيه ابراهيم عباس | AL22: 22017 | AM22: NBEGEGCXXXX
A23: 8 | B23: Mohamed Ali Mohamed Ali | C23: 22084 | D23: Indirect | E23: Head Office | F23: HR Specialist | H23: 8 | I23: 0.1 | J23: 1905-04-15 | K23: 2014-02-23 | L23: 0 | M23: 0 | N23: 0 | O23: 0 | P23: 0 | Q23: Deserved | T23: 0 | Y23: 0 | AB23: 0 | AD23: 0 | AH23: 18000 | AJ23: محمد على محمد على | AL23: 22084 | AM23: NBEGEGCXXXX
A24: 9 | B24: Thabet Mohamed Abd Elnaby Hasnein | C24: 20007 | D24: Indirect | E24: Head Office | F24: District Manager | H24: 11 | I24: 0.12 | J24: 1918-09-26 | K24: 2000-07-01 | L24: 0 | M24: 0 | N24: 0 | O24: 0 | P24: 0 | Q24: Deserved | T24: 0 | Y24: 0 | AB24: 0 | AD24: 0 | AH24: 18000 | AJ24: ثابت محمد عبد النبى حسانين | AL24: 20007 | AM24: NBEGEGCXXXX
A25: 10 | B25: Alaa Ibrahim Mohamed Mabrouk | C25: 21989 | D25: Indirect | E25: ALL RES. | F25: Store Keeper | H25: 7 | I25: 0.1 | J25: 1905-12-03 | K25: 2013-07-01 | L25: 0 | M25: 0 | N25: 0 | O25: 0 | P25: 0 | Q25: Deserved | T25: 0 | Y25: 0 | AB25: 0 | AD25: 0 | AH25: 18000 | AJ25: علاء ابراهيم محمد مبروك | AL25: 21989 | AM25: NBEGEGCXXXX
A26: 11 | B26: Ahmed Ezz El Din Mohamed Ahmad | C26: 30003 | D26: Indirect | E26: Head Office | F26: Country Manager | H26: 12 | I26: 0.16 | J26: 1912-05-01 | K26: 2006-12-30 | L26: 0 | M26: 0 | N26: 0 | O26: 0 | P26: 0 | Q26: Deserved | T26: 0 | Y26: 0 | AB26: 0 | AD26: 0 | AH26: 0187 | AI26: 1875000071624800019 | AJ26: احمد عز الدين محمد احمد | AL26: 30003 | AM26: NBEGEGCXXXX
A27: 12 | B27: Abdul Rahman El Husseini Elsayed Mohamed | C27: 22210 | D27: Indirect | E27: ALL RES. | F27: Maintenance Specialist | H27: 7 | I27: 0.1 | J27: 1904-09-09 | K27: 2014-10-01 | L27: 0 | M27: 0 | N27: 0 | O27: 0 | P27: 0 | Q27: Deserved | T27: 0 | Y27: 0 | AB27: 0 | AD27: 0 | AH27: 18000 | AJ27: عبد الرحمن الحسينى السيد محمد | AL27: 22210 | AM27: NBEGEGCXXXX
A28: 13 | B28: Mohamed Husain Abd Elazem Ahmed | C28: 22599 | D28: Indirect | E28: ALL RES. | F28: Maintenance Specialist | H28: 7 | I28: 0.1 | J28: 1903-05-19 | K28: 2016-01-30 | L28: 0 | M28: 0 | N28: 0 | O28: 0 | P28: 0 | Q28: Deserved | T28: 0 | Y28: 0 | AB28: 0 | AD28: 0 | AH28: 18000 | AJ28: محمد حسين عبد العظيم احمد | AL28: 22599 | AM28: NBEGEGCXXXX
A29: 14 | B29: Alaa Jamal Elsayed Shahine | C29: 21913 | D29: Indirect | E29: Head Office | F29: Admin Assistant | H29: 4 | I29: 0.08 | J29: 1906-04-02 | K29: 2013-03-01 | L29: 0 | M29: 0 | N29: 0 | O29: 0 | P29: 0 | Q29: Undeserved | S29: 0 | T29: 0 | U29: 0 | V29: 0 | W29: 0 | Y29: 0 | AB29: 0 | AD29: 0 | AH29: 18000 | AJ29: الاء جمال السيد شاهين | AL29: 21913 | AM29: NBEGEGCXXXX
A30: Total | G30: =SUBTOTAL(9,G16:G29) -> 0 | L30: =SUBTOTAL(9,L16:L29) -> 0 | M30: =SUBTOTAL(9,M16:M29) -> 0 | N30: =SUBTOTAL(9,N16:N29) -> 0 | O30: =SUBTOTAL(9,O16:O29) -> 0 | P30: =SUBTOTAL(9,P16:P29) -> 0 | R30: =SUBTOTAL(9,R16:R29) ->  | T30: 0 | Y30: 0 | AC30: =SUBTOTAL(9,AC16:AC29) ->  | AD30: =SUBTOTAL(9,AD16:AD29) -> 0 | AE30: =SUBTOTAL(9,AE16:AE29) ->  | AK30: =SUBTOTAL(9,AK16:AK29) -> 
AA35: =+AA30+'Direct 60%'!AB106 -> 

Sheet Payslip
A1: # | B1: Employee Name | C1: Employee ID | D1: Division / Department | E1: Job Description | F1: Service Charge (12%) Amount (Net) | U1: =MAX(A2:A188) -> 8 | V1: =MAX(مرجع) -> 8
A2: =IF(B2=0,"",1) -> 1 | B2: ='Direct 60%'!B16 -> aaaa1 | C2: ='Direct 60%'!C16 -> 20426 | D2: ='Direct 60%'!E16 -> Mohandseen Managers | E2: ='Direct 60%'!F16 -> Assistant Manager | F2: ='Direct 60%'!AQ16 -> 911.09 | V2: =V1 -> 8
A3: =IF(B3=0,"",MAX($A$1:A2)+1) -> 2 | B3: ='Direct 60%'!B17 -> aaaa2 | C3: ='Direct 60%'!C17 -> 22855 | D3: ='Direct 60%'!E17 -> Mohandseen Managers | E3: ='Direct 60%'!F17 -> Resturant Manager | F3: ='Direct 60%'!AQ17 -> 1104.91
A4: =IF(B4=0,"",MAX($A$1:A3)+1) -> 3 | B4: ='Direct 60%'!B18 -> aaaa3 | C4: ='Direct 60%'!C18 -> 22898 | D4: ='Direct 60%'!E18 -> Mohandseen Managers | E4: ='Direct 60%'!F18 -> Assistant Manager | F4: ='Direct 60%'!AQ18 -> 986.33 | V4: 1
A5: =IF(B5=0,"",MAX($A$1:A4)+1) -> 4 | B5: ='Direct 60%'!B19 -> aaaa4 | C5: ='Direct 60%'!C19 -> 0 | D5: ='Direct 60%'!E19 -> Mohandssen | E5: ='Direct 60%'!F19 -> Security | F5: ='Direct 60%'!AQ19 -> 1432.84 | V5: =$V$2 -> 8
A6: =IF(B6=0,"",MAX($A$1:A5)+1) -> 5 | B6: ='Direct 60%'!B20 -> aaaa5 | C6: ='Direct 60%'!C20 -> 20270 | D6: ='Direct 60%'!E20 -> Mohandssen | E6: ='Direct 60%'!F20 -> C.T - Prep | F6: ='Direct 60%'!AQ20 -> 1937.48
A7: =IF(B7=0,"",MAX($A$1:A6)+1) -> 6 | B7: ='Direct 60%'!B21 -> aaaa6 | C7: ='Direct 60%'!C21 -> 22140 | D7: ='Direct 60%'!E21 -> Mohandssen | E7: ='Direct 60%'!F21 -> Food Server | F7: ='Direct 60%'!AQ21 -> 1538.42 | H7: =$V$4 -> 1
A8: =IF(B8=0,"",MAX($A$1:A7)+1) -> 7 | B8: ='Direct 60%'!B22 -> aaaa7 | C8: ='Direct 60%'!C22 -> 22612 | D8: ='Direct 60%'!E22 -> Mohandssen | E8: ='Direct 60%'!F22 -> Baker | F8: ='Direct 60%'!AQ22 -> 1450.48
A9: =IF(B9=0,"",MAX($A$1:A8)+1) -> 8 | B9: ='Direct 60%'!B23 -> aaaa8 | C9: ='Direct 60%'!C23 -> 22773 | D9: ='Direct 60%'!E23 -> Mohandssen | E9: ='Direct 60%'!F23 -> Cook | F9: ='Direct 60%'!AQ23 -> 1450.71
A10: =IF(B10=0,"",MAX($A$1:A9)+1) ->  | B10: ='Direct 60%'!B24 -> 0 | C10: ='Direct 60%'!C24 -> 22814 | D10: ='Direct 60%'!E24 -> Mohandssen | E10: ='Direct 60%'!F24 -> Dishwaser | F10: ='Direct 60%'!AQ24 -> 1372.85 | J10: Acknowledgment of receipt for Service charge 12 % | P10: June | Q10: 2019
A11: =IF(B11=0,"",MAX($A$1:A10)+1) ->  | B11: ='Direct 60%'!B25 -> 0 | C11: ='Direct 60%'!C25 -> 20488 | D11: ='Direct 60%'!E25 -> Mohandssen | E11: ='Direct 60%'!F25 -> Prep | F11: ='Direct 60%'!AQ25 -> 1836.31
A12: =IF(B12=0,"",MAX($A$1:A11)+1) ->  | B12: ='Direct 60%'!B26 -> 0 | C12: ='Direct 60%'!C26 -> 21248 | D12: ='Direct 60%'!E26 -> Mohandssen | E12: ='Direct 60%'!F26 -> Food Server | F12: ='Direct 60%'!AQ26 -> 1667.56
A13: =IF(B13=0,"",MAX($A$1:A12)+1) ->  | B13: ='Direct 60%'!B27 -> 0 | C13: ='Direct 60%'!C27 -> 22172 | D13: ='Direct 60%'!E27 -> Mohandssen | E13: ='Direct 60%'!F27 -> Food Server | F13: ='Direct 60%'!AQ27 -> 1538.42 | J13: Employee Name : | M13: =IF(ISERROR(VLOOKUP($H$7,بيانات1,2,0)),"",VLOOKUP($H$7,بيانات1,2,0)) -> aaaa1 | P13: ID : | Q13: =VLOOKUP(M13,$B$2:$F$188,2,FALSE) -> 20426
A14: =IF(B14=0,"",MAX($A$1:A13)+1) ->  | B14: ='Direct 60%'!B28 -> 0 | C14: ='Direct 60%'!C28 -> 22912 | D14: ='Direct 60%'!E28 -> Mohandssen | E14: ='Direct 60%'!F28 -> Food Server | F14: ='Direct 60%'!AQ28 -> 1381.48
A15: =IF(B15=0,"",MAX($A$1:A14)+1) ->  | B15: ='Direct 60%'!B29 -> 0 | C15: ='Direct 60%'!C29 -> 22922 | D15: ='Direct 60%'!E29 -> Mohandssen | E15: ='Direct 60%'!F29 -> Cook | F15: ='Direct 60%'!AQ29 -> 1406.61 | J15: Job Title : | M15: =VLOOKUP(M13,$B$2:$F$188,4,FALSE) -> Assistant Manager | O15: Branch | P15: =VLOOKUP(M13,$B$2:$F$188,3,FALSE) -> Mohandseen Managers
A16: =IF(B16=0,"",MAX($A$1:A15)+1) ->  | B16: ='Direct 60%'!B30 -> 0 | C16: ='Direct 60%'!C30 -> 20103 | D16: ='Direct 60%'!E30 -> Maadi Managers | E16: ='Direct 60%'!F30 -> S R .Assistant Manager | F16: ='Direct 60%'!AQ30 -> 1642.57
A17: =IF(B17=0,"",MAX($A$1:A16)+1) ->  | B17: ='Direct 60%'!B31 -> 0 | C17: ='Direct 60%'!C31 -> 30021 | D17: ='Direct 60%'!E31 -> Maadi Managers | E17: ='Direct 60%'!F31 -> S R .Assistant Manager | F17: ='Direct 60%'!AQ31 -> 1680.21 | J17: Net amount of : | N17: =VLOOKUP(M13,$B$2:$F$188,5,FALSE) -> 911.09
A18: =IF(B18=0,"",MAX($A$1:A17)+1) ->  | B18: ='Direct 60%'!B32 -> 0 | C18: ='Direct 60%'!C32 -> 20161 | D18: ='Direct 60%'!E32 -> Maadi Managers | E18: ='Direct 60%'!F32 -> Assistant Manager | F18: ='Direct 60%'!AQ32 -> 1453.46
A19: =IF(B19=0,"",MAX($A$1:A18)+1) ->  | B19: ='Direct 60%'!B33 -> 0 | C19: ='Direct 60%'!C33 -> 20156 | D19: ='Direct 60%'!E33 -> Maadi | E19: ='Direct 60%'!F33 -> Security | F19: ='Direct 60%'!AQ33 -> 1906.94 | J19: In exchange for : | N19: =P10 -> June | O19: =Q10 -> 2019 | P19: Service charge 12%
A20: =IF(B20=0,"",MAX($A$1:A19)+1) ->  | B20: ='Direct 60%'!B34 -> 0 | C20: ='Direct 60%'!C34 -> 21286 | D20: ='Direct 60%'!E34 -> Maadi | E20: ='Direct 60%'!F34 -> C.T - Food Server | F20: ='Direct 60%'!AQ34 -> 2125.65
A21: =IF(B21=0,"",MAX($A$1:A20)+1) ->  | B21: ='Direct 60%'!B35 -> 0 | C21: ='Direct 60%'!C35 -> 21667 | D21: ='Direct 60%'!E35 -> Maadi | E21: ='Direct 60%'!F35 -> Food Server | F21: ='Direct 60%'!AQ35 -> 1967.25 | J21: From Arabian Food Supplies Co. - Finance Department
A22: =IF(B22=0,"",MAX($A$1:A21)+1) ->  | B22: ='Direct 60%'!B36 -> 0 | C22: ='Direct 60%'!C36 -> 22382 | D22: ='Direct 60%'!E36 -> Maadi | E22: ='Direct 60%'!F36 -> Prep | F22: ='Direct 60%'!AQ36 -> 1947.26
A23: =IF(B23=0,"",MAX($A$1:A22)+1) ->  | B23: ='Direct 60%'!B37 -> 0 | C23: ='Direct 60%'!C37 -> 22389 | D23: ='Direct 60%'!E37 -> Maadi | E23: ='Direct 60%'!F37 -> Baker | F23: ='Direct 60%'!AQ37 -> 1940.62 | J23: Declared by : | L23: Name :
A24: =IF(B24=0,"",MAX($A$1:A23)+1) ->  | B24: ='Direct 60%'!B38 -> 0 | C24: ='Direct 60%'!C38 -> 22753 | D24: ='Direct 60%'!E38 -> Maadi | E24: ='Direct 60%'!F38 -> Cook | F24: ='Direct 60%'!AQ38 -> 1815.87 | M24: …......................................................................................
A25: =IF(B25=0,"",MAX($A$1:A24)+1) ->  | B25: ='Direct 60%'!B39 -> 0 | C25: ='Direct 60%'!C39 -> 22837 | D25: ='Direct 60%'!E39 -> Maadi | E25: ='Direct 60%'!F39 -> Prep | F25: ='Direct 60%'!AQ39 -> 1842.18 | K25: Signature :
A26: =IF(B26=0,"",MAX($A$1:A25)+1) ->  | B26: ='Direct 60%'!B40 -> 0 | C26: ='Direct 60%'!C40 -> 22838 | D26: ='Direct 60%'!E40 -> Maadi | E26: ='Direct 60%'!F40 -> Prep | F26: ='Direct 60%'!AQ40 -> 1837.29 | M26: …......................................................................................
A27: =IF(B27=0,"",MAX($A$1:A26)+1) ->  | B27: ='Direct 60%'!B41 -> 0 | C27: ='Direct 60%'!C41 -> 22839 | D27: ='Direct 60%'!E41 -> Maadi | E27: ='Direct 60%'!F41 -> Hostess | F27: ='Direct 60%'!AQ41 -> 1793.04
A28: =IF(B28=0,"",MAX($A$1:A27)+1) ->  | B28: ='Direct 60%'!B42 -> 0 | C28: ='Direct 60%'!C42 -> 22857 | D28: ='Direct 60%'!E42 -> Maadi | E28: ='Direct 60%'!F42 -> Food Server | F28: ='Direct 60%'!AQ42 -> 1631.63
A29: =IF(B29=0,"",MAX($A$1:A28)+1) ->  | B29: ='Direct 60%'!B43 -> 0 | C29: ='Direct 60%'!C43 -> 22889 | D29: ='Direct 60%'!E43 -> Maadi | E29: ='Direct 60%'!F43 -> Hostess | F29: ='Direct 60%'!AQ43 -> 1743.06
A30: =IF(B30=0,"",MAX($A$1:A29)+1) ->  | B30: ='Direct 60%'!B44 -> 0 | C30: ='Direct 60%'!C44 -> 22906 | D30: ='Direct 60%'!E44 -> Maadi | E30: ='Direct 60%'!F44 -> Dishwaser | F30: ='Direct 60%'!AQ44 -> 1689.58
A31: =IF(B31=0,"",MAX($A$1:A30)+1) ->  | B31: ='Direct 60%'!B45 -> 0 | C31: ='Direct 60%'!C45 -> 20490 | D31: ='Direct 60%'!E45 -> Maadi | E31: ='Direct 60%'!F45 -> C.T - Cook | F31: ='Direct 60%'!AQ45 -> 2498.81
A32: =IF(B32=0,"",MAX($A$1:A31)+1) ->  | B32: ='Direct 60%'!B46 -> 0 | C32: ='Direct 60%'!C46 -> 22914 | D32: ='Direct 60%'!E46 -> Maadi | E32: ='Direct 60%'!F46 -> Dishwaser | F32: ='Direct 60%'!AQ46 -> 246.52
A33: =IF(B33=0,"",MAX($A$1:A32)+1) ->  | B33: ='Direct 60%'!B47 -> 0 | C33: ='Direct 60%'!C47 -> 20075 | D33: ='Direct 60%'!E47 -> City Stars Managers | E33: ='Direct 60%'!F47 -> S R .Assistant Manager | F33: ='Direct 60%'!AQ47 -> 4938.36
A34: =IF(B34=0,"",MAX($A$1:A33)+1) ->  | B34: ='Direct 60%'!B48 -> 0 | C34: ='Direct 60%'!C48 -> 20060 | D34: ='Direct 60%'!E48 -> City Stars Managers | E34: ='Direct 60%'!F48 -> S R .Assistant Manager | F34: ='Direct 60%'!AQ48 -> 4938.36
A35: =IF(B35=0,"",MAX($A$1:A34)+1) ->  | B35: ='Direct 60%'!B49 -> 0 | C35: ='Direct 60%'!C49 -> 21716 | D35: ='Direct 60%'!E49 -> City Stars Managers | E35: ='Direct 60%'!F49 -> S R .Assistant Manager | F35: ='Direct 60%'!AQ49 -> 4353.79
A36: =IF(B36=0,"",MAX($A$1:A35)+1) ->  | B36: ='Direct 60%'!B50 -> 0 | C36: ='Direct 60%'!C50 -> 21162 | D36: ='Direct 60%'!E50 -> City Stars | E36: ='Direct 60%'!F50 -> Store Keeper | F36: ='Direct 60%'!AQ50 -> 3796.09
A37: =IF(B37=0,"",MAX($A$1:A36)+1) ->  | B37: ='Direct 60%'!B51 -> 0 | C37: ='Direct 60%'!C51 -> 21554 | D37: ='Direct 60%'!E51 -> City Stars | E37: ='Direct 60%'!F51 -> C.T - Cook | F37: ='Direct 60%'!AQ51 -> 4181.5
A38: =IF(B38=0,"",MAX($A$1:A37)+1) ->  | B38: ='Direct 60%'!B52 -> 0 | C38: ='Direct 60%'!C52 -> 30168 | D38: ='Direct 60%'!E52 -> City Stars | E38: ='Direct 60%'!F52 -> C.T - Food Server | F38: ='Direct 60%'!AQ52 -> 3986.55
A39: =IF(B39=0,"",MAX($A$1:A38)+1) ->  | B39: ='Direct 60%'!B53 -> 0 | C39: ='Direct 60%'!C53 -> 30277 | D39: ='Direct 60%'!E53 -> City Stars | E39: ='Direct 60%'!F53 -> C.T - Cook | F39: ='Direct 60%'!AQ53 -> 3939.96
A40: =IF(B40=0,"",MAX($A$1:A39)+1) ->  | B40: ='Direct 60%'!B54 -> 0 | C40: ='Direct 60%'!C54 -> 22022 | D40: ='Direct 60%'!E54 -> City Stars | E40: ='Direct 60%'!F54 -> Food Server | F40: ='Direct 60%'!AQ54 -> 3535.85
A41: =IF(B41=0,"",MAX($A$1:A40)+1) ->  | B41: ='Direct 60%'!B55 -> 0 | C41: ='Direct 60%'!C55 -> 22066 | D41: ='Direct 60%'!E55 -> City Stars | E41: ='Direct 60%'!F55 -> Hostess | F41: ='Direct 60%'!AQ55 -> 3521.65
A42: =IF(B42=0,"",MAX($A$1:A41)+1) ->  | B42: ='Direct 60%'!B56 -> 0 | C42: ='Direct 60%'!C56 -> 22201 | D42: ='Direct 60%'!E56 -> City Stars | E42: ='Direct 60%'!F56 -> C.T - Baker | F42: ='Direct 60%'!AQ56 -> 3314.94
A43: =IF(B43=0,"",MAX($A$1:A42)+1) ->  | B43: ='Direct 60%'!B57 -> 0 | C43: ='Direct 60%'!C57 -> 22448 | D43: ='Direct 60%'!E57 -> City Stars | E43: ='Direct 60%'!F57 -> Cook | F43: ='Direct 60%'!AQ57 -> 3481.49
A44: =IF(B44=0,"",MAX($A$1:A43)+1) ->  | B44: ='Direct 60%'!B58 -> 0 | C44: ='Direct 60%'!C58 -> 40004 | D44: ='Direct 60%'!E58 -> City Stars | E44: ='Direct 60%'!F58 -> C.T - Cook | F44: ='Direct 60%'!AQ58 -> 4304.43
A45: =IF(B45=0,"",MAX($A$1:A44)+1) ->  | B45: ='Direct 60%'!B59 -> 0 | C45: ='Direct 60%'!C59 -> 20127 | D45: ='Direct 60%'!E59 -> City Stars | E45: ='Direct 60%'!F59 -> C.T - Prep | F45: ='Direct 60%'!AQ59 -> 4528.82
A46: =IF(B46=0,"",MAX($A$1:A45)+1) ->  | B46: ='Direct 60%'!B60 -> 0 | C46: ='Direct 60%'!C60 -> 20646 | D46: ='Direct 60%'!E60 -> City Stars | E46: ='Direct 60%'!F60 -> C.T - Prep | F46: ='Direct 60%'!AQ60 -> 4345.26
A47: =IF(B47=0,"",MAX($A$1:A46)+1) ->  | B47: ='Direct 60%'!B61 -> 0 | C47: ='Direct 60%'!C61 -> 22770 | D47: ='Direct 60%'!E61 -> City Stars | E47: ='Direct 60%'!F61 -> Food Server | F47: ='Direct 60%'!AQ61 -> 3269.83
A48: =IF(B48=0,"",MAX($A$1:A47)+1) ->  | B48: ='Direct 60%'!B62 -> 0 | C48: ='Direct 60%'!C62 -> 21260 | D48: ='Direct 60%'!E62 -> City Stars | E48: ='Direct 60%'!F62 -> C.T - Food Server | F48: ='Direct 60%'!AQ62 -> 4034.04
A49: =IF(B49=0,"",MAX($A$1:A48)+1) ->  | B49: ='Direct 60%'!B63 -> 0 | C49: ='Direct 60%'!C63 -> 22831 | D49: ='Direct 60%'!E63 -> City Stars | E49: ='Direct 60%'!F63 -> Hostess | F49: ='Direct 60%'!AQ63 -> 3243.32
A50: =IF(B50=0,"",MAX($A$1:A49)+1) ->  | B50: ='Direct 60%'!B64 -> 0 | C50: ='Direct 60%'!C64 -> 22844 | D50: ='Direct 60%'!E64 -> City Stars | E50: ='Direct 60%'!F64 -> Food Server | F50: ='Direct 60%'!AQ64 -> 3269.83
A51: =IF(B51=0,"",MAX($A$1:A50)+1) ->  | B51: ='Direct 60%'!B65 -> 0 | C51: ='Direct 60%'!C65 -> 20095 | D51: ='Direct 60%'!E65 -> City Stars | E51: ='Direct 60%'!F65 -> Cook | F51: ='Direct 60%'!AQ65 -> 4299.12
A52: =IF(B52=0,"",MAX($A$1:A51)+1) ->  | B52: ='Direct 60%'!B66 -> 0 | C52: ='Direct 60%'!C66 -> 22767 | D52: ='Direct 60%'!E66 -> City Stars | E52: ='Direct 60%'!F66 -> Host | F52: ='Direct 60%'!AQ66 -> 231.81
A53: =IF(B53=0,"",MAX($A$1:A52)+1) ->  | B53: ='Direct 60%'!B67 -> 0 | C53: ='Direct 60%'!C67 -> 22163 | D53: ='Direct 60%'!E67 -> City Stars | E53: ='Direct 60%'!F67 -> Food Server | F53: ='Direct 60%'!AQ67 -> 910.86
A54: =IF(B54=0,"",MAX($A$1:A53)+1) ->  | B54: ='Direct 60%'!B68 -> 0 | C54: ='Direct 60%'!C68 -> 22443 | D54: ='Direct 60%'!E68 -> City Stars | E54: ='Direct 60%'!F68 -> Food Server | F54: ='Direct 60%'!AQ68 -> 3370.74
A55: =IF(B55=0,"",MAX($A$1:A54)+1) ->  | B55: ='Direct 60%'!B69 -> 0 | C55: ='Direct 60%'!C69 -> 22909 | D55: ='Direct 60%'!E69 -> City Stars | E55: ='Direct 60%'!F69 -> Cook | F55: ='Direct 60%'!AQ69 -> 2867.72
A56: =IF(B56=0,"",MAX($A$1:A55)+1) ->  | B56: ='Direct 60%'!B70 -> 0 | C56: ='Direct 60%'!C70 -> 22155 | D56: ='Direct 60%'!E70 -> City Stars | E56: ='Direct 60%'!F70 -> Cook | F56: ='Direct 60%'!AQ70 -> 3481.23
A57: =IF(B57=0,"",MAX($A$1:A56)+1) ->  | B57: ='Direct 60%'!B71 -> 0 | C57: ='Direct 60%'!C71 -> 22862 | D57: ='Direct 60%'!E71 -> City Stars | E57: ='Direct 60%'!F71 -> Food Server | F57: ='Direct 60%'!AQ71 -> 3203.4
A58: =IF(B58=0,"",MAX($A$1:A57)+1) ->  | B58: ='Direct 60%'!B72 -> 0 | C58: ='Direct 60%'!C72 -> 40001 | D58: ='Direct 60%'!E72 -> MOA Managers | E58: ='Direct 60%'!F72 -> S R .Assistant Manager | F58: ='Direct 60%'!AQ72 -> 2242.59
A59: =IF(B59=0,"",MAX($A$1:A58)+1) ->  | B59: ='Direct 60%'!B73 -> 0 | C59: ='Direct 60%'!C73 -> 20010 | D59: ='Direct 60%'!E73 -> MOA Managers | E59: ='Direct 60%'!F73 -> Resturant Manager | F59: ='Direct 60%'!AQ73 -> 2539.05
A60: =IF(B60=0,"",MAX($A$1:A59)+1) ->  | B60: ='Direct 60%'!B74 -> 0 | C60: ='Direct 60%'!C74 -> 22506 | D60: ='Direct 60%'!E74 -> MOA Managers | E60: ='Direct 60%'!F74 -> S R .Assistant Manager | F60: ='Direct 60%'!AQ74 -> 1987.76
A61: =IF(B61=0,"",MAX($A$1:A60)+1) ->  | B61: ='Direct 60%'!B75 -> 0 | C61: ='Direct 60%'!C75 -> 20012 | D61: ='Direct 60%'!E75 -> MOA | E61: ='Direct 60%'!F75 -> C.T - Cook | F61: ='Direct 60%'!AQ75 -> 3331.48
A62: =IF(B62=0,"",MAX($A$1:A61)+1) ->  | B62: ='Direct 60%'!B76 -> 0 | C62: ='Direct 60%'!C76 -> 20113 | D62: ='Direct 60%'!E76 -> MOA | E62: ='Direct 60%'!F76 -> C.T - Prep | F62: ='Direct 60%'!AQ76 -> 3324.45
A63: =IF(B63=0,"",MAX($A$1:A62)+1) ->  | B63: ='Direct 60%'!B77 -> 0 | C63: ='Direct 60%'!C77 -> 21517 | D63: ='Direct 60%'!E77 -> MOA | E63: ='Direct 60%'!F77 -> Food Server | F63: ='Direct 60%'!AQ77 -> 2793.68
A64: =IF(B64=0,"",MAX($A$1:A63)+1) ->  | B64: ='Direct 60%'!B78 -> 0 | C64: ='Direct 60%'!C78 -> 22581 | D64: ='Direct 60%'!E78 -> MOA | E64: ='Direct 60%'!F78 -> Cook | F64: ='Direct 60%'!AQ78 -> 2653.86
A65: =IF(B65=0,"",MAX($A$1:A64)+1) ->  | B65: ='Direct 60%'!B79 -> 0 | C65: ='Direct 60%'!C79 -> 22585 | D65: ='Direct 60%'!E79 -> MOA | E65: ='Direct 60%'!F79 -> Food Server | F65: ='Direct 60%'!AQ79 -> 2450.07
A66: =IF(B66=0,"",MAX($A$1:A65)+1) ->  | B66: ='Direct 60%'!B80 -> 0 | C66: ='Direct 60%'!C80 -> 20699 | D66: ='Direct 60%'!E80 -> MOA | E66: ='Direct 60%'!F80 -> C.T - Food Server | F66: ='Direct 60%'!AQ80 -> 3085.41
A67: =IF(B67=0,"",MAX($A$1:A66)+1) ->  | B67: ='Direct 60%'!B81 -> 0 | C67: ='Direct 60%'!C81 -> 22872 | D67: ='Direct 60%'!E81 -> MOA | E67: ='Direct 60%'!F81 -> Dishwaser | F67: ='Direct 60%'!AQ81 -> 2345.4
A68: =IF(B68=0,"",MAX($A$1:A67)+1) ->  | B68: ='Direct 60%'!B82 -> 0 | C68: ='Direct 60%'!C82 -> 21236 | D68: ='Direct 60%'!E82 -> MOA | E68: ='Direct 60%'!F82 -> C.T - Food Server | F68: ='Direct 60%'!AQ82 -> 2863.75
A69: =IF(B69=0,"",MAX($A$1:A68)+1) ->  | B69: ='Direct 60%'!B83 -> 0 | C69: ='Direct 60%'!C83 -> 22894 | D69: ='Direct 60%'!E83 -> MOA | E69: ='Direct 60%'!F83 -> Cook | F69: ='Direct 60%'!AQ83 -> 2436.44
A70: =IF(B70=0,"",MAX($A$1:A69)+1) ->  | B70: ='Direct 60%'!B84 -> 0 | C70: ='Direct 60%'!C84 -> 21559 | D70: ='Direct 60%'!E84 -> MOA | E70: ='Direct 60%'!F84 -> C.T - Cook | F70: ='Direct 60%'!AQ84 -> 2880.92
A71: =IF(B71=0,"",MAX($A$1:A70)+1) ->  | B71: ='Direct 60%'!B85 -> 0 | C71: ='Direct 60%'!C85 -> 22854 | D71: ='Direct 60%'!E85 -> MOA | E71: ='Direct 60%'!F85 -> Food Server | F71: ='Direct 60%'!AQ85 -> 2546.87
A72: =IF(B72=0,"",MAX($A$1:A71)+1) ->  | B72: ='Direct 60%'!B86 -> 0 | C72: ='Direct 60%'!C86 -> 22917 | D72: ='Direct 60%'!E86 -> MOA | E72: ='Direct 60%'!F86 -> Cook | F72: ='Direct 60%'!AQ86 -> 2436.77
A73: =IF(B73=0,"",MAX($A$1:A72)+1) ->  | B73: ='Direct 60%'!B87 -> 0 | C73: ='Direct 60%'!C87 -> 22921 | D73: ='Direct 60%'!E87 -> MOA | E73: ='Direct 60%'!F87 -> Dishwaser | F73: ='Direct 60%'!AQ87 -> 2345.67
A74: =IF(B74=0,"",MAX($A$1:A73)+1) ->  | B74: ='Direct 60%'!B88 -> 0 | C74: ='Direct 60%'!C88 -> 22916 | D74: ='Direct 60%'!E88 -> MOA | E74: ='Direct 60%'!F88 -> Cook | F74: ='Direct 60%'!AQ88 -> 685.32
A75: =IF(B75=0,"",MAX($A$1:A74)+1) ->  | B75: ='Direct 60%'!B89 -> 0 | C75: ='Direct 60%'!C89 -> 20112 | D75: ='Direct 60%'!E89 -> Concord Managers | E75: ='Direct 60%'!F89 -> S R .Assistant Manager | F75: ='Direct 60%'!AQ89 -> 2679.95
A76: =IF(B76=0,"",MAX($A$1:A75)+1) ->  | B76: ='Direct 60%'!B90 -> 0 | C76: ='Direct 60%'!C90 -> 30043 | D76: ='Direct 60%'!E90 -> Concord Managers | E76: ='Direct 60%'!F90 -> Resturant Manager | F76: ='Direct 60%'!AQ90 -> 3124.15
A77: =IF(B77=0,"",MAX($A$1:A76)+1) ->  | B77: ='Direct 60%'!B91 -> 0 | C77: ='Direct 60%'!C91 -> 22911 | D77: ='Direct 60%'!E91 -> Concord Managers | E77: ='Direct 60%'!F91 -> Assistant Manager | F77: ='Direct 60%'!AQ91 -> 2531.1
A78: =IF(B78=0,"",MAX($A$1:A77)+1) ->  | B78: ='Direct 60%'!B92 -> 0 | C78: ='Direct 60%'!C92 -> 20914 | D78: ='Direct 60%'!E92 -> Concord | E78: ='Direct 60%'!F92 -> C.T - Cook | F78: ='Direct 60%'!AQ92 -> 3796
A79: =IF(B79=0,"",MAX($A$1:A78)+1) ->  | B79: ='Direct 60%'!B93 -> 0 | C79: ='Direct 60%'!C93 -> 30254 | D79: ='Direct 60%'!E93 -> Concord | E79: ='Direct 60%'!F93 -> Cook | F79: ='Direct 60%'!AQ93 -> 3669.72
A80: =IF(B80=0,"",MAX($A$1:A79)+1) ->  | B80: ='Direct 60%'!B94 -> 0 | C80: ='Direct 60%'!C94 -> 22657 | D80: ='Direct 60%'!E94 -> Concord | E80: ='Direct 60%'!F94 -> Cook | F80: ='Direct 60%'!AQ94 -> 3085.57
A81: =IF(B81=0,"",MAX($A$1:A80)+1) ->  | B81: ='Direct 60%'!B95 -> 0 | C81: ='Direct 60%'!C95 -> 22787 | D81: ='Direct 60%'!E95 -> Concord | E81: ='Direct 60%'!F95 -> Cook | F81: ='Direct 60%'!AQ95 -> 3086
A82: =IF(B82=0,"",MAX($A$1:A81)+1) ->  | B82: ='Direct 60%'!B96 -> 0 | C82: ='Direct 60%'!C96 -> 22821 | D82: ='Direct 60%'!E96 -> Concord | E82: ='Direct 60%'!F96 -> Cook | F82: ='Direct 60%'!AQ96 -> 333.78
A83: =IF(B83=0,"",MAX($A$1:A82)+1) ->  | B83: ='Direct 60%'!B97 -> 0 | C83: ='Direct 60%'!C97 -> 21234 | D83: ='Direct 60%'!E97 -> Concord | E83: ='Direct 60%'!F97 -> Cook | F83: ='Direct 60%'!AQ97 -> 3529.78
A84: =IF(B84=0,"",MAX($A$1:A83)+1) ->  | B84: ='Direct 60%'!B98 -> 0 | C84: ='Direct 60%'!C98 -> 22849 | D84: ='Direct 60%'!E98 -> Concord | E84: ='Direct 60%'!F98 -> Baker | F84: ='Direct 60%'!AQ98 -> 3086
A85: =IF(B85=0,"",MAX($A$1:A84)+1) ->  | B85: ='Direct 60%'!B99 -> 0 | C85: ='Direct 60%'!C99 -> 22893 | D85: ='Direct 60%'!E99 -> Concord | E85: ='Direct 60%'!F99 -> Dishwaser | F85: ='Direct 60%'!AQ99 -> 2886.75
A86: =IF(B86=0,"",MAX($A$1:A85)+1) ->  | B86: ='Direct 60%'!B100 -> 0 | C86: ='Direct 60%'!C100 -> 22904 | D86: ='Direct 60%'!E100 -> Concord | E86: ='Direct 60%'!F100 -> Food Server | F86: ='Direct 60%'!AQ100 -> 1821.45
A87: =IF(B87=0,"",MAX($A$1:A86)+1) ->  | B87: ='Direct 60%'!B101 -> 0 | C87: ='Direct 60%'!C101 -> 21553 | D87: ='Direct 60%'!E101 -> Concord | E87: ='Direct 60%'!F101 -> C.T - Cook | F87: ='Direct 60%'!AQ101 -> 3515.84
A88: =IF(B88=0,"",MAX($A$1:A87)+1) ->  | B88: ='Direct 60%'!B102 -> 0 | C88: ='Direct 60%'!C102 -> 22360 | D88: ='Direct 60%'!E102 -> Concord | E88: ='Direct 60%'!F102 -> Food Server | F88: ='Direct 60%'!AQ102 -> 3144.49
A89: =IF(B89=0,"",MAX($A$1:A88)+1) ->  | B89: ='Direct 60%'!B103 -> 0 | C89: ='Direct 60%'!C103 -> 20679 | D89: ='Direct 60%'!E103 -> Concord | E89: ='Direct 60%'!F103 -> C.T - Food Server | F89: ='Direct 60%'!AQ103 -> 3788.4
A90: =IF(B90=0,"",MAX($A$1:A89)+1) ->  | B90: ='Direct 60%'!B104 -> 0 | C90: ='Direct 60%'!C104 -> 22923 | D90: ='Direct 60%'!E104 -> Concord | E90: ='Direct 60%'!F104 -> Cook | F90: ='Direct 60%'!AQ104 -> 3223.76
A91: =IF(B91=0,"",MAX($A$1:A90)+1) ->  | B91: ='Direct 60%'!B105 -> 0 | C91: ='Direct 60%'!C105 -> 22924 | D91: ='Direct 60%'!E105 -> Concord | E91: ='Direct 60%'!F105 -> Host | F91: ='Direct 60%'!AQ105 -> 1175.12
A92: =IF(B92=0,"",MAX($A$1:A91)+1) ->  | B92: ='Direct 60%'!B106 -> 0 | C92: ='Direct 60%'!C106 -> 0 | D92: ='Direct 60%'!E106 -> 0 | E92: ='Direct 60%'!F106 -> 0 | F92: ='Direct 60%'!AQ106 -> 230553.73
A93: =IF(B93=0,"",MAX($A$1:A92)+1) ->  | B93: ='Direct 60%'!B107 -> 0 | C93: ='Direct 60%'!C107 -> 0 | D93: ='Direct 60%'!E107 -> 0 | E93: ='Direct 60%'!F107 -> 0 | F93: ='Direct 60%'!AQ107 -> 0
A94: =IF(B94=0,"",MAX($A$1:A93)+1) ->  | B94: ='Direct 60%'!B108 -> 0 | C94: ='Direct 60%'!C108 -> 0 | D94: ='Direct 60%'!E108 -> 0 | E94: ='Direct 60%'!F108 -> 0 | F94: ='Direct 60%'!AQ108 -> 0
A95: =IF(B95=0,"",MAX($A$1:A94)+1) ->  | B95: ='Direct 60%'!B109 -> 0 | C95: ='Direct 60%'!C109 -> 0 | D95: ='Direct 60%'!E109 -> 0 | E95: ='Direct 60%'!F109 -> 0 | F95: ='Direct 60%'!AQ109 -> 0
A96: =IF(B96=0,"",MAX($A$1:A95)+1) ->  | B96: ='Direct 60%'!B110 -> 0 | C96: ='Direct 60%'!C110 -> 0 | D96: ='Direct 60%'!E110 -> 0 | E96: ='Direct 60%'!F110 -> 0 | F96: ='Direct 60%'!AQ110 -> 0
A97: =IF(B97=0,"",MAX($A$1:A96)+1) ->  | B97: ='Direct 60%'!B111 -> 0 | C97: ='Direct 60%'!C111 -> 0 | D97: ='Direct 60%'!E111 -> 0 | E97: ='Direct 60%'!F111 -> 0 | F97: ='Direct 60%'!AQ111 -> 0
A98: =IF(B98=0,"",MAX($A$1:A97)+1) ->  | B98: ='Direct 60%'!B112 -> 0 | C98: ='Direct 60%'!C112 -> 0 | D98: ='Direct 60%'!E112 -> 0 | E98: ='Direct 60%'!F112 -> 0 | F98: ='Direct 60%'!AQ112 -> 0
A99: =IF(B99=0,"",MAX($A$1:A98)+1) ->  | B99: ='Direct 60%'!B113 -> 0 | C99: ='Direct 60%'!C113 -> 0 | D99: ='Direct 60%'!E113 -> 0 | E99: ='Direct 60%'!F113 -> 0 | F99: ='Direct 60%'!AQ113 -> 0
A100: =IF(B100=0,"",MAX($A$1:A99)+1) ->  | B100: ='Direct 60%'!B114 -> 0 | C100: ='Direct 60%'!C114 -> 0 | D100: ='Direct 60%'!E114 -> 0 | E100: ='Direct 60%'!F114 -> 0 | F100: ='Direct 60%'!AQ114 -> 0
A101: =IF(B101=0,"",MAX($A$1:A100)+1) ->  | B101: ='Direct 60%'!B115 -> 0 | C101: ='Direct 60%'!C115 -> 0 | D101: ='Direct 60%'!E115 -> 0 | E101: ='Direct 60%'!F115 -> 0 | F101: ='Direct 60%'!AQ115 -> 0
A102: =IF(B102=0,"",MAX($A$1:A101)+1) ->  | B102: ='Direct 60%'!B116 -> 0 | C102: ='Direct 60%'!C116 -> 0 | D102: ='Direct 60%'!E116 -> 0 | E102: ='Direct 60%'!F116 -> 0 | F102: ='Direct 60%'!AQ116 -> 0
A103: =IF(B103=0,"",MAX($A$1:A102)+1) ->  | B103: ='Direct 60%'!B117 -> 0 | C103: ='Direct 60%'!C117 -> 0 | D103: ='Direct 60%'!E117 -> 0 | E103: ='Direct 60%'!F117 -> 0 | F103: ='Direct 60%'!AQ117 -> 0
A104: =IF(B104=0,"",MAX($A$1:A103)+1) ->  | B104: ='Direct 60%'!B118 -> 0 | C104: ='Direct 60%'!C118 -> 0 | D104: ='Direct 60%'!E118 -> 0 | E104: ='Direct 60%'!F118 -> 0 | F104: ='Direct 60%'!AQ118 -> 0
A105: =IF(B105=0,"",MAX($A$1:A104)+1) ->  | B105: ='Direct 60%'!B119 -> 0 | C105: ='Direct 60%'!C119 -> 0 | D105: ='Direct 60%'!E119 -> 0 | E105: ='Direct 60%'!F119 -> 0 | F105: ='Direct 60%'!AQ119 -> 0
A106: =IF(B106=0,"",MAX($A$1:A105)+1) ->  | B106: ='Direct 60%'!B120 -> 0 | C106: ='Direct 60%'!C120 -> 0 | D106: ='Direct 60%'!E120 -> 0 | E106: ='Direct 60%'!F120 -> 0 | F106: ='Direct 60%'!AQ120 -> 0
A107: =IF(B107=0,"",MAX($A$1:A106)+1) ->  | B107: ='Direct 60%'!B121 -> 0 | C107: ='Direct 60%'!C121 -> 0 | D107: ='Direct 60%'!E121 -> 0 | E107: ='Direct 60%'!F121 -> 0 | F107: ='Direct 60%'!AQ121 -> 0
A108: =IF(B108=0,"",MAX($A$1:A107)+1) ->  | B108: ='Direct 60%'!B122 -> 0 | C108: ='Direct 60%'!C122 -> 0 | D108: ='Direct 60%'!E122 -> 0 | E108: ='Direct 60%'!F122 -> 0 | F108: ='Direct 60%'!AQ122 -> 0
A109: =IF(B109=0,"",MAX($A$1:A108)+1) ->  | B109: ='Direct 60%'!B123 -> 0 | C109: ='Direct 60%'!C123 -> 0 | D109: ='Direct 60%'!E123 -> 0 | E109: ='Direct 60%'!F123 -> 0 | F109: ='Direct 60%'!AQ123 -> 0
A110: =IF(B110=0,"",MAX($A$1:A109)+1) ->  | B110: ='Direct 60%'!B124 -> 0 | C110: ='Direct 60%'!C124 -> 0 | D110: ='Direct 60%'!E124 -> 0 | E110: ='Direct 60%'!F124 -> 0 | F110: ='Direct 60%'!AQ124 -> 0
A111: =IF(B111=0,"",MAX($A$1:A110)+1) ->  | B111: ='Direct 60%'!B125 -> 0 | C111: ='Direct 60%'!C125 -> 0 | D111: ='Direct 60%'!E125 -> 0 | E111: ='Direct 60%'!F125 -> 0 | F111: ='Direct 60%'!AQ125 -> 0
A112: =IF(B112=0,"",MAX($A$1:A111)+1) ->  | B112: ='Direct 60%'!B126 -> 0 | C112: ='Direct 60%'!C126 -> 0 | D112: ='Direct 60%'!E126 -> 0 | E112: ='Direct 60%'!F126 -> 0 | F112: ='Direct 60%'!AQ126 -> 0
A113: =IF(B113=0,"",MAX($A$1:A112)+1) ->  | B113: ='Direct 60%'!B127 -> 0 | C113: ='Direct 60%'!C127 -> 0 | D113: ='Direct 60%'!E127 -> 0 | E113: ='Direct 60%'!F127 -> 0 | F113: ='Direct 60%'!AQ127 -> 0
A114: =IF(B114=0,"",MAX($A$1:A113)+1) ->  | B114: ='Direct 60%'!B128 -> 0 | C114: ='Direct 60%'!C128 -> 0 | D114: ='Direct 60%'!E128 -> 0 | E114: ='Direct 60%'!F128 -> 0 | F114: ='Direct 60%'!AQ128 -> 0
A115: =IF(B115=0,"",MAX($A$1:A114)+1) ->  | B115: ='Direct 60%'!B129 -> 0 | C115: ='Direct 60%'!C129 -> 0 | D115: ='Direct 60%'!E129 -> 0 | E115: ='Direct 60%'!F129 -> 0 | F115: ='Direct 60%'!AQ129 -> 0
A116: =IF(B116=0,"",MAX($A$1:A115)+1) ->  | B116: ='Direct 60%'!B130 -> 0 | C116: ='Direct 60%'!C130 -> 0 | D116: ='Direct 60%'!E130 -> 0 | E116: ='Direct 60%'!F130 -> 0 | F116: ='Direct 60%'!AQ130 -> 0
A117: =IF(B117=0,"",MAX($A$1:A116)+1) ->  | B117: ='Direct 60%'!B131 -> 0 | C117: ='Direct 60%'!C131 -> 0 | D117: ='Direct 60%'!E131 -> 0 | E117: ='Direct 60%'!F131 -> 0 | F117: ='Direct 60%'!AQ131 -> 0
A118: =IF(B118=0,"",MAX($A$1:A117)+1) ->  | B118: ='Direct 60%'!B132 -> 0 | C118: ='Direct 60%'!C132 -> 0 | D118: ='Direct 60%'!E132 -> 0 | E118: ='Direct 60%'!F132 -> 0 | F118: ='Direct 60%'!AQ132 -> 0
A119: =IF(B119=0,"",MAX($A$1:A118)+1) ->  | B119: ='Direct 60%'!B133 -> 0 | C119: ='Direct 60%'!C133 -> 0 | D119: ='Direct 60%'!E133 -> 0 | E119: ='Direct 60%'!F133 -> 0 | F119: ='Direct 60%'!AQ133 -> 0
A120: =IF(B120=0,"",MAX($A$1:A119)+1) ->  | B120: ='Direct 60%'!B134 -> 0 | C120: ='Direct 60%'!C134 -> 0 | D120: ='Direct 60%'!E134 -> 0 | E120: ='Direct 60%'!F134 -> 0 | F120: ='Direct 60%'!AQ134 -> 0
A121: =IF(B121=0,"",MAX($A$1:A120)+1) ->  | B121: ='Direct 60%'!B135 -> 0 | C121: ='Direct 60%'!C135 -> 0 | D121: ='Direct 60%'!E135 -> 0 | E121: ='Direct 60%'!F135 -> 0 | F121: ='Direct 60%'!AQ135 -> 0
A122: =IF(B122=0,"",MAX($A$1:A121)+1) ->  | B122: ='Direct 60%'!B136 -> 0 | C122: ='Direct 60%'!C136 -> 0 | D122: ='Direct 60%'!E136 -> 0 | E122: ='Direct 60%'!F136 -> 0 | F122: ='Direct 60%'!AQ136 -> 0
A123: =IF(B123=0,"",MAX($A$1:A122)+1) ->  | B123: ='Direct 60%'!B137 -> 0 | C123: ='Direct 60%'!C137 -> 0 | D123: ='Direct 60%'!E137 -> 0 | E123: ='Direct 60%'!F137 -> 0 | F123: ='Direct 60%'!AQ137 -> 0
A124: =IF(B124=0,"",MAX($A$1:A123)+1) ->  | B124: ='Direct 60%'!B138 -> 0 | C124: ='Direct 60%'!C138 -> 0 | D124: ='Direct 60%'!E138 -> 0 | E124: ='Direct 60%'!F138 -> 0 | F124: ='Direct 60%'!AQ138 -> 0
A125: =IF(B125=0,"",MAX($A$1:A124)+1) ->  | B125: ='Direct 60%'!B139 -> 0 | C125: ='Direct 60%'!C139 -> 0 | D125: ='Direct 60%'!E139 -> 0 | E125: ='Direct 60%'!F139 -> 0 | F125: ='Direct 60%'!AQ139 -> 0
A126: =IF(B126=0,"",MAX($A$1:A125)+1) ->  | B126: ='Direct 60%'!B140 -> 0 | C126: ='Direct 60%'!C140 -> 0 | D126: ='Direct 60%'!E140 -> 0 | E126: ='Direct 60%'!F140 -> 0 | F126: ='Direct 60%'!AQ140 -> 0
A127: =IF(B127=0,"",MAX($A$1:A126)+1) ->  | B127: ='Direct 60%'!B141 -> 0 | C127: ='Direct 60%'!C141 -> 0 | D127: ='Direct 60%'!E141 -> 0 | E127: ='Direct 60%'!F141 -> 0 | F127: ='Direct 60%'!AQ141 -> 0
A128: =IF(B128=0,"",MAX($A$1:A127)+1) ->  | B128: ='Direct 60%'!B142 -> 0 | C128: ='Direct 60%'!C142 -> 0 | D128: ='Direct 60%'!E142 -> 0 | E128: ='Direct 60%'!F142 -> 0 | F128: ='Direct 60%'!AQ142 -> 0
A129: =IF(B129=0,"",MAX($A$1:A128)+1) ->  | B129: ='Direct 60%'!B143 -> 0 | C129: ='Direct 60%'!C143 -> 0 | D129: ='Direct 60%'!E143 -> 0 | E129: ='Direct 60%'!F143 -> 0 | F129: ='Direct 60%'!AQ143 -> 0
A130: =IF(B130=0,"",MAX($A$1:A129)+1) ->  | B130: ='Direct 60%'!B144 -> 0 | C130: ='Direct 60%'!C144 -> 0 | D130: ='Direct 60%'!E144 -> 0 | E130: ='Direct 60%'!F144 -> 0 | F130: ='Direct 60%'!AQ144 -> 0
A131: =IF(B131=0,"",MAX($A$1:A130)+1) ->  | B131: ='Direct 60%'!B145 -> 0 | C131: ='Direct 60%'!C145 -> 0 | D131: ='Direct 60%'!E145 -> 0 | E131: ='Direct 60%'!F145 -> 0 | F131: ='Direct 60%'!AQ145 -> 0
A132: =IF(B132=0,"",MAX($A$1:A131)+1) ->  | B132: ='Direct 60%'!B146 -> 0 | C132: ='Direct 60%'!C146 -> 0 | D132: ='Direct 60%'!E146 -> 0 | E132: ='Direct 60%'!F146 -> 0 | F132: ='Direct 60%'!AQ146 -> 0
A133: =IF(B133=0,"",MAX($A$1:A132)+1) ->  | B133: ='Direct 60%'!B147 -> 0 | C133: ='Direct 60%'!C147 -> 0 | D133: ='Direct 60%'!E147 -> 0 | E133: ='Direct 60%'!F147 -> 0 | F133: ='Direct 60%'!AQ147 -> 0
A134: =IF(B134=0,"",MAX($A$1:A133)+1) ->  | B134: ='Direct 60%'!B148 -> 0 | C134: ='Direct 60%'!C148 -> 0 | D134: ='Direct 60%'!E148 -> 0 | E134: ='Direct 60%'!F148 -> 0 | F134: ='Direct 60%'!AQ148 -> 0
A135: =IF(B135=0,"",MAX($A$1:A134)+1) ->  | B135: ='Direct 60%'!B149 -> 0 | C135: ='Direct 60%'!C149 -> 0 | D135: ='Direct 60%'!E149 -> 0 | E135: ='Direct 60%'!F149 -> 0 | F135: ='Direct 60%'!AQ149 -> 0
A136: =IF(B136=0,"",MAX($A$1:A135)+1) ->  | B136: ='Direct 60%'!B150 -> 0 | C136: ='Direct 60%'!C150 -> 0 | D136: ='Direct 60%'!E150 -> 0 | E136: ='Direct 60%'!F150 -> 0 | F136: ='Direct 60%'!AQ150 -> 0
A137: =IF(B137=0,"",MAX($A$1:A136)+1) ->  | B137: ='Direct 60%'!B151 -> 0 | C137: ='Direct 60%'!C151 -> 0 | D137: ='Direct 60%'!E151 -> 0 | E137: ='Direct 60%'!F151 -> 0 | F137: ='Direct 60%'!AQ151 -> 0
A138: =IF(B138=0,"",MAX($A$1:A137)+1) ->  | B138: ='Direct 60%'!B152 -> 0 | C138: ='Direct 60%'!C152 -> 0 | D138: ='Direct 60%'!E152 -> 0 | E138: ='Direct 60%'!F152 -> 0 | F138: ='Direct 60%'!AQ152 -> 0
A139: =IF(B139=0,"",MAX($A$1:A138)+1) ->  | B139: ='Direct 60%'!B153 -> 0 | C139: ='Direct 60%'!C153 -> 0 | D139: ='Direct 60%'!E153 -> 0 | E139: ='Direct 60%'!F153 -> 0 | F139: ='Direct 60%'!AQ153 -> 0
A140: =IF(B140=0,"",MAX($A$1:A139)+1) ->  | B140: ='Direct 60%'!B154 -> 0 | C140: ='Direct 60%'!C154 -> 0 | D140: ='Direct 60%'!E154 -> 0 | E140: ='Direct 60%'!F154 -> 0 | F140: ='Direct 60%'!AQ154 -> 0
A141: =IF(B141=0,"",MAX($A$1:A140)+1) ->  | B141: ='Direct 60%'!B155 -> 0 | C141: ='Direct 60%'!C155 -> 0 | D141: ='Direct 60%'!E155 -> 0 | E141: ='Direct 60%'!F155 -> 0 | F141: ='Direct 60%'!AQ155 -> 0
A142: =IF(B142=0,"",MAX($A$1:A141)+1) ->  | B142: ='Direct 60%'!B156 -> 0 | C142: ='Direct 60%'!C156 -> 0 | D142: ='Direct 60%'!E156 -> 0 | E142: ='Direct 60%'!F156 -> 0 | F142: ='Direct 60%'!AQ156 -> 0
A143: =IF(B143=0,"",MAX($A$1:A142)+1) ->  | B143: ='Direct 60%'!B157 -> 0 | C143: ='Direct 60%'!C157 -> 0 | D143: ='Direct 60%'!E157 -> 0 | E143: ='Direct 60%'!F157 -> 0 | F143: ='Direct 60%'!AQ157 -> 0
A144: =IF(B144=0,"",MAX($A$1:A143)+1) ->  | B144: ='Direct 60%'!B158 -> 0 | C144: ='Direct 60%'!C158 -> 0 | D144: ='Direct 60%'!E158 -> 0 | E144: ='Direct 60%'!F158 -> 0 | F144: ='Direct 60%'!AQ158 -> 0
A145: =IF(B145=0,"",MAX($A$1:A144)+1) ->  | B145: ='Direct 60%'!B159 -> 0 | C145: ='Direct 60%'!C159 -> 0 | D145: ='Direct 60%'!E159 -> 0 | E145: ='Direct 60%'!F159 -> 0 | F145: ='Direct 60%'!AQ159 -> 0
A146: =IF(B146=0,"",MAX($A$1:A145)+1) ->  | B146: ='Direct 60%'!B160 -> 0 | C146: ='Direct 60%'!C160 -> 0 | D146: ='Direct 60%'!E160 -> 0 | E146: ='Direct 60%'!F160 -> 0 | F146: ='Direct 60%'!AQ160 -> 0
A147: =IF(B147=0,"",MAX($A$1:A146)+1) ->  | B147: ='Direct 60%'!B161 -> 0 | C147: ='Direct 60%'!C161 -> 0 | D147: ='Direct 60%'!E161 -> 0 | E147: ='Direct 60%'!F161 -> 0 | F147: ='Direct 60%'!AQ161 -> 0
A148: =IF(B148=0,"",MAX($A$1:A147)+1) ->  | B148: ='Direct 60%'!B162 -> 0 | C148: ='Direct 60%'!C162 -> 0 | D148: ='Direct 60%'!E162 -> 0 | E148: ='Direct 60%'!F162 -> 0 | F148: ='Direct 60%'!AQ162 -> 0
A149: =IF(B149=0,"",MAX($A$1:A148)+1) ->  | B149: ='Direct 60%'!B163 -> 0 | C149: ='Direct 60%'!C163 -> 0 | D149: ='Direct 60%'!E163 -> 0 | E149: ='Direct 60%'!F163 -> 0 | F149: ='Direct 60%'!AQ163 -> 0
A150: =IF(B150=0,"",MAX($A$1:A149)+1) ->  | B150: ='Direct 60%'!B164 -> 0 | C150: ='Direct 60%'!C164 -> 0 | D150: ='Direct 60%'!E164 -> 0 | E150: ='Direct 60%'!F164 -> 0 | F150: ='Direct 60%'!AQ164 -> 0
A151: =IF(B151=0,"",MAX($A$1:A150)+1) ->  | B151: ='Direct 60%'!B165 -> 0 | C151: ='Direct 60%'!C165 -> 0 | D151: ='Direct 60%'!E165 -> 0 | E151: ='Direct 60%'!F165 -> 0 | F151: ='Direct 60%'!AQ165 -> 0
A152: =IF(B152=0,"",MAX($A$1:A151)+1) ->  | B152: ='Direct 60%'!B166 -> 0 | C152: ='Direct 60%'!C166 -> 0 | D152: ='Direct 60%'!E166 -> 0 | E152: ='Direct 60%'!F166 -> 0 | F152: ='Direct 60%'!AQ166 -> 0
A153: =IF(B153=0,"",MAX($A$1:A152)+1) ->  | B153: ='Direct 60%'!B167 -> 0 | C153: ='Direct 60%'!C167 -> 0 | D153: ='Direct 60%'!E167 -> 0 | E153: ='Direct 60%'!F167 -> 0 | F153: ='Direct 60%'!AQ167 -> 0
A154: =IF(B154=0,"",MAX($A$1:A153)+1) ->  | B154: ='Direct 60%'!B168 -> 0 | C154: ='Direct 60%'!C168 -> 0 | D154: ='Direct 60%'!E168 -> 0 | E154: ='Direct 60%'!F168 -> 0 | F154: ='Direct 60%'!AQ168 -> 0
A155: =IF(B155=0,"",MAX($A$1:A154)+1) ->  | B155: ='Direct 60%'!B169 -> 0 | C155: ='Direct 60%'!C169 -> 0 | D155: ='Direct 60%'!E169 -> 0 | E155: ='Direct 60%'!F169 -> 0 | F155: ='Direct 60%'!AQ169 -> 0
A156: =IF(B156=0,"",MAX($A$1:A155)+1) ->  | B156: ='Direct 60%'!B170 -> 0 | C156: ='Direct 60%'!C170 -> 0 | D156: ='Direct 60%'!E170 -> 0 | E156: ='Direct 60%'!F170 -> 0 | F156: ='Direct 60%'!AQ170 -> 0
A157: =IF(B157=0,"",MAX($A$1:A156)+1) ->  | B157: ='Direct 60%'!B171 -> 0 | C157: ='Direct 60%'!C171 -> 0 | D157: ='Direct 60%'!E171 -> 0 | E157: ='Direct 60%'!F171 -> 0 | F157: ='Direct 60%'!AQ171 -> 0
A158: =IF(B158=0,"",MAX($A$1:A157)+1) ->  | B158: ='Direct 60%'!B172 -> 0 | C158: ='Direct 60%'!C172 -> 0 | D158: ='Direct 60%'!E172 -> 0 | E158: ='Direct 60%'!F172 -> 0 | F158: ='Direct 60%'!AQ172 -> 0
A159: =IF(B159=0,"",MAX($A$1:A158)+1) ->  | B159: ='Direct 60%'!B173 -> 0 | C159: ='Direct 60%'!C173 -> 0 | D159: ='Direct 60%'!E173 -> 0 | E159: ='Direct 60%'!F173 -> 0 | F159: ='Direct 60%'!AQ173 -> 0
A160: =IF(B160=0,"",MAX($A$1:A159)+1) ->  | B160: ='Direct 60%'!B174 -> 0 | C160: ='Direct 60%'!C174 -> 0 | D160: ='Direct 60%'!E174 -> 0 | E160: ='Direct 60%'!F174 -> 0 | F160: ='Direct 60%'!AQ174 -> 0
A161: =IF(B161=0,"",MAX($A$1:A160)+1) ->  | B161: ='Direct 60%'!B175 -> 0 | C161: ='Direct 60%'!C175 -> 0 | D161: ='Direct 60%'!E175 -> 0 | E161: ='Direct 60%'!F175 -> 0 | F161: ='Direct 60%'!AQ175 -> 0
A162: =IF(B162=0,"",MAX($A$1:A161)+1) ->  | B162: ='Direct 60%'!B176 -> 0 | C162: ='Direct 60%'!C176 -> 0 | D162: ='Direct 60%'!E176 -> 0 | E162: ='Direct 60%'!F176 -> 0 | F162: ='Direct 60%'!AQ176 -> 0
A163: =IF(B163=0,"",MAX($A$1:A162)+1) ->  | B163: ='Direct 60%'!B177 -> 0 | C163: ='Direct 60%'!C177 -> 0 | D163: ='Direct 60%'!E177 -> 0 | E163: ='Direct 60%'!F177 -> 0 | F163: ='Direct 60%'!AQ177 -> 0
A164: =IF(B164=0,"",MAX($A$1:A163)+1) ->  | B164: ='Direct 60%'!B178 -> 0 | C164: ='Direct 60%'!C178 -> 0 | D164: ='Direct 60%'!E178 -> 0 | E164: ='Direct 60%'!F178 -> 0 | F164: ='Direct 60%'!AQ178 -> 0
A165: =IF(B165=0,"",MAX($A$1:A164)+1) ->  | B165: ='Direct 60%'!B179 -> 0 | C165: ='Direct 60%'!C179 -> 0 | D165: ='Direct 60%'!E179 -> 0 | E165: ='Direct 60%'!F179 -> 0 | F165: ='Direct 60%'!AQ179 -> 0
A166: =IF(B166=0,"",MAX($A$1:A165)+1) ->  | B166: ='Direct 60%'!B180 -> 0 | C166: ='Direct 60%'!C180 -> 0 | D166: ='Direct 60%'!E180 -> 0 | E166: ='Direct 60%'!F180 -> 0 | F166: ='Direct 60%'!AQ180 -> 0
A167: =IF(B167=0,"",MAX($A$1:A166)+1) ->  | B167: ='Direct 60%'!B181 -> 0 | C167: ='Direct 60%'!C181 -> 0 | D167: ='Direct 60%'!E181 -> 0 | E167: ='Direct 60%'!F181 -> 0 | F167: ='Direct 60%'!AQ181 -> 0
A168: =IF(B168=0,"",MAX($A$1:A167)+1) ->  | B168: ='Direct 60%'!B182 -> 0 | C168: ='Direct 60%'!C182 -> 0 | D168: ='Direct 60%'!E182 -> 0 | E168: ='Direct 60%'!F182 -> 0 | F168: ='Direct 60%'!AQ182 -> 0
A169: =IF(B169=0,"",MAX($A$1:A168)+1) ->  | B169: ='Direct 60%'!B183 -> 0 | C169: ='Direct 60%'!C183 -> 0 | D169: ='Direct 60%'!E183 -> 0 | E169: ='Direct 60%'!F183 -> 0 | F169: ='Direct 60%'!AQ183 -> 0
A170: =IF(B170=0,"",MAX($A$1:A169)+1) ->  | B170: ='Direct 60%'!B184 -> 0 | C170: ='Direct 60%'!C184 -> 0 | D170: ='Direct 60%'!E184 -> 0 | E170: ='Direct 60%'!F184 -> 0 | F170: ='Direct 60%'!AQ184 -> 0
A171: =IF(B171=0,"",MAX($A$1:A170)+1) ->  | B171: ='Direct 60%'!B185 -> 0 | C171: ='Direct 60%'!C185 -> 0 | D171: ='Direct 60%'!E185 -> 0 | E171: ='Direct 60%'!F185 -> 0 | F171: ='Direct 60%'!AQ185 -> 0
A172: =IF(B172=0,"",MAX($A$1:A171)+1) ->  | B172: ='Direct 60%'!B186 -> 0 | C172: ='Direct 60%'!C186 -> 0 | D172: ='Direct 60%'!E186 -> 0 | E172: ='Direct 60%'!F186 -> 0 | F172: ='Direct 60%'!AQ186 -> 0
A173: =IF(B173=0,"",MAX($A$1:A172)+1) ->  | B173: ='Direct 60%'!B187 -> 0 | C173: ='Direct 60%'!C187 -> 0 | D173: ='Direct 60%'!E187 -> 0 | E173: ='Direct 60%'!F187 -> 0 | F173: ='Direct 60%'!AQ187 -> 0
A174: =IF(B174=0,"",MAX($A$1:A173)+1) ->  | B174: ='Direct 60%'!B188 -> 0 | C174: ='Direct 60%'!C188 -> 0 | D174: ='Direct 60%'!E188 -> 0 | E174: ='Direct 60%'!F188 -> 0 | F174: ='Direct 60%'!AQ188 -> 0
A175: =IF(B175=0,"",MAX($A$1:A174)+1) ->  | B175: ='Direct 60%'!B189 -> 0 | C175: ='Direct 60%'!C189 -> 0 | D175: ='Direct 60%'!E189 -> 0 | E175: ='Direct 60%'!F189 -> 0 | F175: ='Direct 60%'!AQ189 -> 0
A176: =IF(B176=0,"",MAX($A$1:A175)+1) ->  | B176: ='Direct 60%'!B190 -> 0 | C176: ='Direct 60%'!C190 -> 0 | D176: ='Direct 60%'!E190 -> 0 | E176: ='Direct 60%'!F190 -> 0 | F176: ='Direct 60%'!AQ190 -> 0
A177: =IF(B177=0,"",MAX($A$1:A176)+1) ->  | B177: ='Direct 60%'!B191 -> 0 | C177: ='Direct 60%'!C191 -> 0 | D177: ='Direct 60%'!E191 -> 0 | E177: ='Direct 60%'!F191 -> 0 | F177: ='Direct 60%'!AQ191 -> 0
A178: =IF(B178=0,"",MAX($A$1:A177)+1) ->  | B178: ='Direct 60%'!B192 -> 0 | C178: ='Direct 60%'!C192 -> 0 | D178: ='Direct 60%'!E192 -> 0 | E178: ='Direct 60%'!F192 -> 0 | F178: ='Direct 60%'!AQ192 -> 0
A179: =IF(B179=0,"",MAX($A$1:A178)+1) ->  | B179: ='Direct 60%'!B193 -> 0 | C179: ='Direct 60%'!C193 -> 0 | D179: ='Direct 60%'!E193 -> 0 | E179: ='Direct 60%'!F193 -> 0 | F179: ='Direct 60%'!AQ193 -> 0
A180: =IF(B180=0,"",MAX($A$1:A179)+1) ->  | B180: ='Direct 60%'!B194 -> 0 | C180: ='Direct 60%'!C194 -> 0 | D180: ='Direct 60%'!E194 -> 0 | E180: ='Direct 60%'!F194 -> 0 | F180: ='Direct 60%'!AQ194 -> 0
A181: =IF(B181=0,"",MAX($A$1:A180)+1) ->  | B181: ='Direct 60%'!B195 -> 0 | C181: ='Direct 60%'!C195 -> 0 | D181: ='Direct 60%'!E195 -> 0 | E181: ='Direct 60%'!F195 -> 0 | F181: ='Direct 60%'!AQ195 -> 0
A182: =IF(B182=0,"",MAX($A$1:A181)+1) ->  | B182: ='Direct 60%'!B196 -> 0 | C182: ='Direct 60%'!C196 -> 0 | D182: ='Direct 60%'!E196 -> 0 | E182: ='Direct 60%'!F196 -> 0 | F182: ='Direct 60%'!AQ196 -> 0
A183: =IF(B183=0,"",MAX($A$1:A182)+1) ->  | B183: ='Direct 60%'!B197 -> 0 | C183: ='Direct 60%'!C197 -> 0 | D183: ='Direct 60%'!E197 -> 0 | E183: ='Direct 60%'!F197 -> 0 | F183: ='Direct 60%'!AQ197 -> 0
A184: =IF(B184=0,"",MAX($A$1:A183)+1) ->  | B184: ='Direct 60%'!B198 -> 0 | C184: ='Direct 60%'!C198 -> 0 | D184: ='Direct 60%'!E198 -> 0 | E184: ='Direct 60%'!F198 -> 0 | F184: ='Direct 60%'!AQ198 -> 0
A185: =IF(B185=0,"",MAX($A$1:A184)+1) ->  | B185: ='Direct 60%'!B199 -> 0 | C185: ='Direct 60%'!C199 -> 0 | D185: ='Direct 60%'!E199 -> 0 | E185: ='Direct 60%'!F199 -> 0 | F185: ='Direct 60%'!AQ199 -> 0
A186: =IF(B186=0,"",MAX($A$1:A185)+1) ->  | B186: ='Direct 60%'!B200 -> 0 | C186: ='Direct 60%'!C200 -> 0 | D186: ='Direct 60%'!E200 -> 0 | E186: ='Direct 60%'!F200 -> 0 | F186: ='Direct 60%'!AQ200 -> 0
A187: =IF(B187=0,"",MAX($A$1:A186)+1) ->  | B187: ='Direct 60%'!B201 -> 0 | C187: ='Direct 60%'!C201 -> 0 | D187: ='Direct 60%'!E201 -> 0 | E187: ='Direct 60%'!F201 -> 0 | F187: ='Direct 60%'!AQ201 -> 0
A188: =IF(B188=0,"",MAX($A$1:A187)+1) ->  | B188: ='Direct 60%'!B202 -> 0 | C188: ='Direct 60%'!C202 -> 0 | D188: ='Direct 60%'!E202 -> 0 | E188: ='Direct 60%'!F202 -> 0 | F188: ='Direct 60%'!AQ202 -> 0
